Organisation Name,Organisation Code,Effective Date,Directorate,Service Category,Service Category URI,Supplier Name,Payment Date,Transaction Number,Net Amount,Irrecoverable VAT,Purpose_of_the_expenditure,Merchant Category,
Wyre Council,http://opendatacommunities.org/doc/district-council/wyre,30/01/2024,Resources,Support Services,135B,Spacehouse Limited,11/01/2024,RS155920,1450.00,0.00,12 month subscription MJ recruitment advertising package,Advertising - Recruitment,
Wyre Council,http://opendatacommunities.org/doc/district-council/wyre,30/01/2024,Resources,Support Services,135B,Spacehouse Limited,11/01/2024,RS155921,750.00,0.00,Head of Finance - MJ,Advertising - Recruitment,
Wyre Council,http://opendatacommunities.org/doc/district-council/wyre,30/01/2024,People and Places,Planning and Development Servs,132C,National World Publishing Ltd,31/01/2024,PE156389,416.07,0.00,Blackpool Gazette and Garstang Courier 20.12.23,Advertising - Statutory Notices,
Wyre Council,http://opendatacommunities.org/doc/district-council/wyre,30/01/2024,People and Places,Planning and Development Servs,132C,National World Publishing Ltd,31/01/2024,PE156388,416.07,0.00,Blackpool Gazette and Garstang Courier 06.12.23,Advertising - Statutory Notices,
Wyre Council,http://opendatacommunities.org/doc/district-council/wyre,30/01/2024,People and Places,Support Services,135B,National World Publishing Ltd,31/01/2024,PE156390,300.51,0.00,Blackpool Gazette and Garstang Courier 27.12.23,Advertising - Statutory Notices,
Wyre Council,http://opendatacommunities.org/doc/district-council/wyre,30/01/2024,People and Places,Housing General Fund,134A,RHEA PROJECTS LTD,10/01/2024,PE155878,2475.00,0.00,Boiler replacement,Affordable Warmth 2017/18,
Wyre Council,http://opendatacommunities.org/doc/district-council/wyre,30/01/2024,Resources,Housing General Fund,134A,RHEA PROJECTS LTD,31/01/2024,RS156385,2100.00,0.00,Affordable warmth,Affordable Warmth 2017/18,
Wyre Council,http://opendatacommunities.org/doc/district-council/wyre,30/01/2024,Resources,Housing General Fund,134A,RHEA PROJECTS LTD,31/01/2024,RS156384,500.00,0.00,Affordable warmth,Affordable Warmth 2017/18,
Wyre Council,http://opendatacommunities.org/doc/district-council/wyre,30/01/2024,Resources,Housing General Fund,134A,RHEA PROJECTS LTD,29/01/2024,RS156296,2120.00,0.00,Boiler replacement,Affordable Warmth 2017/18,
Wyre Council,http://opendatacommunities.org/doc/district-council/wyre,30/01/2024,Resources,Housing General Fund,134A,RHEA PROJECTS LTD,29/01/2024,RS156300,1183.50,0.00,Affordable warmth support,Affordable Warmth 2017/18,
Wyre Council,http://opendatacommunities.org/doc/district-council/wyre,30/01/2024,People and Places,Cultural and Related Services,132A,Catering Elite Ltd,10/01/2024,PE155875,506.85,0.00,Agency staff 26/11/23,Agency Staff,
Wyre Council,http://opendatacommunities.org/doc/district-council/wyre,30/01/2024,People and Places,Cultural and Related Services,132A,Catering Elite Ltd,03/01/2024,PE155651,65.40,0.00,Agency staff 10/12/23,Agency Staff,
Wyre Council,http://opendatacommunities.org/doc/district-council/wyre,30/01/2024,People and Places,Cultural and Related Services,132A,Catering Elite Ltd,03/01/2024,PE155648,637.65,0.00,Agency staff 31/12/23,Agency Staff,
Wyre Council,http://opendatacommunities.org/doc/district-council/wyre,30/01/2024,People and Places,Cultural and Related Services,132A,Catering Elite Ltd,03/01/2024,PE155647,204.38,0.00,Agency staff 17/12/23,Agency Staff,
Wyre Council,http://opendatacommunities.org/doc/district-council/wyre,30/01/2024,People and Places,Cultural and Related Services,132A,Catering Elite Ltd,03/01/2024,PE155645,188.03,0.00,Agency staff 3/12/23,Agency Staff,
Wyre Council,http://opendatacommunities.org/doc/district-council/wyre,30/01/2024,People and Places,Cultural and Related Services,132A,Catering Elite Ltd,19/01/2024,PE156116,212.55,0.00,Agency staff 14/1/24,Agency Staff,
Wyre Council,http://opendatacommunities.org/doc/district-council/wyre,30/01/2024,People and Places,Cultural and Related Services,132A,Catering Elite Ltd,24/01/2024,PE156248,265.69,0.00,Agency staff 21/01/24,Agency Staff,
Wyre Council,http://opendatacommunities.org/doc/district-council/wyre,30/01/2024,People and Places,Planning and Development Servs,132C,Vivid Resourcing Ltd,05/01/2024,PE155680,6000.00,0.00,Fleetwood market,Agency Staff,
Wyre Council,http://opendatacommunities.org/doc/district-council/wyre,30/01/2024,Resources,Housing General Fund,134A,Vivid Resourcing Ltd,31/01/2024,RS155681,5539.51,0.00,1074645 03/12/23 Housing Options Officer,Agency Staff,
Wyre Council,http://opendatacommunities.org/doc/district-council/wyre,30/01/2024,Resources,Housing General Fund,134A,Vivid Resourcing Ltd,31/01/2024,RS156156,5069.86,0.00,1039112 08/10/23 Housing Options Officer,Agency Staff,
Wyre Council,http://opendatacommunities.org/doc/district-council/wyre,30/01/2024,Resources,Support Services,135B,G2V Recruitment Group Ltd T/A G2 Recruitment Solu,04/01/2024,RS155657,1680.85,0.00,SLIG2R0129665  End 03/12/23,Agency Staff,
Wyre Council,http://opendatacommunities.org/doc/district-council/wyre,30/01/2024,Resources,Support Services,135B,G2V Recruitment Group Ltd T/A G2 Recruitment Solu,29/01/2024,RS156298,1686.00,0.00,Invoice SLIG2R012157  14/01/24,Agency Staff,
Wyre Council,http://opendatacommunities.org/doc/district-council/wyre,30/01/2024,Resources,Support Services,135B,G2V Recruitment Group Ltd T/A G2 Recruitment Solu,29/01/2024,RS156297,1631.95,0.00,Invoice - SLIG2R0132381 - 21/1/24,Agency Staff,
Wyre Council,http://opendatacommunities.org/doc/district-council/wyre,30/01/2024,Resources,Support Services,135B,G2V Recruitment Group Ltd T/A G2 Recruitment Solu,03/01/2024,RS155633,1106.30,0.00,SLIG2R0130188 - End 10/12/23,Agency Staff,
Wyre Council,http://opendatacommunities.org/doc/district-council/wyre,30/01/2024,Resources,Support Services,135B,G2V Recruitment Group Ltd T/A G2 Recruitment Solu,03/01/2024,RS155635,1558.90,0.00,SLIG2R0128442 - End 12/11/2023,Agency Staff,
Wyre Council,http://opendatacommunities.org/doc/district-council/wyre,30/01/2024,Resources,Support Services,135B,G2V Recruitment Group Ltd T/A G2 Recruitment Solu,03/01/2024,RS155634,1660.35,0.00,SLIG2R0129537 -End 26/11/2023,Agency Staff,
Wyre Council,http://opendatacommunities.org/doc/district-council/wyre,30/01/2024,Resources,Support Services,135B,G2V Recruitment Group Ltd T/A G2 Recruitment Solu,16/01/2024,RS156022,1525.10,0.00,Invoice SLIG2R0131491 - Period end 07/01/2024,Agency Staff,
Wyre Council,http://opendatacommunities.org/doc/district-council/wyre,30/01/2024,Resources,Support Services,135B,G2V Recruitment Group Ltd T/A G2 Recruitment Solu,04/01/2024,RS155658,1678.15,0.00,SLIG2R0128777 - End 19/11/2023,Agency Staff,
Wyre Council,http://opendatacommunities.org/doc/district-council/wyre,30/01/2024,People and Places,Cultural and Related Services,132A,Quantum Staffing Solutions Ltd,23/01/2024,PE155565,178.20,0.00,Agency staff - Marine Hall 20/12/23,Agency Staff,
Wyre Council,http://opendatacommunities.org/doc/district-council/wyre,30/01/2024,People and Places,Cultural and Related Services,132A,Quantum Staffing Solutions Ltd,23/01/2024,PE155164,118.80,0.00,Agency staff - Marine Hall,Agency Staff,
Wyre Council,http://opendatacommunities.org/doc/district-council/wyre,30/01/2024,People and Places,Cultural and Related Services,132A,Quantum Staffing Solutions Ltd,23/01/2024,PE154811,638.55,0.00,Agency staff - Marine Hall 22/11/23,Agency Staff,
Wyre Council,http://opendatacommunities.org/doc/district-council/wyre,30/01/2024,People and Places,Cultural and Related Services,132A,Spencer Sutcliffe Security Ltd,03/01/2024,PE155641,379.25,0.00,Security - Panto,Agency Staff,
Wyre Council,http://opendatacommunities.org/doc/district-council/wyre,30/01/2024,People and Places,Cultural and Related Services,132A,Spencer Sutcliffe Security Ltd,03/01/2024,PE155646,301.55,0.00,Security - Marine Hall,Agency Staff,
Wyre Council,http://opendatacommunities.org/doc/district-council/wyre,30/01/2024,People and Places,Cultural and Related Services,132A,M D Security,31/01/2024,PE156351,60.00,0.00,Mount Pavilion: Callout to fault on security alarm. Replaced 2 x batteries,Alarm Systems and Security - Annual,
Wyre Council,http://opendatacommunities.org/doc/district-council/wyre,30/01/2024,People and Places,Cultural and Related Services,132A,M D Security,31/01/2024,PE156350,50.00,0.00,Mount Pavilion and Studios: carried out emergency light test to shole sites for 01/24,Alarm Systems and Security - Annual,
Wyre Council,http://opendatacommunities.org/doc/district-council/wyre,30/01/2024,People and Places,Cultural and Related Services,132A,M D Security,18/01/2024,PE155576,453.84,0.00,Mount Lodges: Repairs to faulty emergency lights,Alarm Systems and Security - Annual,
Wyre Council,http://opendatacommunities.org/doc/district-council/wyre,30/01/2024,People and Places,Cultural and Related Services,132A,M D Security,24/01/2024,PE156189,60.00,0.00,Marine Hall: carried out emergency light test with info given from site to location of lights and test points for Jan 24,Alarm Systems and Security - Annual,
Wyre Council,http://opendatacommunities.org/doc/district-council/wyre,30/01/2024,People and Places,Cultural and Related Services,132A,M D Security,16/01/2024,PE155947,148.00,0.00,Waterfront Cafe Bar: replaced 50v emergency light fitting,Alarm Systems and Security - Annual,
Wyre Council,http://opendatacommunities.org/doc/district-council/wyre,30/01/2024,People and Places,Cultural and Related Services,132A,M D Security,31/01/2024,PE156352,50.00,0.00,Riverside Rangers Room Stannah: Service to fire alarm sensors tested,Alarm Systems and Security - Annual,
Wyre Council,http://opendatacommunities.org/doc/district-council/wyre,30/01/2024,People and Places,Support Services,135B,M D Security,23/01/2024,PE156126,60.00,0.00,Carried out emergency light test for month 01/24 at Civic Centre,Alarm Systems and Security - Annual,
Wyre Council,http://opendatacommunities.org/doc/district-council/wyre,30/01/2024,People and Places,Support Services,135B,M D Security,18/01/2024,PE155993,88.00,0.00,Civic Centre: replace emergency light in ladies toilet adj reception,Alarm Systems and Security - Annual,
Wyre Council,http://opendatacommunities.org/doc/district-council/wyre,30/01/2024,People and Places,Cultural and Related Services,132A,M D Security,24/01/2024,PE156190,50.00,0.00,Little Thornton Theatre: carried out emergency light test on whole site for Jan 24,Alarm Systems and Security - Annual,
Wyre Council,http://opendatacommunities.org/doc/district-council/wyre,30/01/2024,People and Places,Cultural and Related Services,132A,M D Security,31/01/2024,PE156349,50.00,0.00,Rossal Point: Carried out emergency light test for 01/24,Alarm Systems and Security - Annual,
Wyre Council,http://opendatacommunities.org/doc/district-council/wyre,30/01/2024,People and Places,Planning and Development Servs,132C,M D Security,15/01/2024,PE155946,100.00,0.00,Market House Studio: callout to fault on system found contact to be fau.ty - replaced and left workign,Alarm Systems and Security - Annual,
Wyre Council,http://opendatacommunities.org/doc/district-council/wyre,30/01/2024,People and Places,Planning and Development Servs,132C,M D Security,24/01/2024,PE156191,105.00,0.00,Market Studios: replaced external sounder batteries,Alarm Systems and Security - Annual,
Wyre Council,http://opendatacommunities.org/doc/district-council/wyre,30/01/2024,People and Places,Planning and Development Servs,132C,M D Security,29/01/2024,PE156281,135.00,0.00,Copse Rd: Replaced PIR due to fault,Alarm Systems and Security - Annual,
Wyre Council,http://opendatacommunities.org/doc/district-council/wyre,30/01/2024,People and Places,Cultural and Related Services,132A,M D Security,03/01/2024,PE155575,50.00,0.00,Riverside Rangers Room: Emergency light test to whole site for Dec 23,Alarm Systems and Security - Responsive,
Wyre Council,http://opendatacommunities.org/doc/district-council/wyre,30/01/2024,People and Places,Environmental Services,132B,M D Security,18/01/2024,PE155994,568.00,0.00,"Chatsworth Depot, Fleetwood: Replaced 6 x emergency light fittings high level",Alarm Systems and Security - Responsive,
Wyre Council,http://opendatacommunities.org/doc/district-council/wyre,30/01/2024,Finance,Support Services,135B,,17/01/2024,WPST00130765,3052.00,0.00,15/01/24 Dec 23 Total Apprenticeship Lev,Apprenticeship Levy,
Wyre Council,http://opendatacommunities.org/doc/district-council/wyre,30/01/2024,People and Places,Cultural and Related Services,132A,Santas Grotto Services,24/01/2024,PE156131,700.00,0.00,"Santa sessions at The Mount, Fleetwood. Christmas 2023 - 4 days.",Artistes Fees,
Wyre Council,http://opendatacommunities.org/doc/district-council/wyre,30/01/2024,Resources,Corporate and Democratic Core,131A,PR Chauffeuring Services,10/01/2024,RS155879,792.00,0.00,Mayoral Chauffeur trips December 2023.,Attendant Chauffeur Service,
Wyre Council,http://opendatacommunities.org/doc/district-council/wyre,30/01/2024,Finance,Corporate and Democratic Core,131A,NATWEST BANK,03/01/2024,WPST00129482,765.62,0.00,29/12/23 01DEC GRP 99795000,Bank Charges,
Wyre Council,http://opendatacommunities.org/doc/district-council/wyre,30/01/2024,Finance,Corporate and Democratic Core,131A,NATWEST BANK,23/01/2024,WPST00131218,1006.31,0.00,19/1/24 Worldpay 287642213,Bank Charges,
Wyre Council,http://opendatacommunities.org/doc/district-council/wyre,30/01/2024,Finance,Corporate and Democratic Core,131A,NATWEST BANK,23/01/2024,WPST00131220,642.04,0.00,19/1/24 Worldpay 287705856,Bank Charges,
Wyre Council,http://opendatacommunities.org/doc/district-council/wyre,30/01/2024,Resources,Support Services,135B,Arthur J Gallagher Insurance Brokers Ltd,09/01/2024,RS155810,299.40,0.00,Coatwatch tower MTA - transfer premises from general to commercial.,Building Insurance Premiums General,
Wyre Council,http://opendatacommunities.org/doc/district-council/wyre,30/01/2024,Resources,Support Services,135B,Arthur J Gallagher Insurance Brokers Ltd,09/01/2024,RS155811,2814.67,0.00,"Increase sums insured  Chatsworth depot from 534,069.60  to 920,000 Copse depot from  2,042,893.20 to 4,344,000",Building Insurance Premiums General,
Wyre Council,http://opendatacommunities.org/doc/district-council/wyre,30/01/2024,Resources,Support Services,135B,Arthur J Gallagher Insurance Brokers Ltd,09/01/2024,RS155809,19945.04,0.00,"MTA Inc sums insured  YMCA Poulton - 2,553,616.80 to 7,068,000.00 YMCA Fleetwood - 5,020,009.20 to 17,468,400.00 Marine Hall -  from  12,447,064 to 19,681,200 Fleetwood Golf Club - 2,145,034 to 4,600,800 Civic Centre - 13,278,811.20 to 42,319,20",Building Insurance Premiums General,
Wyre Council,http://opendatacommunities.org/doc/district-council/wyre,30/01/2024,People and Places,Cultural and Related Services,132A,APCOA Parking UK Ltd,24/01/2024,PE156209,121.45,0.00,Bank processing costs @0.41p per 100 for collections from business centres for 2023/2024,Cash Collection Security Service,
Wyre Council,http://opendatacommunities.org/doc/district-council/wyre,30/01/2024,People and Places,Cultural and Related Services,132A,APCOA Parking UK Ltd,23/01/2024,PE156035,-121.45,0.00,Bank processing costs @0.41p per 100 for collections from business centres for 2023/2024,Cash Collection Security Service,
Wyre Council,http://opendatacommunities.org/doc/district-council/wyre,30/01/2024,People and Places,Cultural and Related Services,132A,APCOA Parking UK Ltd,23/01/2024,PE156035,121.45,0.00,Bank processing costs @0.41p per 100 for collections from business centres for 2023/2024,Cash Collection Security Service,
Wyre Council,http://opendatacommunities.org/doc/district-council/wyre,30/01/2024,People and Places,Cultural and Related Services,132A,APCOA Parking UK Ltd,23/01/2024,PE156034,100.92,0.00,Bank processing costs @0.41p per 100 for collections from business centres for 2023/2024,Cash Collection Security Service,
Wyre Council,http://opendatacommunities.org/doc/district-council/wyre,30/01/2024,People and Places,Cultural and Related Services,132A,APCOA Parking UK Ltd,23/01/2024,PE156036,22.96,0.00,Bank processing costs @0.41p per 100 for collections from business centres for 2023/2024,Cash Collection Security Service,
Wyre Council,http://opendatacommunities.org/doc/district-council/wyre,30/01/2024,People and Places,Planning and Development Servs,132C,APCOA Parking UK Ltd,23/01/2024,PE156035,239.01,0.00,Bank processing costs @0.41p per 100 for collections from business centres for 2023/2024,Cash Collection Security Service,
Wyre Council,http://opendatacommunities.org/doc/district-council/wyre,30/01/2024,People and Places,Planning and Development Servs,132C,APCOA Parking UK Ltd,23/01/2024,PE156036,114.71,0.00,Bank processing costs @0.41p per 100 for collections from business centres for 2023/2024,Cash Collection Security Service,
Wyre Council,http://opendatacommunities.org/doc/district-council/wyre,30/01/2024,People and Places,Planning and Development Servs,132C,APCOA Parking UK Ltd,23/01/2024,PE156034,44.04,0.00,Bank processing costs @0.41p per 100 for collections from business centres for 2023/2024,Cash Collection Security Service,
Wyre Council,http://opendatacommunities.org/doc/district-council/wyre,30/01/2024,People and Places,Planning and Development Servs,132C,APCOA Parking UK Ltd,23/01/2024,PE156035,-239.01,0.00,Bank processing costs @0.41p per 100 for collections from business centres for 2023/2024,Cash Collection Security Service,
Wyre Council,http://opendatacommunities.org/doc/district-council/wyre,30/01/2024,People and Places,Planning and Development Servs,132C,APCOA Parking UK Ltd,24/01/2024,PE156037,115.30,0.00,Bank processing costs @0.41p per 100 for collections from business centres for 2023/2024,Cash Collection Security Service,
Wyre Council,http://opendatacommunities.org/doc/district-council/wyre,30/01/2024,People and Places,Planning and Development Servs,132C,APCOA Parking UK Ltd,24/01/2024,PE156209,239.01,0.00,Bank processing costs @0.41p per 100 for collections from business centres for 2023/2024,Cash Collection Security Service,
Wyre Council,http://opendatacommunities.org/doc/district-council/wyre,30/01/2024,People and Places,Cultural and Related Services,132A,APCOA Parking UK Ltd,24/01/2024,PE156037,20.21,0.00,Bank processing costs @0.41p per 100 for collections from business centres for 2023/2024,Cash Collection Security Service,
Wyre Council,http://opendatacommunities.org/doc/district-council/wyre,30/01/2024,People and Places,Support Services,135B,APCOA Parking UK Ltd,23/01/2024,PE156034,59.17,0.00,Bank processing costs @0.41p per 100 for collections from business centres for 2023/2024,Cash Collection Security Service,
Wyre Council,http://opendatacommunities.org/doc/district-council/wyre,30/01/2024,People and Places,Support Services,135B,APCOA Parking UK Ltd,23/01/2024,PE156035,100.82,0.00,Bank processing costs @0.41p per 100 for collections from business centres for 2023/2024,Cash Collection Security Service,
Wyre Council,http://opendatacommunities.org/doc/district-council/wyre,30/01/2024,People and Places,Support Services,135B,APCOA Parking UK Ltd,23/01/2024,PE156036,48.15,0.00,Bank processing costs @0.41p per 100 for collections from business centres for 2023/2024,Cash Collection Security Service,
Wyre Council,http://opendatacommunities.org/doc/district-council/wyre,30/01/2024,People and Places,Support Services,135B,APCOA Parking UK Ltd,23/01/2024,PE156035,-100.82,0.00,Bank processing costs @0.41p per 100 for collections from business centres for 2023/2024,Cash Collection Security Service,
Wyre Council,http://opendatacommunities.org/doc/district-council/wyre,30/01/2024,People and Places,Support Services,135B,APCOA Parking UK Ltd,24/01/2024,PE156037,22.35,0.00,Bank processing costs @0.41p per 100 for collections from business centres for 2023/2024,Cash Collection Security Service,
Wyre Council,http://opendatacommunities.org/doc/district-council/wyre,30/01/2024,People and Places,Support Services,135B,APCOA Parking UK Ltd,24/01/2024,PE156209,100.82,0.00,Bank processing costs @0.41p per 100 for collections from business centres for 2023/2024,Cash Collection Security Service,
Wyre Council,http://opendatacommunities.org/doc/district-council/wyre,30/01/2024,People and Places,Parking Services,133F,APCOA Parking UK Ltd,22/01/2024,PE156031,946.61,0.00,"Provide cash collection and processing services for Wyre Council - 1 April 2023 - 31 March 2024  i) Cash collection from P&D car park machines - estimated 135 boxes per month at 11.33 per box ii) Cash processing - estimated 46,600 per month @ 0.44 per �",Cash Collection Security Service,
Wyre Council,http://opendatacommunities.org/doc/district-council/wyre,30/01/2024,People and Places,Parking Services,133F,APCOA Parking UK Ltd,22/01/2024,PE156041,1149.86,0.00,"Provide cash collection and processing services for Wyre Council - 1 April 2023 - 31 March 2024  i) Cash collection from P&D car park machines - estimated 135 boxes per month at 11.33 per box ii) Cash processing - estimated 46,600 per month @ 0.44 per �",Cash Collection Security Service,
Wyre Council,http://opendatacommunities.org/doc/district-council/wyre,30/01/2024,People and Places,Parking Services,133F,APCOA Parking UK Ltd,22/01/2024,PE156038,1022.98,0.00,"Provide cash collection and processing services for Wyre Council - 1 April 2023 - 31 March 2024  i) Cash collection from P&D car park machines - estimated 135 boxes per month at 11.33 per box ii) Cash processing - estimated 46,600 per month @ 0.44 per �",Cash Collection Security Service,
Wyre Council,http://opendatacommunities.org/doc/district-council/wyre,30/01/2024,People and Places,Parking Services,133F,APCOA Parking UK Ltd,22/01/2024,PE156033,997.35,0.00,"Provide cash collection and processing services for Wyre Council - 1 April 2023 - 31 March 2024  i) Cash collection from P&D car park machines - estimated 135 boxes per month at 11.33 per box ii) Cash processing - estimated 46,600 per month @ 0.44 per �",Cash Collection Security Service,
Wyre Council,http://opendatacommunities.org/doc/district-council/wyre,30/01/2024,People and Places,Parking Services,133F,APCOA Parking UK Ltd,22/01/2024,PE156032,1218.55,0.00,"Provide cash collection and processing services for Wyre Council - 1 April 2023 - 31 March 2024  i) Cash collection from P&D car park machines - estimated 135 boxes per month at 11.33 per box ii) Cash processing - estimated 46,600 per month @ 0.44 per �",Cash Collection Security Service,
Wyre Council,http://opendatacommunities.org/doc/district-council/wyre,30/01/2024,People and Places,Parking Services,133F,APCOA Parking UK Ltd,23/01/2024,PE156036,1119.66,0.00,"Provide cash collection and processing services for Wyre Council - 1 April 2023 - 31 March 2024  i) Cash collection from P&D car park machines - estimated 135 boxes per month at 11.33 per box ii) Cash processing - estimated 46,600 per month @ 0.44 per �",Cash Collection Security Service,
Wyre Council,http://opendatacommunities.org/doc/district-council/wyre,30/01/2024,People and Places,Parking Services,133F,APCOA Parking UK Ltd,23/01/2024,PE156035,1321.34,0.00,"Provide cash collection and processing services for Wyre Council - 1 April 2023 - 31 March 2024  i) Cash collection from P&D car park machines - estimated 135 boxes per month at 11.33 per box ii) Cash processing - estimated 46,600 per month @ 0.44 per �",Cash Collection Security Service,
Wyre Council,http://opendatacommunities.org/doc/district-council/wyre,30/01/2024,People and Places,Parking Services,133F,APCOA Parking UK Ltd,23/01/2024,PE156034,1381.54,0.00,"Provide cash collection and processing services for Wyre Council - 1 April 2023 - 31 March 2024  i) Cash collection from P&D car park machines - estimated 135 boxes per month at 11.33 per box ii) Cash processing - estimated 46,600 per month @ 0.44 per �",Cash Collection Security Service,
Wyre Council,http://opendatacommunities.org/doc/district-council/wyre,30/01/2024,People and Places,Parking Services,133F,APCOA Parking UK Ltd,23/01/2024,PE156035,-1321.34,0.00,"Provide cash collection and processing services for Wyre Council - 1 April 2023 - 31 March 2024  i) Cash collection from P&D car park machines - estimated 135 boxes per month at 11.33 per box ii) Cash processing - estimated 46,600 per month @ 0.44 per �",Cash Collection Security Service,
Wyre Council,http://opendatacommunities.org/doc/district-council/wyre,30/01/2024,People and Places,Parking Services,133F,APCOA Parking UK Ltd,24/01/2024,PE156209,1321.34,0.00,"Provide cash collection and processing services for Wyre Council - 1 April 2023 - 31 March 2024  i) Cash collection from P&D car park machines - estimated 135 boxes per month at 11.33 per box ii) Cash processing - estimated 46,600 per month @ 0.44 per �",Cash Collection Security Service,
Wyre Council,http://opendatacommunities.org/doc/district-council/wyre,30/01/2024,People and Places,Parking Services,133F,APCOA Parking UK Ltd,24/01/2024,PE156037,1374.19,0.00,"Provide cash collection and processing services for Wyre Council - 1 April 2023 - 31 March 2024  i) Cash collection from P&D car park machines - estimated 135 boxes per month at 11.33 per box ii) Cash processing - estimated 46,600 per month @ 0.44 per �",Cash Collection Security Service,
Wyre Council,http://opendatacommunities.org/doc/district-council/wyre,30/01/2024,People and Places,Cultural and Related Services,132A,Northern Citrus Products LTD,10/01/2024,PE155876,-99.50,0.00,Disposable glasses,Catering Disposables,
Wyre Council,http://opendatacommunities.org/doc/district-council/wyre,30/01/2024,People and Places,Cultural and Related Services,132A,Northern Citrus Products LTD,10/01/2024,PE155876,99.50,0.00,Disposable glasses,Catering Disposables,
Wyre Council,http://opendatacommunities.org/doc/district-council/wyre,30/01/2024,People and Places,Environmental Services,132B,N Power LTD,08/01/2024,PE155675,153.40,0.00,Unmetered electricity supply for town centre CCTV,CCTV Running Costs,
Wyre Council,http://opendatacommunities.org/doc/district-council/wyre,30/01/2024,People and Places,Environmental Services,132B,N Power LTD,08/01/2024,PE155675,102.30,0.00,Unmetered electricity supply for town centre CCTV,CCTV Running Costs,
Wyre Council,http://opendatacommunities.org/doc/district-council/wyre,30/01/2024,People and Places,Environmental Services,132B,N Power LTD,08/01/2024,PE155675,17.04,0.00,Unmetered electricity supply for town centre CCTV,CCTV Running Costs,
Wyre Council,http://opendatacommunities.org/doc/district-council/wyre,30/01/2024,People and Places,Street Lighting,133C,Preesall Town Council,11/01/2024,PE155926,3900.00,0.00,Grant Preesall Festive Lights 2023-24,Christmas Lights,
Wyre Council,http://opendatacommunities.org/doc/district-council/wyre,30/01/2024,People and Places,Street Lighting,133C,Thornton Festive Lights,10/01/2024,PE155864,2750.00,0.00,Grant for Thornton Festive Lights 2023-24,Christmas Lights,
Wyre Council,http://opendatacommunities.org/doc/district-council/wyre,30/01/2024,People and Places,Street Lighting,133C,Fleetwood Town Council,09/01/2024,PE155821,3900.00,0.00,Grant for Fleetwood Festive Lights 2023-24,Christmas Lights,
Wyre Council,http://opendatacommunities.org/doc/district-council/wyre,30/01/2024,People and Places,Street Lighting,133C,Poulton Partnership,09/01/2024,PE155854,3900.00,0.00,Grant for Poulton-le-Fylde Festive Lights 2023-24,Christmas Lights,
Wyre Council,http://opendatacommunities.org/doc/district-council/wyre,30/01/2024,People and Places,Street Lighting,133C,Cleveleys Town Centre Group Ltd,10/01/2024,PE155863,3900.00,0.00,Grant for Cleveleys Festive Lights 2023-24,Christmas Lights,
Wyre Council,http://opendatacommunities.org/doc/district-council/wyre,30/01/2024,People and Places,Street Lighting,133C,Garstang Christmas Lights Appeal,17/01/2024,PE156027,3900.00,0.00,Grant Garstang Festive Lights 2023-24,Christmas Lights,
Wyre Council,http://opendatacommunities.org/doc/district-council/wyre,30/01/2024,Resources,Support Services,135B,Key Engineering & Hygiene Supplies LTD,22/01/2024,RS156188,72.52,0.00,WHITE 2PLY LUXURY TOILET ROLL 320 40 PER PACK,Cleaning Materials,
Wyre Council,http://opendatacommunities.org/doc/district-council/wyre,30/01/2024,Resources,Support Services,135B,Key Engineering & Hygiene Supplies LTD,22/01/2024,RS156188,3.08,0.00,BLUE NITRILE POWDER FREE GLOVES LARGE,Cleaning Materials,
Wyre Council,http://opendatacommunities.org/doc/district-council/wyre,30/01/2024,Resources,Support Services,135B,Key Engineering & Hygiene Supplies LTD,22/01/2024,RS156188,12.32,0.00,BLUE NITRILE POWDER FREE GLOVES MEDIUM,Cleaning Materials,
Wyre Council,http://opendatacommunities.org/doc/district-council/wyre,30/01/2024,Resources,Support Services,135B,Key Engineering & Hygiene Supplies LTD,22/01/2024,RS156188,87.78,0.00,BLUE INTERFOLD HAND TOWELS 3600 SHEETS,Cleaning Materials,
Wyre Council,http://opendatacommunities.org/doc/district-council/wyre,30/01/2024,Resources,Support Services,135B,Key Engineering & Hygiene Supplies LTD,30/01/2024,RS155711,3.80,0.00,20 X 15 BLEACHED DISH CLOTHS EA,Cleaning Materials,
Wyre Council,http://opendatacommunities.org/doc/district-council/wyre,30/01/2024,Resources,Support Services,135B,Key Engineering & Hygiene Supplies LTD,30/01/2024,RS155711,15.04,0.00,EVANS FOAMING LEMON SOAP 5L,Cleaning Materials,
Wyre Council,http://opendatacommunities.org/doc/district-council/wyre,30/01/2024,Resources,Support Services,135B,Key Engineering & Hygiene Supplies LTD,30/01/2024,RS155711,9.57,0.00,KEYPINE GENERAL DISINFECTANT 5LTR,Cleaning Materials,
Wyre Council,http://opendatacommunities.org/doc/district-council/wyre,30/01/2024,Resources,Support Services,135B,Key Engineering & Hygiene Supplies LTD,30/01/2024,RS155711,2.80,0.00,RED STRIPE DISH CLOTH EA,Cleaning Materials,
Wyre Council,http://opendatacommunities.org/doc/district-council/wyre,30/01/2024,Resources,Support Services,135B,Key Engineering & Hygiene Supplies LTD,30/01/2024,RS155711,27.72,0.00,FRESH AIR + FABRIC AEROSOL 400ML,Cleaning Materials,
Wyre Council,http://opendatacommunities.org/doc/district-council/wyre,30/01/2024,Resources,Support Services,135B,Key Engineering & Hygiene Supplies LTD,30/01/2024,RS155711,8.24,0.00,ENSURE ALCOHOL BASED SANITISER 5 LITRE,Cleaning Materials,
Wyre Council,http://opendatacommunities.org/doc/district-council/wyre,30/01/2024,Resources,Support Services,135B,Key Engineering & Hygiene Supplies LTD,30/01/2024,RS155711,14.34,0.00,LIQUID SPRAY POLISH 750ML TRIGGER SPRAY,Cleaning Materials,
Wyre Council,http://opendatacommunities.org/doc/district-council/wyre,30/01/2024,Resources,Support Services,135B,Key Engineering & Hygiene Supplies LTD,30/01/2024,RS155711,6.40,0.00,SAFE ZONE PLUS  5 LITRE,Cleaning Materials,
Wyre Council,http://opendatacommunities.org/doc/district-council/wyre,30/01/2024,Resources,Support Services,135B,Key Engineering & Hygiene Supplies LTD,30/01/2024,RS155711,175.56,0.00,BLUE INTERFOLD HAND TOWELS 3600 SHEETS,Cleaning Materials,
Wyre Council,http://opendatacommunities.org/doc/district-council/wyre,30/01/2024,Resources,Support Services,135B,Key Engineering & Hygiene Supplies LTD,30/01/2024,RS155711,3.08,0.00,BLUE NITRILE GLOVES EXTRA LARGE,Cleaning Materials,
Wyre Council,http://opendatacommunities.org/doc/district-council/wyre,30/01/2024,Resources,Support Services,135B,Key Engineering & Hygiene Supplies LTD,30/01/2024,RS155711,12.29,0.00,BLUE CENTRE FEED ROLLS 150MX175MM (PACK OF 6),Cleaning Materials,
Wyre Council,http://opendatacommunities.org/doc/district-council/wyre,30/01/2024,Resources,Support Services,135B,Key Engineering & Hygiene Supplies LTD,30/01/2024,RS155711,18.36,0.00,EAUFRESH NON ACIDIC POT POURRI TOILET CLEANER 1 LTR,Cleaning Materials,
Wyre Council,http://opendatacommunities.org/doc/district-council/wyre,30/01/2024,Resources,Support Services,135B,Key Engineering & Hygiene Supplies LTD,30/01/2024,RS155711,10.44,0.00,WASHING UP LIQUID 5 LTR,Cleaning Materials,
Wyre Council,http://opendatacommunities.org/doc/district-council/wyre,30/01/2024,Resources,Support Services,135B,Key Engineering & Hygiene Supplies LTD,30/01/2024,RS155711,103.60,0.00,WHITE 2PLY LUXURY TOILET ROLL 320 40 PER PACK,Cleaning Materials,
Wyre Council,http://opendatacommunities.org/doc/district-council/wyre,30/01/2024,Resources,Support Services,135B,Key Engineering & Hygiene Supplies LTD,30/01/2024,RS155711,19.32,0.00,MEDIUM BLACK REFUSE SACK 18X29X34 100G,Cleaning Materials,
Wyre Council,http://opendatacommunities.org/doc/district-council/wyre,30/01/2024,Resources,Support Services,135B,Key Engineering & Hygiene Supplies LTD,30/01/2024,RS155711,12.30,0.00,CLEAR WINDOW CLEANER 750ML,Cleaning Materials,
Wyre Council,http://opendatacommunities.org/doc/district-council/wyre,30/01/2024,Resources,Support Services,135B,Key Engineering & Hygiene Supplies LTD,30/01/2024,RS155711,8.24,0.00,FLORATILE GENERAL PURPOSE  CLEANER 5 LTR,Cleaning Materials,
Wyre Council,http://opendatacommunities.org/doc/district-council/wyre,30/01/2024,People and Places,Planning and Development Servs,132C,Key Engineering & Hygiene Supplies LTD,24/01/2024,PE156245,202.05,0.00,2PLY WHITE JUMBO TOILET ROLL,Cleaning Materials,
Wyre Council,http://opendatacommunities.org/doc/district-council/wyre,30/01/2024,People and Places,Planning and Development Servs,132C,Key Engineering & Hygiene Supplies LTD,24/01/2024,PE156245,9.72,0.00,EAUFRESH NON ACIDIC APPLE TOILET CLEANER 1 LTR,Cleaning Materials,
Wyre Council,http://opendatacommunities.org/doc/district-council/wyre,30/01/2024,People and Places,Planning and Development Servs,132C,Key Engineering & Hygiene Supplies LTD,24/01/2024,PE156245,45.72,0.00,LUX PEARL HAND/BODY SOAP 5 LTR,Cleaning Materials,
Wyre Council,http://opendatacommunities.org/doc/district-council/wyre,30/01/2024,People and Places,Planning and Development Servs,132C,Key Engineering & Hygiene Supplies LTD,24/01/2024,PE156245,21.42,0.00,Thickened Bleach 5 ltr,Cleaning Materials,
Wyre Council,http://opendatacommunities.org/doc/district-council/wyre,30/01/2024,People and Places,Planning and Development Servs,132C,Key Engineering & Hygiene Supplies LTD,24/01/2024,PE156245,19.14,0.00,KEYPINE GENERAL DISINFECTANT 5LTR,Cleaning Materials,
Wyre Council,http://opendatacommunities.org/doc/district-council/wyre,30/01/2024,People and Places,Planning and Development Servs,132C,Key Engineering & Hygiene Supplies LTD,16/01/2024,PE155520,41.52,0.00,5F X 1.1/8 DIA TAPERED BRUSH HANDLE EA,Cleaning Materials,
Wyre Council,http://opendatacommunities.org/doc/district-council/wyre,30/01/2024,People and Places,Planning and Development Servs,132C,Key Engineering & Hygiene Supplies LTD,31/01/2024,PE156369,100.56,0.00,"Supply and deliver as per quote 22031
Cleaning products for Copse Road Depot 

Delivery to Wyre Council, Copse Road Depot, Copse Road, Fleetwood, FY7 6RP",Cleaning Materials,
Wyre Council,http://opendatacommunities.org/doc/district-council/wyre,30/01/2024,Resources,Support Services,135B,Amazon Business,15/01/2024,RS155745,8.40,0.00,DOMESTOS CITRUS FRESH 750ML,Cleaning Materials,
Wyre Council,http://opendatacommunities.org/doc/district-council/wyre,30/01/2024,Resources,Support Services,135B,Amazon Business,15/01/2024,RS155744,8.40,0.00,DOMESTOS CITRUS FRESH 750ML,Cleaning Materials,
Wyre Council,http://opendatacommunities.org/doc/district-council/wyre,30/01/2024,Resources,Support Services,135B,Amazon Business,10/01/2024,RS155865,1.68,0.00,DOMESTOS CITRUS FRESH 750ML,Cleaning Materials,
Wyre Council,http://opendatacommunities.org/doc/district-council/wyre,30/01/2024,Resources,Support Services,135B,Amazon Business,10/01/2024,RS155855,8.40,0.00,DOMESTOS CITRUS FRESH 750ML,Cleaning Materials,
Wyre Council,http://opendatacommunities.org/doc/district-council/wyre,30/01/2024,Resources,Support Services,135B,AVC WISE LTD,04/01/2024,RS155605,449.50,0.00,INVOICE NUMBER: 106694,Commission Fees Etc.,
Wyre Council,http://opendatacommunities.org/doc/district-council/wyre,30/01/2024,Resources,Support Services,135B,AVC WISE LTD,25/01/2024,RS156257,422.54,0.00,INVOICE NUMBER: 106982,Commission Fees Etc.,
Wyre Council,http://opendatacommunities.org/doc/district-council/wyre,30/01/2024,Resources,Support Services,135B,Arthur J Gallagher Insurance Brokers Ltd,22/01/2024,RS156193,1000.00,0.00,Annual broking fee,Commission Fees Etc.,
Wyre Council,http://opendatacommunities.org/doc/district-council/wyre,30/01/2024,People and Places,Planning and Development Servs,132C,Nick Harrison,23/01/2024,PE156213,589.00,0.00,Photography for Fleetwood HAZ project,Community Development Initiatives,
Wyre Council,http://opendatacommunities.org/doc/district-council/wyre,30/01/2024,Resources,Support Services,135B,THE NETWORKING PEOPLE (TNP) LTD,04/01/2024,RS155661,1663.38,0.00,"FAP-221E-E - FortiAP: FortiAP-221E Indoor Wireless AP - Dual radio ; internal 6 277.23 20.0 1,663.38antennas; 1 x 10/100/1000 RJ45 po",Comp Hardware Purchases,
Wyre Council,http://opendatacommunities.org/doc/district-council/wyre,30/01/2024,Resources,Support Services,135B,THE NETWORKING PEOPLE (TNP) LTD,04/01/2024,RS155661,613.44,0.00,FC-10-PE221-247-02-36 - FortiAP Services: FortiAP-221E 3 Year FortiCare Premium Support,Comp Hardware Purchases,
Wyre Council,http://opendatacommunities.org/doc/district-council/wyre,30/01/2024,Resources,Support Services,135B,THE NETWORKING PEOPLE (TNP) LTD,04/01/2024,RS155661,30.00,0.00,Delivery,Comp Hardware Purchases,
Wyre Council,http://opendatacommunities.org/doc/district-council/wyre,30/01/2024,Resources,Support Services,135B,Amazon Business,17/01/2024,RS155623,12.04,0.00,SanDisk Extreme 32 GB microSDHC Memory C,Comp Hardware Purchases,
Wyre Council,http://opendatacommunities.org/doc/district-council/wyre,30/01/2024,Resources,Support Services,135B,Amazon Business,17/01/2024,RS155010,12.04,0.00,SanDisk Extreme 32 GB microSDHC Memory C,Comp Hardware Purchases,
Wyre Council,http://opendatacommunities.org/doc/district-council/wyre,30/01/2024,Resources,Support Services,135B,Amazon Business,08/01/2024,RS155524,29.98,0.00,"1 x Logitech K400 Plus Wireless Touch TV Keyboard With Easy Media Control and Built-in Touchpad, HTPC Keyboard for PC-connected TV, Windows, Android, Chrome OS, Laptop, QWERTY UK English Layout - Black.",Comp Hardware Purchases,
Wyre Council,http://opendatacommunities.org/doc/district-council/wyre,30/01/2024,Resources,Support Services,135B,Amazon Business,08/01/2024,RS155523,108.32,0.00,"1 x Logitech Brio Stream Webcam - Ultra 4K HD Video Calling, Noise-Cancelling Mic, HD Auto Light Correction, Wide Angle, Compatible with Microsoft Teams, Zoom, Google Meet on PC / Mac, Streaming - Black.",Comp Hardware Purchases,
Wyre Council,http://opendatacommunities.org/doc/district-council/wyre,30/01/2024,Resources,Support Services,135B,Amazon Business,18/01/2024,RS156064,308.32,0.00,"1 x Logitech H390 USB Headset with Noise-Cancelling Mic Black, 16 Count.",Comp Hardware Purchases,
Wyre Council,http://opendatacommunities.org/doc/district-council/wyre,30/01/2024,Resources,Support Services,135B,Amazon Business,23/01/2024,RS156194,26.79,0.00,VAT Adjustment x1 BW USB Gadget PC Sensor Hygrometer Thermometer Hid TEMPerHUM Temperature Humidity Recorder,Comp Hardware Purchases,
Wyre Council,http://opendatacommunities.org/doc/district-council/wyre,30/01/2024,Resources,Support Services,135B,Amazon Business,18/01/2024,RS156058,825.00,0.00,5 x Samsung Galaxy A34 5G EE 128-6-5G-gy. Sams Galaxy A34 5G EE 128GB/6GB graphite.,Comp Hardware Purchases,
Wyre Council,http://opendatacommunities.org/doc/district-council/wyre,30/01/2024,Resources,Support Services,135B,Amazon Business,08/01/2024,RS155527,57.48,0.00,1 x Power4Laptops UK Layout Black Replacement Laptop Keyboard Compatible With HP ProBook 450 G8 Plus 9.99 next day delivery.,Comp Hardware Purchases,
Wyre Council,http://opendatacommunities.org/doc/district-council/wyre,30/01/2024,Resources,Support Services,135B,Amazon Business,18/01/2024,RS156059,1239.25,0.00,"25 x UGREEN Revodok Pro 211 USB C Docking Station, 11-in-1 USB C Hub Dual HDMI 4K@60Hz, Single 8K@30Hz, 10Gbps USB-C and USB-A Data Ports, 100W PD, Ethernet, SD/TF, 3.5mm Audio for XPS, ThinkPad, Surface.",Comp Hardware Purchases,
Wyre Council,http://opendatacommunities.org/doc/district-council/wyre,30/01/2024,Resources,Support Services,135B,Amazon Business,18/01/2024,RS156063,712.25,0.00,25 x SUMVISION PD 3.0 Quick Charge 3.0 100W USB C GaN Dual Port Compact Smart Charger Power Delivery Travel Charger Compatible Latest Macbook Pro iPad Samsung Nintendo (UK DESIGN UK PLUG UK TECH SUPPORT).,Comp Hardware Purchases,
Wyre Council,http://opendatacommunities.org/doc/district-council/wyre,30/01/2024,Resources,Support Services,135B,Amazon Business,30/01/2024,RS156330,34.98,0.00,2 x 40W USB Multi Charger UK Plug USB Charging Station 5V 8A Multi Port USB Charger Hub with Display USB Power Supply compatible with iPhone iPad Android Phone and Multiple Devices.,Comp Hardware Purchases,
Wyre Council,http://opendatacommunities.org/doc/district-council/wyre,30/01/2024,Resources,Support Services,135B,Amazon Business,08/01/2024,RS155522,37.85,0.00,"4 x Extension Lead with 4 USB Slots (3.4A, 1 Type C and 3 USB-A Ports) ,POWSAF Power Strip Extension cord with 4 way plug extension Socket and 2M Extension Cable for Home Office Travel,Black.",Comp Hardware Purchases,
Wyre Council,http://opendatacommunities.org/doc/district-council/wyre,30/01/2024,Resources,Support Services,135B,Amazon Business,08/01/2024,RS155521,44.28,0.00,"4 x ExtraStar 4 Way Extension Lead with 2 USB Slots, 13A UK Plug Extension, Wall Mounted Power Strips with 3M/9.5FT Extension Cable - Black.",Comp Hardware Purchases,
Wyre Council,http://opendatacommunities.org/doc/district-council/wyre,30/01/2024,Resources,Support Services,135B,Amazon Business,08/01/2024,RS155524,82.42,0.00,1 x Logitech P710e Mobile Speaker.,Comp Hardware Purchases,
Wyre Council,http://opendatacommunities.org/doc/district-council/wyre,30/01/2024,Resources,Support Services,135B,OX IT Solutions Ltd,17/01/2024,RS156049,6264.60,0.00,"10 x HP 450 G9, 256 SSD,16Gb, i5-1235U, Iris XE, Win11 Pro",Comp Hardware Purchases,
Wyre Council,http://opendatacommunities.org/doc/district-council/wyre,30/01/2024,Resources,Support Services,135B,Amazon Business,30/01/2024,RS156331,328.96,0.00,"60 x AOUIA for Samsung A34 5G Case with 2 Screen Protector, Shockproof and Anti Scratch 360� Magnetic Ring Holder Stand Phone Cover for Samsung Galaxy A34 5G - Black-6.6``",Computer Stationery and Consumables,
Wyre Council,http://opendatacommunities.org/doc/district-council/wyre,30/01/2024,Resources,Support Services,135B,Amazon Business,30/01/2024,RS156284,133.67,0.00,"60 x AOUIA for Samsung A34 5G Case with 2 Screen Protector, Shockproof and Anti Scratch 360� Magnetic Ring Holder Stand Phone Cover for Samsung Galaxy A34 5G - Black-6.6``",Computer Stationery and Consumables,
Wyre Council,http://opendatacommunities.org/doc/district-council/wyre,30/01/2024,Resources,Support Services,135B,Amazon Business,30/01/2024,RS156332,154.20,0.00,"60 x AOUIA for Samsung A34 5G Case with 2 Screen Protector, Shockproof and Anti Scratch 360� Magnetic Ring Holder Stand Phone Cover for Samsung Galaxy A34 5G - Black-6.6``",Computer Stationery and Consumables,
Wyre Council,http://opendatacommunities.org/doc/district-council/wyre,30/01/2024,Resources,Support Services,135B,Amazon Business,18/01/2024,RS156065,51.40,0.00,"5 x AOUIA for Samsung A34 5G Case with 2 Screen Protector, Shockproof and Anti Scratch 360� Magnetic Ring Holder Stand Phone Cover for Samsung Galaxy A34 5G - Black-6.6``.",Computer Stationery and Consumables,
Wyre Council,http://opendatacommunities.org/doc/district-council/wyre,30/01/2024,Resources,Support Services,135B,Amazon Business,02/01/2024,RS155600,8.32,0.00,"2 x OneLeaf 80PCS Reusable Cable Ties, Black Adjustable 150mm Cord Organizer Ties, Multi-Purpose Hook Loop Cable Management Wire Ties for Organizing Home, Office, Data Centers.",Computer Stationery and Consumables,
Wyre Council,http://opendatacommunities.org/doc/district-council/wyre,30/01/2024,Finance,Support Services,135B,,24/01/2024,WPST00131376,6662.39,0.00,"22/01/2024INV12382053 PLURALSIGHT, LLC",Consultants Fees,
Wyre Council,http://opendatacommunities.org/doc/district-council/wyre,30/01/2024,People and Places,Planning and Development Servs,132C,Knight Kavanagh & Page,08/01/2024,PE155025,68.00,0.00,re PE155019,Consultants Fees,
Wyre Council,http://opendatacommunities.org/doc/district-council/wyre,30/01/2024,People and Places,Planning and Development Servs,132C,Knight Kavanagh & Page,25/01/2024,PE156264,15160.00,0.00,Green Infrastructure Audit and Strategy,Consultants Fees,
Wyre Council,http://opendatacommunities.org/doc/district-council/wyre,30/01/2024,People and Places,Environmental Services,132B,TJ Health Ltd,22/01/2024,PE156192,1650.00,0.00,Payment of Invoice ref INV153 for group 2 medical advice for taxi and private hire vehicle drivers from March 2023 to December 2023.,Consultants Fees,
Wyre Council,http://opendatacommunities.org/doc/district-council/wyre,30/01/2024,Resources,Planning and Development Servs,132C,Growth Lancashire Ltd,22/01/2024,RS156155,3406.25,0.00,"The production of six conservation area appraisals and management plans.  Planning policy 10k - 3591/42612 Remainder (ED) 17,250  3778/45273",Consultants Fees,
Wyre Council,http://opendatacommunities.org/doc/district-council/wyre,30/01/2024,People and Places,Planning and Development Servs,132C,Black Cat Building Consultancy Limited,22/01/2024,PE154935,23662.56,0.00,"Please undertake inspections of Wyre premises to establish the current reinstatement values to inform the Council�s building insurance cover.   All as per schedule discussed � cost of works 23,200.00",Consultants Fees,
Wyre Council,http://opendatacommunities.org/doc/district-council/wyre,30/01/2024,People and Places,Environmental Services,132B,Bloom Procurement Services Ltd,31/01/2024,PE156366,11750.00,0.00,"Preparation of Heat Decarbonisation Plans Evaluation
Part of Low Carbon Skills Fund Grant",Consultants Fees,
Wyre Council,http://opendatacommunities.org/doc/district-council/wyre,30/01/2024,People and Places,Environmental Services,132B,Bloom Procurement Services Ltd,31/01/2024,PE156365,2095.00,0.00,"Preparation of Heat Decarbonisation Plans Evaluation
Part of Low Carbon Skills Fund Grant",Consultants Fees,
Wyre Council,http://opendatacommunities.org/doc/district-council/wyre,30/01/2024,People and Places,"Cultural, Environ and Planning",137B,Lancashire County Council,23/01/2024,PE156201,-24943.91,0.00, VAT correction Wyre and Fylde Districts Lancashire County Council Singleton Depot Grange Road Singleton FY6 8LP Install vehicular drop cros,Consultants Fees (New CCR),
Wyre Council,http://opendatacommunities.org/doc/district-council/wyre,30/01/2024,People and Places,"Cultural, Environ and Planning",137B,The Lancashire Wildlife Trust Ltd,12/01/2024,PE155928,17978.80,0.00,Contribution of Employment of Engagement Officer,Consultants Fees (New CCR),
Wyre Council,http://opendatacommunities.org/doc/district-council/wyre,30/01/2024,People and Places,"Cultural, Environ and Planning",137B,Lancaster City Council,16/01/2024,PE155598,20000.00,0.00,Project Management Services for the Our Future Coast Scheme,Consultants Fees (New CCR),
Wyre Council,http://opendatacommunities.org/doc/district-council/wyre,30/01/2024,People and Places,"Cultural, Environ and Planning",137B,Purcell Architecture Limited,16/01/2024,PE155611,9065.63,0.00,"To professional services for Fleetwood Market Project, prolongation fees to end of Jan 24",Consultants Fees (New CCR),
Wyre Council,http://opendatacommunities.org/doc/district-council/wyre,30/01/2024,People and Places,"Cultural, Environ and Planning",137B,Susannah Bleakley Consulting,18/01/2024,PE156118,286.29,0.00,ECO-CoBS Project,Consultants Fees (New CCR),
Wyre Council,http://opendatacommunities.org/doc/district-council/wyre,30/01/2024,People and Places,"Cultural, Environ and Planning",137B,Susannah Bleakley Consulting,10/01/2024,PE155891,4247.95,0.00,Additional works for My Future Coast,Consultants Fees (New CCR),
Wyre Council,http://opendatacommunities.org/doc/district-council/wyre,30/01/2024,People and Places,Support Services,135B,Blackpool Skip Hire LTD,17/01/2024,PE156042,225.00,0.00,Empty skips at Cemeteries in Wyre,Containers Skips and Hire,
Wyre Council,http://opendatacommunities.org/doc/district-council/wyre,30/01/2024,People and Places,"Cultural, Environ and Planning",137B,MC & MA Stewart (Haulage) LTD,31/01/2024,PE156368,610.00,0.00,"Supply and deliver 20 tonne of Top soil to Fleetwood Cemetery, Beach Road, Fleetwood
30.50 per tonne based on a 20/30 tonne load

Delivery week commencing 20th November 2023 (PLEASE AVOID TUESDAY, THANK YOU)

Contact Andy Milton prior to delivery on",Contract (New CCR),
Wyre Council,http://opendatacommunities.org/doc/district-council/wyre,30/01/2024,People and Places,"Cultural, Environ and Planning",137B,DANFO (UK) LTD,09/01/2024,PE155819,64190.30,0.00,"Please Deliver and Commission WECP modular facility Prices as per specification quote Cost include of:  117 planning costs, and reduced groundworks costs of 5,510.  Agreed that Danfo will then invoice 20% against the  Order as the project initiation sum",Contract (New CCR),
Wyre Council,http://opendatacommunities.org/doc/district-council/wyre,30/01/2024,People and Places,"Cultural, Environ and Planning",137B,F PARKINSON LTD,17/01/2024,PE155570,7143.33,0.00,Fleetwood Market.  Annex & Associated Works,Contract (New CCR),
Wyre Council,http://opendatacommunities.org/doc/district-council/wyre,30/01/2024,People and Places,"Cultural, Environ and Planning",137B,F PARKINSON LTD,16/01/2024,PE156026,29345.68,0.00,Fleetwood Market Contract Works 2023/24,Contract (New CCR),
Wyre Council,http://opendatacommunities.org/doc/district-council/wyre,30/01/2024,People and Places,"Cultural, Environ and Planning",137B,F PARKINSON LTD,17/01/2024,PE156025,77324.89,0.00,Fleetwood Market Refurbishments.  Additional Works Brought Forward into the Main Contract,Contract (New CCR),
Wyre Council,http://opendatacommunities.org/doc/district-council/wyre,30/01/2024,People and Places,"Cultural, Environ and Planning",137B,Balfour Beatty Civil Engineering Ltd,18/01/2024,PE156060,1520374.19,0.00,"FAO Chloe SumnerBalfour Beatty Civil Engineering LtdChaddock Lane WorsleyManchesterM28 1XYWyre Beach Management Scheme Phase 2 � Construction Works.Cost 35,601,957.69Carl Green / Mike Wilkinson",Contract (New CCR),
Wyre Council,http://opendatacommunities.org/doc/district-council/wyre,30/01/2024,People and Places,Support Services,135B,Sefton Council,26/01/2024,PE156273,755.00,0.00,Northern Coastal Sub-group Contribution 2023-24Customer ID: 30196323,Corporate and Professional Subscriptions,
Wyre Council,http://opendatacommunities.org/doc/district-council/wyre,30/01/2024,Resources,Corporate and Democratic Core,131A,Local Government Information Unit,17/01/2024,RS156051,3419.00,0.00,LGiU 2024 Membership Fee (1 January - 31 December),Corporate and Professional Subscriptions,
Wyre Council,http://opendatacommunities.org/doc/district-council/wyre,30/01/2024,People and Places,Support Services,135B,South Tyneside Council,16/01/2024,PE156015,500.00,0.00,2023/24 LGA Coastal SIG Subscription,Corporate and Professional Subscriptions,
Wyre Council,http://opendatacommunities.org/doc/district-council/wyre,30/01/2024,Finance,Current Assets,130B,,03/01/2024,WPST00129341,16807.34,0.00,22/12/23 Ctax Refunds,Council Tax Refunds,
Wyre Council,http://opendatacommunities.org/doc/district-council/wyre,30/01/2024,Finance,Current Assets,130B,,16/01/2024,WPST00130657,19878.04,0.00,12/01/24 Ctax refunds,Council Tax Refunds,
Wyre Council,http://opendatacommunities.org/doc/district-council/wyre,30/01/2024,Finance,Current Assets,130B,,09/01/2024,WPST00130137,12881.01,0.00,5/01/24 Ctax refunds,Council Tax Refunds,
Wyre Council,http://opendatacommunities.org/doc/district-council/wyre,30/01/2024,Finance,Current Assets,130B,,30/01/2024,WPST00131912,88816.96,0.00,NNDR Refunds 26/01/24,Council Tax Refunds,
Wyre Council,http://opendatacommunities.org/doc/district-council/wyre,30/01/2024,Finance,Current Assets,130B,,23/01/2024,WPST00131230,17262.88,0.00,Ctax Refunds 19/01/24,Council Tax Refunds,
Wyre Council,http://opendatacommunities.org/doc/district-council/wyre,30/01/2024,People and Places,Cultural and Related Services,132A,Hesketh Press LTD,22/01/2024,PE156186,640.00,0.00,For the contribution towards the re-print of the Little Book of Hope.,Creative People and Places Contribution,
Wyre Council,http://opendatacommunities.org/doc/district-council/wyre,30/01/2024,People and Places,Cultural and Related Services,132A,Sunshine Events UK LTD T/A the fun experts,25/01/2024,PE156154,3850.00,0.00,"For the provision of an activity package and staffing for the Family Festival at Cottam Hall Playing fields on Saturday 27th July 1100hrs - 1700hrs, and being site ready by 1000hrs.ProductQuantityComperes and Event Hosts * - Power required1Face",Creative People and Places Contribution,
Wyre Council,http://opendatacommunities.org/doc/district-council/wyre,30/01/2024,People and Places,Cultural and Related Services,132A,UK Media & Events Ltd,25/01/2024,PE156117,6250.00,0.00,"For the provision of the talent for the Family Festival at Cottam Hall Playing Fields on Saturday 27th July 2024.A 50% deposit required on the raising of this order, through invoice.Total 12,500",Creative People and Places Contribution,
Wyre Council,http://opendatacommunities.org/doc/district-council/wyre,30/01/2024,People and Places,Support Services,135B,EK Motors Factors LTD,16/01/2024,PE156008,29.91,0.00,Parts,Daywork Materials (Excl.Tyres),
Wyre Council,http://opendatacommunities.org/doc/district-council/wyre,30/01/2024,People and Places,Housing General Fund,134A,EK Motors Factors LTD,16/01/2024,PE155999,139.04,0.00,Parts,Daywork Materials (Excl.Tyres),
Wyre Council,http://opendatacommunities.org/doc/district-council/wyre,30/01/2024,People and Places,Support Services,135B,EK Motors Factors LTD,16/01/2024,PE156003,42.62,0.00,Parts,Daywork Materials (Excl.Tyres),
Wyre Council,http://opendatacommunities.org/doc/district-council/wyre,30/01/2024,People and Places,Support Services,135B,EK Motors Factors LTD,16/01/2024,PE156007,91.91,0.00,Parts,Daywork Materials (Excl.Tyres),
Wyre Council,http://opendatacommunities.org/doc/district-council/wyre,30/01/2024,People and Places,Environmental Services,132B,EK Motors Factors LTD,16/01/2024,PE155997,35.90,0.00,Parts,Daywork Materials (Excl.Tyres),
Wyre Council,http://opendatacommunities.org/doc/district-council/wyre,30/01/2024,People and Places,Support Services,135B,EK Motors Factors LTD,16/01/2024,PE156001,9.06,0.00,Parts,Daywork Materials (Excl.Tyres),
Wyre Council,http://opendatacommunities.org/doc/district-council/wyre,30/01/2024,People and Places,Support Services,135B,EK Motors Factors LTD,16/01/2024,PE156000,72.01,0.00,Parts,Daywork Materials (Excl.Tyres),
Wyre Council,http://opendatacommunities.org/doc/district-council/wyre,30/01/2024,People and Places,Support Services,135B,EK Motors Factors LTD,16/01/2024,PE156002,70.54,0.00,Parts,Daywork Materials (Excl.Tyres),
Wyre Council,http://opendatacommunities.org/doc/district-council/wyre,30/01/2024,People and Places,Environmental Services,132B,EK Motors Factors LTD,16/01/2024,PE155998,45.32,0.00,Parts,Daywork Materials (Excl.Tyres),
Wyre Council,http://opendatacommunities.org/doc/district-council/wyre,30/01/2024,People and Places,Support Services,135B,EK Motors Factors LTD,16/01/2024,PE156006,8.45,0.00,Parts,Daywork Materials (Excl.Tyres),
Wyre Council,http://opendatacommunities.org/doc/district-council/wyre,30/01/2024,People and Places,Support Services,135B,EK Motors Factors LTD,16/01/2024,PE156005,32.50,0.00,Parts,Daywork Materials (Excl.Tyres),
Wyre Council,http://opendatacommunities.org/doc/district-council/wyre,30/01/2024,People and Places,Support Services,135B,EK Motors Factors LTD,16/01/2024,PE156004,4.06,0.00,Parts,Daywork Materials (Excl.Tyres),
Wyre Council,http://opendatacommunities.org/doc/district-council/wyre,30/01/2024,People and Places,Support Services,135B,Amazon Business,16/01/2024,PE155910,31.58,0.00,Wheelbarrow wheel  Gary Scott,Daywork Materials (Excl.Tyres),
Wyre Council,http://opendatacommunities.org/doc/district-council/wyre,30/01/2024,People and Places,Support Services,135B,Amazon Business,16/01/2024,PE155931,7.24,0.00,Rocker switch  Gary Scott,Daywork Materials (Excl.Tyres),
Wyre Council,http://opendatacommunities.org/doc/district-council/wyre,30/01/2024,People and Places,Support Services,135B,Amazon Business,15/01/2024,PE155748,47.45,0.00,Rotary roof vent  Gary Scott,Daywork Materials (Excl.Tyres),
Wyre Council,http://opendatacommunities.org/doc/district-council/wyre,30/01/2024,People and Places,Environmental Services,132B,Amazon Business,16/01/2024,PE155930,11.06,0.00,number plate light  Gary Scott,Daywork Materials (Excl.Tyres),
Wyre Council,http://opendatacommunities.org/doc/district-council/wyre,30/01/2024,People and Places,Cultural and Related Services,132A,PDM INDUSTRIES T/A PETE MARQUIS CONTRACTORS,15/01/2024,PE153330,3240.00,0.00,demolition of pitch and putt kiosk on Fleetwood Esplanade,Demolition etc.,
Wyre Council,http://opendatacommunities.org/doc/district-council/wyre,30/01/2024,People and Places,Cultural and Related Services,132A,Robert Pinkus & Co LLP,04/01/2024,PE155627,1200.00,0.00,Marsh Mill: Preparing and reporting following notice of Remedy Defects from landlord,Dilapidations Work,
Wyre Council,http://opendatacommunities.org/doc/district-council/wyre,30/01/2024,People and Places,Cultural and Related Services,132A,Carlsberg UK LTD,03/01/2024,PE155650,1130.25,0.00,Bar stock,Drinks,
Wyre Council,http://opendatacommunities.org/doc/district-council/wyre,30/01/2024,People and Places,Cultural and Related Services,132A,L W C Drinks LTD,03/01/2024,PE155644,776.20,0.00,Bar stock,Drinks,
Wyre Council,http://opendatacommunities.org/doc/district-council/wyre,30/01/2024,People and Places,Cultural and Related Services,132A,N Power LTD,04/01/2024,PE155603,-4417.66,0.00,"credit for 2500000676813 Swimming & Fitness Centre, Breck Rd, Poulton, FY9 7HU 01/11/23 to 30/11/23 (15,597.80kWh)",Electricity,
Wyre Council,http://opendatacommunities.org/doc/district-council/wyre,30/01/2024,People and Places,Cultural and Related Services,132A,N Power LTD,11/01/2024,PE155886,3901.34,0.00,"Electric 2500000676813 Swimming & Fitness Centre, Breck Road, FY6 7HU 01/12/23 to 31/12/23 (13292.800 kWh)",Electricity,
Wyre Council,http://opendatacommunities.org/doc/district-council/wyre,30/01/2024,People and Places,Cultural and Related Services,132A,N Power LTD,11/01/2024,PE155602,3945.85,0.00,"Electricity charges for the period 01/11/23-30/11/23 for swimming and fitness centre breck road poulton, MPAN 2500000676813 total kWh used 13552.400",Electricity,
Wyre Council,http://opendatacommunities.org/doc/district-council/wyre,30/01/2024,People and Places,Environmental Services,132B,N Power LTD,05/01/2024,PE155678,9.58,0.00,1610036002855 unmetered supply 01/12/23  to 31/12/23 (1.4 kWh),Electricity,
Wyre Council,http://opendatacommunities.org/doc/district-council/wyre,30/01/2024,People and Places,Environmental Services,132B,N Power LTD,05/01/2024,PE155677,348.30,0.00,1610036002846 unmetered supply lighting 01/12/23 to 31/12/23 (1046.8 kWh),Electricity,
Wyre Council,http://opendatacommunities.org/doc/district-council/wyre,30/01/2024,People and Places,Parking Services,133F,N Power LTD,05/01/2024,PE155676,506.46,0.00,1620000821031 unmetered supply lighting 01/12/23 to 31/12/23 (1409.3 kWh),Electricity,
Wyre Council,http://opendatacommunities.org/doc/district-council/wyre,30/01/2024,People and Places,Parking Services,133F,N Power LTD,05/01/2024,PE155677,1953.32,0.00,1610036002846 unmetered supply lighting 01/12/23 to 31/12/23 (5870.8 kWh),Electricity,
Wyre Council,http://opendatacommunities.org/doc/district-council/wyre,30/01/2024,People and Places,Parking Services,133F,N Power LTD,05/01/2024,PE155678,53.74,0.00,1610036002855 unmetered supply 01/12/23  to 31/12/23 (8.1kWh),Electricity,
Wyre Council,http://opendatacommunities.org/doc/district-council/wyre,30/01/2024,People and Places,Cultural and Related Services,132A,N Power LTD,11/01/2024,PE155887,1699.40,0.00,Electric 1600000125794 Garstang Swimming Pool PR3 1WJ 01/12/23 to 31/12/23 (6515.900 kWh),Electricity,
Wyre Council,http://opendatacommunities.org/doc/district-council/wyre,30/01/2024,People and Places,Cultural and Related Services,132A,N Power LTD,11/01/2024,PE155884,7537.09,0.00,Electric 1600000162884 Fleetwood Leisure Centre FY7 6HF 01/12/23 to 31/12/23 (30637.500 kWh),Electricity,
Wyre Council,http://opendatacommunities.org/doc/district-council/wyre,30/01/2024,People and Places,Cultural and Related Services,132A,N Power LTD,11/01/2024,PE155885,7025.58,0.00,Electric 2500000793090 Thornton Leisure Centre FY5 3SX 01/12/23 to 31/12/23 (25857.800 kWh),Electricity,
Wyre Council,http://opendatacommunities.org/doc/district-council/wyre,30/01/2024,People and Places,Cultural and Related Services,132A,N Power LTD,16/01/2024,PE155959,1049.69,0.00,1610023220857 YMCA Garstang Leisure Centre 01/12/23 to 31/12/23 (3406.40kWh),Electricity,
Wyre Council,http://opendatacommunities.org/doc/district-council/wyre,30/01/2024,People and Places,Environmental Services,132B,OPUS Energy LTD,22/01/2024,PE155988,738.06,0.00,"1610004347328 Garstang Road East Cemetery, Garstang Road East, Poulton FY6 7SN 01/12/23-31/12/232694.00 kWh",Electricity,
Wyre Council,http://opendatacommunities.org/doc/district-council/wyre,30/01/2024,People and Places,Cultural and Related Services,132A,Corona Energy Retail 4 Limited,22/01/2024,PE155861,307.42,0.00,1640000233705 Coastal Observation Point  Rossal Point Fleetwood FY78AF 01/12/23 to 31/12/23 (833kWh),Electricity,
Wyre Council,http://opendatacommunities.org/doc/district-council/wyre,30/01/2024,People and Places,Cultural and Related Services,132A,Corona Energy Retail 4 Limited,22/01/2024,PE155858,9054.54,0.00,1600000162875 Marine Hall The Esplanade  Fleetwood FY76HF 01/12/23 to 31/12/23 (22978kWh),Electricity,
Wyre Council,http://opendatacommunities.org/doc/district-council/wyre,30/01/2024,People and Places,Cultural and Related Services,132A,Corona Energy Retail 4 Limited,10/01/2024,PE155774,215.92,0.00,1610004773866 Wyre Borough Council Lecture  Hall Lecture Hall FY54AD 01/03/23 to 01/04/23 E(156kWh),Electricity,
Wyre Council,http://opendatacommunities.org/doc/district-council/wyre,30/01/2024,People and Places,Cultural and Related Services,132A,Corona Energy Retail 4 Limited,10/01/2024,PE155803,206.09,0.00,1610004773866 Wyre Borough Council Lecture  Hall Lecture Hall FY54AD 01/02/23 to 01/03/23 E(147kWh),Electricity,
Wyre Council,http://opendatacommunities.org/doc/district-council/wyre,30/01/2024,People and Places,Cultural and Related Services,132A,Corona Energy Retail 4 Limited,10/01/2024,PE155804,325.38,0.00,1610004773866 Wyre Borough Council Lecture  Hall Lecture Hall FY54AD 01/04/23 to 01/05/23 E(122kWh),Electricity,
Wyre Council,http://opendatacommunities.org/doc/district-council/wyre,30/01/2024,People and Places,Cultural and Related Services,132A,Corona Energy Retail 4 Limited,10/01/2024,PE155806,313.91,0.00,1610004773866 Wyre Borough Council Lecture  Hall Lecture Hall FY54AD 01/09/23 to 01/10/23 E(117kWh),Electricity,
Wyre Council,http://opendatacommunities.org/doc/district-council/wyre,30/01/2024,People and Places,Cultural and Related Services,132A,Corona Energy Retail 4 Limited,10/01/2024,PE155805,304.73,0.00,1610004773866 Wyre Borough Council Lecture  Hall Lecture Hall FY54AD 01/08/23 to 01/09/23 E(113kWh),Electricity,
Wyre Council,http://opendatacommunities.org/doc/district-council/wyre,30/01/2024,People and Places,Cultural and Related Services,132A,Corona Energy Retail 4 Limited,10/01/2024,PE155777,300.14,0.00,1610004773866 Wyre Borough Council Lecture  Hall Lecture Hall FY54AD 01/07/23 to 01/08/23 E(111kWh),Electricity,
Wyre Council,http://opendatacommunities.org/doc/district-council/wyre,30/01/2024,People and Places,Cultural and Related Services,132A,Corona Energy Retail 4 Limited,10/01/2024,PE155776,297.85,0.00,1610004773866 Wyre Borough Council Lecture  Hall Lecture Hall FY54AD 01/06/23 to 01/07/23 E(110kWh),Electricity,
Wyre Council,http://opendatacommunities.org/doc/district-council/wyre,30/01/2024,People and Places,Cultural and Related Services,132A,Corona Energy Retail 4 Limited,10/01/2024,PE155775,313.91,0.00,1610004773866 Wyre Borough Council Lecture  Hall Lecture Hall FY54AD 01/05/23 to 01/06/23 E(117kWh),Electricity,
Wyre Council,http://opendatacommunities.org/doc/district-council/wyre,30/01/2024,People and Places,Cultural and Related Services,132A,Corona Energy Retail 4 Limited,10/01/2024,PE155760,-1980.81,0.00,1610004773866 Wyre Borough Council Lecture Hall Lecture Hall FY54AD 01/04/23 to 01/05/23 E(835kWh),Electricity,
Wyre Council,http://opendatacommunities.org/doc/district-council/wyre,30/01/2024,People and Places,Cultural and Related Services,132A,Corona Energy Retail 4 Limited,10/01/2024,PE155769,-1172.60,0.00,1610004773866 Wyre Borough Council Lecture Hall Lecture Hall FY54AD 01/02/23 to 01/03/23 E(1010kWh),Electricity,
Wyre Council,http://opendatacommunities.org/doc/district-council/wyre,30/01/2024,People and Places,Cultural and Related Services,132A,Corona Energy Retail 4 Limited,10/01/2024,PE155770,-1242.92,0.00,1610004773866 Wyre Borough Council Lecture Hall Lecture Hall FY54AD 01/03/23 to 01/04/23 E(1073kWh),Electricity,
Wyre Council,http://opendatacommunities.org/doc/district-council/wyre,30/01/2024,People and Places,Cultural and Related Services,132A,Corona Energy Retail 4 Limited,10/01/2024,PE155761,-1897.37,0.00,1610004773866 Wyre Borough Council Lecture Hall Lecture Hall FY54AD 01/05/23 to 01/06/23 E(799kWh),Electricity,
Wyre Council,http://opendatacommunities.org/doc/district-council/wyre,30/01/2024,People and Places,Cultural and Related Services,132A,Corona Energy Retail 4 Limited,10/01/2024,PE155787,-1579.83,0.00,1610004773866 Wyre Borough Council Lecture Hall Lecture Hall FY54AD 01/09/23 to 01/10/23 E(662kWh),Electricity,
Wyre Council,http://opendatacommunities.org/doc/district-council/wyre,30/01/2024,People and Places,Cultural and Related Services,132A,Corona Energy Retail 4 Limited,10/01/2024,PE155785,-1503.34,0.00,1610004773866 Wyre Borough Council Lecture Hall Lecture Hall FY54AD 01/07/23 to 01/08/23 E(629kWh),Electricity,
Wyre Council,http://opendatacommunities.org/doc/district-council/wyre,30/01/2024,People and Places,Cultural and Related Services,132A,Corona Energy Retail 4 Limited,10/01/2024,PE155786,-1526.53,0.00,1610004773866 Wyre Borough Council Lecture Hall Lecture Hall FY54AD 01/08/23 to 01/09/23 E(639kWh),Electricity,
Wyre Council,http://opendatacommunities.org/doc/district-council/wyre,30/01/2024,People and Places,Cultural and Related Services,132A,Corona Energy Retail 4 Limited,10/01/2024,PE155784,-1788.43,0.00,1610004773866 Wyre Borough Council Lecture Hall Lecture Hall FY54AD 01/06/23 to 01/07/23 E(752kWh),Electricity,
Wyre Council,http://opendatacommunities.org/doc/district-council/wyre,30/01/2024,People and Places,Cultural and Related Services,132A,Corona Energy Retail 4 Limited,10/01/2024,PE155835,15.19,0.00,1610004305443 Sports Pavilion Sports  Pavilion Cottam Hall FY67RH 01/09/21 to 01/10/21 E(0kWh),Electricity,
Wyre Council,http://opendatacommunities.org/doc/district-council/wyre,30/01/2024,People and Places,Cultural and Related Services,132A,Corona Energy Retail 4 Limited,10/01/2024,PE155834,15.19,0.00,1610004305443 Sports Pavilion Sports  Pavilion Cottam Hall FY67RH 01/11/21 to 01/12/21 E(0kWh),Electricity,
Wyre Council,http://opendatacommunities.org/doc/district-council/wyre,30/01/2024,People and Places,Cultural and Related Services,132A,Corona Energy Retail 4 Limited,10/01/2024,PE155833,15.19,0.00,1610004305443 Sports Pavilion Sports  Pavilion Cottam Hall FY67RH 01/04/22 to 01/05/22 E(0kWh),Electricity,
Wyre Council,http://opendatacommunities.org/doc/district-council/wyre,30/01/2024,People and Places,Cultural and Related Services,132A,Corona Energy Retail 4 Limited,10/01/2024,PE155831,15.19,0.00,1610004305443 Sports Pavilion Sports  Pavilion Cottam Hall FY67RH 01/07/21 to 01/08/21 E(0kWh),Electricity,
Wyre Council,http://opendatacommunities.org/doc/district-council/wyre,30/01/2024,People and Places,Cultural and Related Services,132A,Corona Energy Retail 4 Limited,22/01/2024,PE155859,1107.69,0.00,1630000670291 Promendae Cafe North  Promenade Thornton-Cleveleys FY51DB 01/12/23 to 31/12/23 (2949kWh),Electricity,
Wyre Council,http://opendatacommunities.org/doc/district-council/wyre,30/01/2024,People and Places,Cultural and Related Services,132A,Corona Energy Retail 4 Limited,10/01/2024,PE155778,225.89,0.00,1610004863632 Beach Bungalows The Esplanade  Beach Bungalows FY76QD 01/09/23 to 01/10/23 E(147kWh),Electricity,
Wyre Council,http://opendatacommunities.org/doc/district-council/wyre,30/01/2024,People and Places,Cultural and Related Services,132A,Corona Energy Retail 4 Limited,10/01/2024,PE155773,8.14,0.00,1610004305443 Sports Pavilion Sports  Pavilion Cottam Hall FY67RH 01/07/23 to 01/08/23 E(0kWh),Electricity,
Wyre Council,http://opendatacommunities.org/doc/district-council/wyre,30/01/2024,People and Places,Cultural and Related Services,132A,Corona Energy Retail 4 Limited,10/01/2024,PE155772,8.14,0.00,1610004305443 Sports Pavilion Sports  Pavilion Cottam Hall FY67RH 01/01/23 to 01/02/23 E(0kWh),Electricity,
Wyre Council,http://opendatacommunities.org/doc/district-council/wyre,30/01/2024,People and Places,Cultural and Related Services,132A,Corona Energy Retail 4 Limited,10/01/2024,PE155771,8.14,0.00,1610004305443 Sports Pavilion Sports  Pavilion Cottam Hall FY67RH 01/12/22 to 01/01/23 E(0kWh),Electricity,
Wyre Council,http://opendatacommunities.org/doc/district-council/wyre,30/01/2024,People and Places,Cultural and Related Services,132A,Corona Energy Retail 4 Limited,10/01/2024,PE155799,31.46,0.00,1610004305443 Sports Pavilion Sports  Pavilion Cottam Hall FY67RH 01/09/23 to 01/10/23 E(39kWh),Electricity,
Wyre Council,http://opendatacommunities.org/doc/district-council/wyre,30/01/2024,People and Places,Cultural and Related Services,132A,Corona Energy Retail 4 Limited,10/01/2024,PE155798,8.14,0.00,1610004305443 Sports Pavilion Sports  Pavilion Cottam Hall FY67RH 01/08/23 to 01/09/23 E(0kWh),Electricity,
Wyre Council,http://opendatacommunities.org/doc/district-council/wyre,30/01/2024,People and Places,Cultural and Related Services,132A,Corona Energy Retail 4 Limited,10/01/2024,PE155797,8.14,0.00,1610004305443 Sports Pavilion Sports  Pavilion Cottam Hall FY67RH 01/06/23 to 01/07/23 E(0kWh),Electricity,
Wyre Council,http://opendatacommunities.org/doc/district-council/wyre,30/01/2024,People and Places,Cultural and Related Services,132A,Corona Energy Retail 4 Limited,10/01/2024,PE155796,8.14,0.00,1610004305443 Sports Pavilion Sports  Pavilion Cottam Hall FY67RH 01/05/23 to 01/06/23 E(0kWh),Electricity,
Wyre Council,http://opendatacommunities.org/doc/district-council/wyre,30/01/2024,People and Places,Cultural and Related Services,132A,Corona Energy Retail 4 Limited,10/01/2024,PE155795,8.14,0.00,1610004305443 Sports Pavilion Sports  Pavilion Cottam Hall FY67RH 01/04/23 to 01/05/23 E(0kWh),Electricity,
Wyre Council,http://opendatacommunities.org/doc/district-council/wyre,30/01/2024,People and Places,Cultural and Related Services,132A,Corona Energy Retail 4 Limited,10/01/2024,PE155794,8.14,0.00,1610004305443 Sports Pavilion Sports  Pavilion Cottam Hall FY67RH 01/03/23 to 01/04/23 E(0kWh),Electricity,
Wyre Council,http://opendatacommunities.org/doc/district-council/wyre,30/01/2024,People and Places,Cultural and Related Services,132A,Corona Energy Retail 4 Limited,10/01/2024,PE155793,8.14,0.00,1610004305443 Sports Pavilion Sports  Pavilion Cottam Hall FY67RH 01/02/23 to 01/03/23 E(0kWh),Electricity,
Wyre Council,http://opendatacommunities.org/doc/district-council/wyre,30/01/2024,People and Places,Cultural and Related Services,132A,Corona Energy Retail 4 Limited,10/01/2024,PE155792,8.14,0.00,1610004305443 Sports Pavilion Sports  Pavilion Cottam Hall FY67RH 01/11/22 to 01/12/22 E(0kWh),Electricity,
Wyre Council,http://opendatacommunities.org/doc/district-council/wyre,30/01/2024,People and Places,Cultural and Related Services,132A,Corona Energy Retail 4 Limited,10/01/2024,PE155791,8.14,0.00,1610004305443 Sports Pavilion Sports  Pavilion Cottam Hall FY67RH 01/10/22 to 01/11/22 E(0kWh),Electricity,
Wyre Council,http://opendatacommunities.org/doc/district-council/wyre,30/01/2024,People and Places,Cultural and Related Services,132A,Corona Energy Retail 4 Limited,10/01/2024,PE155790,15.19,0.00,1610004305443 Sports Pavilion Sports  Pavilion Cottam Hall FY67RH 01/09/22 to 01/10/22 E(0kWh),Electricity,
Wyre Council,http://opendatacommunities.org/doc/district-council/wyre,30/01/2024,People and Places,Cultural and Related Services,132A,Corona Energy Retail 4 Limited,10/01/2024,PE155827,15.19,0.00,1610004305443 Sports Pavilion Sports  Pavilion Cottam Hall FY67RH 01/03/22 to 01/04/22 E(0kWh),Electricity,
Wyre Council,http://opendatacommunities.org/doc/district-council/wyre,30/01/2024,People and Places,Cultural and Related Services,132A,Corona Energy Retail 4 Limited,10/01/2024,PE155823,15.19,0.00,1610004305443 Sports Pavilion Sports  Pavilion Cottam Hall FY67RH 01/01/22 to 01/02/22 E(0kWh),Electricity,
Wyre Council,http://opendatacommunities.org/doc/district-council/wyre,30/01/2024,People and Places,Cultural and Related Services,132A,Corona Energy Retail 4 Limited,10/01/2024,PE155846,15.19,0.00,1610004305443 Sports Pavilion Sports  Pavilion Cottam Hall FY67RH 01/08/21 to 01/09/21 E(0kWh),Electricity,
Wyre Council,http://opendatacommunities.org/doc/district-council/wyre,30/01/2024,People and Places,Cultural and Related Services,132A,Corona Energy Retail 4 Limited,10/01/2024,PE155836,15.19,0.00,1610004305443 Sports Pavilion Sports  Pavilion Cottam Hall FY67RH 01/05/21 to 01/06/21 E(0kWh),Electricity,
Wyre Council,http://opendatacommunities.org/doc/district-council/wyre,30/01/2024,People and Places,Cultural and Related Services,132A,Corona Energy Retail 4 Limited,10/01/2024,PE155851,15.19,0.00,1610004305443 Sports Pavilion Sports  Pavilion Cottam Hall FY67RH 07/04/21 to 01/05/21 C(0kWh),Electricity,
Wyre Council,http://opendatacommunities.org/doc/district-council/wyre,30/01/2024,People and Places,Cultural and Related Services,132A,Corona Energy Retail 4 Limited,10/01/2024,PE155850,15.19,0.00,1610004305443 Sports Pavilion Sports  Pavilion Cottam Hall FY67RH 01/02/22 to 01/03/22 E(0kWh),Electricity,
Wyre Council,http://opendatacommunities.org/doc/district-council/wyre,30/01/2024,People and Places,Cultural and Related Services,132A,Corona Energy Retail 4 Limited,10/01/2024,PE155849,15.19,0.00,1610004305443 Sports Pavilion Sports  Pavilion Cottam Hall FY67RH 01/12/21 to 01/01/22 E(0kWh),Electricity,
Wyre Council,http://opendatacommunities.org/doc/district-council/wyre,30/01/2024,People and Places,Cultural and Related Services,132A,Corona Energy Retail 4 Limited,10/01/2024,PE155848,15.19,0.00,1610004305443 Sports Pavilion Sports  Pavilion Cottam Hall FY67RH 01/06/22 to 01/07/22 E(0kWh),Electricity,
Wyre Council,http://opendatacommunities.org/doc/district-council/wyre,30/01/2024,People and Places,Cultural and Related Services,132A,Corona Energy Retail 4 Limited,10/01/2024,PE155847,15.19,0.00,1610004305443 Sports Pavilion Sports  Pavilion Cottam Hall FY67RH 01/05/22 to 01/06/22 E(0kWh),Electricity,
Wyre Council,http://opendatacommunities.org/doc/district-council/wyre,30/01/2024,People and Places,Environmental Services,132B,Corona Energy Retail 4 Limited,10/01/2024,PE155802,379.10,0.00,1610004742413 Stanah Pumphouse 11 River  Road Stanah Pumphouse 11 FY55LR 01/09/23 to 01/10/23 E(468kWh),Electricity,
Wyre Council,http://opendatacommunities.org/doc/district-council/wyre,30/01/2024,People and Places,Planning and Development Servs,132C,Corona Energy Retail 4 Limited,22/01/2024,PE155860,2604.86,0.00,1640000184606 Council Depot Copse Road  Fleetwood FY76RP 01/12/23 to 31/12/23 (7120kWh),Electricity,
Wyre Council,http://opendatacommunities.org/doc/district-council/wyre,30/01/2024,People and Places,Cultural and Related Services,132A,Corona Energy Retail 4 Limited,10/01/2024,PE155750,-603.23,0.00,1650000008330 The Mount Pavilion Mount Road Fleetwood FY76EZ 01/10/23 to 01/11/23 E(1228kWh),Electricity,
Wyre Council,http://opendatacommunities.org/doc/district-council/wyre,30/01/2024,People and Places,Cultural and Related Services,132A,Corona Energy Retail 4 Limited,10/01/2024,PE155832,461.96,0.00,1650000008330 The Mount Pavilion Mount Road  Fleetwood FY76EZ 01/11/23 to 01/12/23 E(894kWh),Electricity,
Wyre Council,http://opendatacommunities.org/doc/district-council/wyre,30/01/2024,People and Places,Cultural and Related Services,132A,Corona Energy Retail 4 Limited,10/01/2024,PE155754,284.27,0.00,1650000008330 The Mount Pavilion Mount Road  Fleetwood FY76EZ 01/10/23 to 01/11/23 E(419kWh),Electricity,
Wyre Council,http://opendatacommunities.org/doc/district-council/wyre,30/01/2024,People and Places,Cultural and Related Services,132A,Corona Energy Retail 4 Limited,10/01/2024,PE155753,273.73,0.00,1650000008330 The Mount Pavilion Mount Road  Fleetwood FY76EZ 01/09/23 to 01/10/23 R(362kWh),Electricity,
Wyre Council,http://opendatacommunities.org/doc/district-council/wyre,30/01/2024,People and Places,Cultural and Related Services,132A,Corona Energy Retail 4 Limited,10/01/2024,PE155801,12.60,0.00,1610004742404 River Road Thornton Cleveleys  River Road FY55LR 01/09/23 to 01/10/23 R(8kWh),Electricity,
Wyre Council,http://opendatacommunities.org/doc/district-council/wyre,30/01/2024,People and Places,Cultural and Related Services,132A,Corona Energy Retail 4 Limited,10/01/2024,PE155800,976.86,0.00,1610004742399 River Road Thornton Cleveleys  River Road FY55LR 01/09/23 to 01/10/23 R(1237kWh),Electricity,
Wyre Council,http://opendatacommunities.org/doc/district-council/wyre,30/01/2024,People and Places,Cultural and Related Services,132A,Corona Energy Retail 4 Limited,10/01/2024,PE155766,-970.67,0.00,1610004742399 River Road Thornton Cleveleys River Road FY55LR 01/09/23 to 01/10/23 R(1229kWh),Electricity,
Wyre Council,http://opendatacommunities.org/doc/district-council/wyre,30/01/2024,People and Places,Cultural and Related Services,132A,Corona Energy Retail 4 Limited,29/01/2024,PE155869,1726.76,0.00,"1650000008330 The Mount Pavilion, Mount Rd, Fleetwood, FY7 6EZ 01/12/23 to 31/12/23 R (4107kWh)",Electricity,
Wyre Council,http://opendatacommunities.org/doc/district-council/wyre,30/01/2024,People and Places,Cultural and Related Services,132A,Corona Energy Retail 4 Limited,10/01/2024,PE155749,-791.61,0.00,1650000008330 The Mount Pavilion Mount Road Fleetwood FY76EZ 01/09/23 to 01/10/23 R(1060kWh),Electricity,
Wyre Council,http://opendatacommunities.org/doc/district-council/wyre,30/01/2024,People and Places,Cultural and Related Services,132A,Corona Energy Retail 4 Limited,10/01/2024,PE155828,15.19,0.00,1610004305443 Sports Pavilion Sports  Pavilion Cottam Hall FY67RH 01/10/21 to 01/11/21 E(0kWh),Electricity,
Wyre Council,http://opendatacommunities.org/doc/district-council/wyre,30/01/2024,People and Places,Cultural and Related Services,132A,Corona Energy Retail 4 Limited,10/01/2024,PE155852,15.19,0.00,1610004305443 Sports Pavilion Sports  Pavilion Cottam Hall FY67RH 01/06/21 to 01/07/21 E(0kWh),Electricity,
Wyre Council,http://opendatacommunities.org/doc/district-council/wyre,30/01/2024,People and Places,Cultural and Related Services,132A,Corona Energy Retail 4 Limited,10/01/2024,PE155789,15.19,0.00,1610004305443 Sports Pavilion Sports  Pavilion Cottam Hall FY67RH 01/08/22 to 01/09/22 E(0kWh),Electricity,
Wyre Council,http://opendatacommunities.org/doc/district-council/wyre,30/01/2024,People and Places,Cultural and Related Services,132A,Corona Energy Retail 4 Limited,10/01/2024,PE155788,15.19,0.00,1610004305443 Sports Pavilion Sports  Pavilion Cottam Hall FY67RH 01/07/22 to 01/08/22 E(0kWh),Electricity,
Wyre Council,http://opendatacommunities.org/doc/district-council/wyre,30/01/2024,People and Places,Environmental Services,132B,Corona Energy Retail 4 Limited,22/01/2024,PE155856,386.55,0.00,1600000023675 Royles Brook Pumping Station  Off Victoria Road East Thornton FY55OX 01/12/23 to 31/12/23 (1083kWh),Electricity,
Wyre Council,http://opendatacommunities.org/doc/district-council/wyre,30/01/2024,People and Places,Planning and Development Servs,132C,Corona Energy Retail 4 Limited,22/01/2024,PE155862,804.01,0.00,1620000784666 Main Hall Adelaide Street  Fleetwood FY76AB 01/12/23 to 31/12/23 (0kWh),Electricity,
Wyre Council,http://opendatacommunities.org/doc/district-council/wyre,30/01/2024,People and Places,Support Services,135B,Corona Energy Retail 4 Limited,22/01/2024,PE155857,14875.74,0.00,1600000162857 Civic Centre Breck Road  Blackpool FY39DT 01/12/23 to 31/12/23 (41378kWh),Electricity,
Wyre Council,http://opendatacommunities.org/doc/district-council/wyre,30/01/2024,People and Places,Cultural and Related Services,132A,Engie Power Limited,02/01/2024,PE155441,359.01,0.00,"1610004863605 Central Toilets Kiosk, The  Esplanade, Fleetwood, FY7 7BE 01/11/23 to 30/11/23 (806.7kWh) A",Electricity,
Wyre Council,http://opendatacommunities.org/doc/district-council/wyre,30/01/2024,People and Places,Cultural and Related Services,132A,Engie Power Limited,02/01/2024,PE155443,417.37,0.00,1610004846390 Pump House Model Yacht Pond  Laidleys Walk Fleetwood FY7 7JL 01/10/23 to 31/10/23 (963.6kWh) A,Electricity,
Wyre Council,http://opendatacommunities.org/doc/district-council/wyre,30/01/2024,People and Places,Cultural and Related Services,132A,Engie Power Limited,02/01/2024,PE155442,259.85,0.00,1610004846390 Pump House Model Yacht Pond  Laidleys Walk Fleetwood FY7 7JL 01/11/23 to 30/11/23 (528.8kWh) A,Electricity,
Wyre Council,http://opendatacommunities.org/doc/district-council/wyre,30/01/2024,People and Places,Cultural and Related Services,132A,Engie Power Limited,02/01/2024,PE155446,230.31,0.00,1610004867479 The Mount Pavilion Mount Rd  Fleetwood FY7 6EZ 01/11/22 to 30/11/22 (459.1kWh) E,Electricity,
Wyre Council,http://opendatacommunities.org/doc/district-council/wyre,30/01/2024,People and Places,Cultural and Related Services,132A,Engie Power Limited,02/01/2024,PE155445,210.06,0.00,1610004867479 The Mount Pavilion Mount Rd  Fleetwood FY7 6EZ 02/10/22 to 31/10/22 (400.7kWh) E,Electricity,
Wyre Council,http://opendatacommunities.org/doc/district-council/wyre,30/01/2024,People and Places,Cultural and Related Services,132A,Engie Power Limited,02/01/2024,PE155454,186.49,0.00,1610004867479 The Mount Pavilion Mount Rd  Fleetwood FY7 6EZ 01/06/23 to 30/06/23 (332.7kWh) E,Electricity,
Wyre Council,http://opendatacommunities.org/doc/district-council/wyre,30/01/2024,People and Places,Cultural and Related Services,132A,Engie Power Limited,02/01/2024,PE155453,190.28,0.00,1610004867479 The Mount Pavilion Mount Rd  Fleetwood FY7 6EZ 01/07/23 to 31/07/23 (336.8kWh) E,Electricity,
Wyre Council,http://opendatacommunities.org/doc/district-council/wyre,30/01/2024,People and Places,Cultural and Related Services,132A,Engie Power Limited,02/01/2024,PE155452,196.00,0.00,1610004867479 The Mount Pavilion Mount Rd  Fleetwood FY7 6EZ 01/05/23 to 31/05/23 (353.3kWh) E,Electricity,
Wyre Council,http://opendatacommunities.org/doc/district-council/wyre,30/01/2024,People and Places,Cultural and Related Services,132A,Engie Power Limited,02/01/2024,PE155451,199.25,0.00,1610004867479 The Mount Pavilion Mount Rd  Fleetwood FY7 6EZ 01/04/23 to 30/04/23 (369.5kWh) E,Electricity,
Wyre Council,http://opendatacommunities.org/doc/district-council/wyre,30/01/2024,People and Places,Cultural and Related Services,132A,Engie Power Limited,02/01/2024,PE155450,228.05,0.00,1610004867479 The Mount Pavilion Mount Rd  Fleetwood FY7 6EZ 01/03/23 to 31/03/23 (474.8kWh) E,Electricity,
Wyre Council,http://opendatacommunities.org/doc/district-council/wyre,30/01/2024,People and Places,Cultural and Related Services,132A,Engie Power Limited,02/01/2024,PE155449,211.84,0.00,1610004867479 The Mount Pavilion Mount Rd  Fleetwood FY7 6EZ 01/02/23 to 28/02/23 (446.8kWh) E,Electricity,
Wyre Council,http://opendatacommunities.org/doc/district-council/wyre,30/01/2024,People and Places,Cultural and Related Services,132A,Engie Power Limited,02/01/2024,PE155448,238.70,0.00,1610004867479 The Mount Pavilion Mount Rd  Fleetwood FY7 6EZ 01/01/23 to 31/01/23 (507.5kWh) E,Electricity,
Wyre Council,http://opendatacommunities.org/doc/district-council/wyre,30/01/2024,People and Places,Cultural and Related Services,132A,Engie Power Limited,02/01/2024,PE155447,243.09,0.00,1610004867479 The Mount Pavilion Mount Rd  Fleetwood FY7 6EZ 01/12/22 to 31/12/22 (521kWh) E,Electricity,
Wyre Council,http://opendatacommunities.org/doc/district-council/wyre,30/01/2024,People and Places,Cultural and Related Services,132A,Engie Power Limited,02/01/2024,PE155458,193.22,0.00,1610004867479 The Mount Pavilion Mount Rd  Fleetwood FY7 6EZ 01/09/23 to 30/09/23 (352.1kWh) E,Electricity,
Wyre Council,http://opendatacommunities.org/doc/district-council/wyre,30/01/2024,People and Places,Cultural and Related Services,132A,Engie Power Limited,02/01/2024,PE155457,233.85,0.00,1610004867479 The Mount Pavilion Mount Rd  Fleetwood FY7 6EZ 01/11/23 to 30/11/23 (469.3kWh) E,Electricity,
Wyre Council,http://opendatacommunities.org/doc/district-council/wyre,30/01/2024,People and Places,Cultural and Related Services,132A,Engie Power Limited,02/01/2024,PE155456,215.80,0.00,1610004867479 The Mount Pavilion Mount Rd  Fleetwood FY7 6EZ 01/10/23 to 31/10/23 (410.4kWh) E,Electricity,
Wyre Council,http://opendatacommunities.org/doc/district-council/wyre,30/01/2024,People and Places,Cultural and Related Services,132A,Engie Power Limited,02/01/2024,PE155455,192.16,0.00,1610004867479 The Mount Pavilion Mount Rd  Fleetwood FY7 6EZ 01/08/23 to 31/08/23 (342.2kWh) E,Electricity,
Wyre Council,http://opendatacommunities.org/doc/district-council/wyre,30/01/2024,People and Places,Cultural and Related Services,132A,Npower Commercial Gas Ltd,05/01/2024,PE155498,1921.37,0.00,Gas charges for Garstang YMCA MPRN 9159039903 for the period  01/11/23-30/11/23  - total gas consumed 28644.8 kWh,Electricity,
Wyre Council,http://opendatacommunities.org/doc/district-council/wyre,30/01/2024,People and Places,Cultural and Related Services,132A,Npower Commercial Gas Ltd,05/01/2024,PE155499,-2312.86,0.00,"Gas Credit for 9159039903 Garstang Swimming Centre, YMCA, Oak Rd, Garstang, PR3 1HT 01/11/23 to 30/11/23 (35,074.0kWh)",Electricity,
Wyre Council,http://opendatacommunities.org/doc/district-council/wyre,30/01/2024,Resources,Corporate and Democratic Core,131A,KPMG LLP,04/01/2024,RS155653,35645.75,0.00,23/24 Audit Fees,External Audit Fees,
Wyre Council,http://opendatacommunities.org/doc/district-council/wyre,30/01/2024,People and Places,Cultural and Related Services,132A,Play Inclusion Project,05/01/2024,PE155707,939.66,0.00,Play Inclusion Project SEND Saturday CLUB November 2023 - March 2024,External Coaching,
Wyre Council,http://opendatacommunities.org/doc/district-council/wyre,30/01/2024,People and Places,Cultural and Related Services,132A,Fleetwood Town Community Trust,18/01/2024,PE156142,7001.25,0.00,Try Sports quarter 3 invoice,External Coaching,
Wyre Council,http://opendatacommunities.org/doc/district-council/wyre,30/01/2024,People and Places,Cultural and Related Services,132A,Fleetwood Town Community Trust,26/01/2024,PE156282,7390.00,0.00,TRYSport delivery quarter 2 for Wyre July-sept 2023,External Coaching,
Wyre Council,http://opendatacommunities.org/doc/district-council/wyre,30/01/2024,People and Places,Cultural and Related Services,132A,Wildaid,19/01/2024,PE156161,1410.00,0.00,2023 summer season PROW grass cutting,External Contractor,
Wyre Council,http://opendatacommunities.org/doc/district-council/wyre,30/01/2024,People and Places,Cultural and Related Services,132A,The Ramblers Association,19/01/2024,PE156150,750.00,0.00,Annual Subscription to Ramblers Wellbeing Walks Scheme,External Contractor,
Wyre Council,http://opendatacommunities.org/doc/district-council/wyre,30/01/2024,People and Places,Environmental Services,132B,Hewsec Security,22/01/2024,PE156184,2550.00,0.00,This PO is to pay HEWSEC for providing the staff to safely run the recent pilot taxi marshal scheme in Poulton during December 2023. Initial invoice reference is WBC001/TAXIMARSHALL,External Contractor,
Wyre Council,http://opendatacommunities.org/doc/district-council/wyre,30/01/2024,Resources,Support Services,135B,Bates Office Services Ltd,04/01/2024,RS155673,12.35,0.00,1 WALL CAM BURNS GEL SACH 3.5ML PK20 WAC13293 1 as per your quotation SQ094332,First Aid Supplies,
Wyre Council,http://opendatacommunities.org/doc/district-council/wyre,30/01/2024,People and Places,Environmental Services,132B,NWIFCA      N W Inshore Fisheries and Conservation,22/01/2024,PE156160,623.00,0.00,Shellfish Collections sept 23- Mar24,Food and Drug Etc Samples,
Wyre Council,http://opendatacommunities.org/doc/district-council/wyre,30/01/2024,People and Places,Cultural and Related Services,132A,Visual Print and Design Ltd,30/01/2024,PE156353,775.00,0.00,Printing of 5000 Garstang Walking Festival Brochures for 2024,Garstang Walking Festival,
Wyre Council,http://opendatacommunities.org/doc/district-council/wyre,30/01/2024,People and Places,Cultural and Related Services,132A,Npower Commercial Gas Ltd,11/01/2024,PE155890,2195.75,0.00,Gas 9159039903 Garstang Swimming Club PR3 1HT 01/12/23 to 31/12/23 (33053.7 kWh),Gas,
Wyre Council,http://opendatacommunities.org/doc/district-council/wyre,30/01/2024,People and Places,Cultural and Related Services,132A,Npower Commercial Gas Ltd,11/01/2024,PE155889,3248.37,0.00,"Gas 50171305 Thornton Cleveleys Sports Centre, FY5 3SX 01/12/23 to 31/12/23 (47658.0 kWh)",Gas,
Wyre Council,http://opendatacommunities.org/doc/district-council/wyre,30/01/2024,People and Places,Cultural and Related Services,132A,Npower Commercial Gas Ltd,11/01/2024,PE155888,708.57,0.00,Gas 56039908 Garstang Sports Centre PR3 1ED 01/12/23 to 31/12/23 (9083.6 kWh),Gas,
Wyre Council,http://opendatacommunities.org/doc/district-council/wyre,30/01/2024,People and Places,Environmental Services,132B,Blackpool Skip Hire LTD,24/01/2024,PE156238,595.00,0.00,"Removal of Asbestos Rawcliffe Road, Out Rawcliffe Arranged to visit site with Mark Birley 19/1/24 @ 8.30am",Hazardous Waste Disposal,
Wyre Council,http://opendatacommunities.org/doc/district-council/wyre,30/01/2024,Resources,Support Services,135B,Bates Office Services Ltd,19/01/2024,RS156152,411.06,0.00,"2 x TSKZA Task Chairs, Black, Inflatable lumbar, adjustable arms1 x Marc Whittaker1 x Olivia Cordingley",Health and Safety General,
Wyre Council,http://opendatacommunities.org/doc/district-council/wyre,30/01/2024,Resources,Support Services,135B,Konica Minolta Business Solutions UK LTD,18/01/2024,RS154827,1080.43,0.00,Copy and print charges  26/02/23 - 25/02/24. Equipment number 1825856503 1825856487 1825843155 1825856493 1825856455 1825856489 1825856490 1825843157 1825856492 1825863267 1825856491 1825856452,Hire of Tools or Equipment,
Wyre Council,http://opendatacommunities.org/doc/district-council/wyre,30/01/2024,Resources,Support Services,135B,Konica Minolta Business Solutions UK LTD,23/01/2024,RS155055,723.45,0.00,1823533444 Bizhub pro 1100. 1823440258 Bizhub C458,Hire of Tools or Equipment,
Wyre Council,http://opendatacommunities.org/doc/district-council/wyre,30/01/2024,Resources,Support Services,135B,TMR Executive Agency LTD,19/01/2024,RS156135,701.32,0.00,Franking machine rental 8th Feb 2024-7th Feb 2025,Hire of Tools or Equipment,
Wyre Council,http://opendatacommunities.org/doc/district-council/wyre,30/01/2024,Resources,Housing General Fund,134A,Creative Support LTD,04/01/2024,RS155672,11376.60,0.00,"CONTRACT FEES IN RESPECT OF THE TURNING THE TIDE SERVICEFOR THE PERIOD: 01.10.23-31.12.23@ 11,376.60",Homelessness Tenancy Support,
Wyre Council,http://opendatacommunities.org/doc/district-council/wyre,30/01/2024,Resources,Housing General Fund,134A,LOCATA HOUSING SERVICES LTD,30/01/2024,RS156244,8000.00,0.00,2024 Payment for Locata sytem,ICT and Digital Team,
Wyre Council,http://opendatacommunities.org/doc/district-council/wyre,30/01/2024,People and Places,Environmental Services,132B,Poulton Pets LTD,08/01/2024,PE155701,1495.50,0.00,Provision of stray dog kennelling service 2023/24,Impounded Dogs Costs,
Wyre Council,http://opendatacommunities.org/doc/district-council/wyre,30/01/2024,Resources,Support Services,135B,Vodafone LTD,17/01/2024,RS155652,404.49,0.00,Dedicated Access Bearer - 01/01/23 - 31/12/23,Internet and Telephone Charges,
Wyre Council,http://opendatacommunities.org/doc/district-council/wyre,30/01/2024,Resources,Support Services,135B,Vodafone LTD,17/01/2024,RS155652,199.98,0.00,PSN-Direct Network Service Provider -,Internet and Telephone Charges,
Wyre Council,http://opendatacommunities.org/doc/district-council/wyre,30/01/2024,People and Places,Cultural and Related Services,132A,Northern Citrus Products LTD,03/01/2024,PE155649,1706.50,0.00,Kiosk stock,Kiosk stock,
Wyre Council,http://opendatacommunities.org/doc/district-council/wyre,30/01/2024,People and Places,Cultural and Related Services,132A,Northern Citrus Products LTD,10/01/2024,PE155876,1607.00,0.00,Kiosk stock Marine Hall,Kiosk stock,
Wyre Council,http://opendatacommunities.org/doc/district-council/wyre,30/01/2024,People and Places,Cultural and Related Services,132A,Northern Citrus Products LTD,10/01/2024,PE155874,732.90,0.00,Kiosk stock,Kiosk stock,
Wyre Council,http://opendatacommunities.org/doc/district-council/wyre,30/01/2024,People and Places,Cultural and Related Services,132A,Northern Citrus Products LTD,10/01/2024,PE155876,-1607.00,0.00,Kiosk stock Marine Hall,Kiosk stock,
Wyre Council,http://opendatacommunities.org/doc/district-council/wyre,30/01/2024,People and Places,Support Services,135B,St Philips Chambers Ltd,31/01/2024,PE156243,3000.00,0.00,"Professional Legal Fees of Duncan Craig in respect of Valiants Farm, Lancaster Road, PR3 6BL",Legal Fees,
Wyre Council,http://opendatacommunities.org/doc/district-council/wyre,30/01/2024,People and Places,Highways,133B,HUWS GRAY LTD,22/01/2024,PE155966,11.09,0.00,mini gloss roller refills Pharos benches,Maint. of Unadopted Assets - Engineers,
Wyre Council,http://opendatacommunities.org/doc/district-council/wyre,30/01/2024,People and Places,Parking Services,133F,CHIPSIDE LTD,22/01/2024,PE155820,15.00,0.00,Provide 2 no. 500 Mb SIMS for Wyre handheld units - 1 April 2023 - 31 March 2024,Maintenance of Tools or Equipment,
Wyre Council,http://opendatacommunities.org/doc/district-council/wyre,30/01/2024,People and Places,Cultural and Related Services,132A,EVOLUTION CONSTRUCTION GROUP LTD,03/01/2024,PE155584,24.55,0.00,"Marine Hall: Assess 2 notice boards, make repairs if possible",Maintenance of Tools or Equipment,
Wyre Council,http://opendatacommunities.org/doc/district-council/wyre,30/01/2024,People and Places,Highways,133B,T-Fer Tree Surgeons,24/01/2024,PE156206,320.00,0.00,"Quote 0044  01/12/23    Wyvern way, CarltonMature Ash � Reduce 320  Total net value 320 VAT @20% 0 Quote total 320",Maintenance of Trees and Shrubs,
Wyre Council,http://opendatacommunities.org/doc/district-council/wyre,30/01/2024,People and Places,Support Services,135B,St Gobain Building Distribution LTD,23/01/2024,PE156211,640.00,0.00,Supply and deliver the following materials as your quote 0963/ 838773 16/1/24  16.00 SH Euca Structural Ply EN636-3S EN314-2 Class 3 FSC. 2440 x 1220 x 18.0mm 40.00 SH 640.00 S  PLY18FS1 Ex-Yard  Faces and edges should be sealed before installation to  pr,Materials and Consumables,
Wyre Council,http://opendatacommunities.org/doc/district-council/wyre,30/01/2024,People and Places,Support Services,135B,Key Engineering & Hygiene Supplies LTD,10/01/2024,PE155866,124.28,0.00,"URGENT SUPPLY AS QUOTE 21189  Delivery to Wyre Council, Copse Road Depot, Copse Road, Fleetwood, FY7 6RP.",Materials and Consumables,
Wyre Council,http://opendatacommunities.org/doc/district-council/wyre,30/01/2024,Resources,Housing General Fund,134A,Solon Security LTD,16/01/2024,RS156021,1104.00,0.00,Payment of invoice - SI24000400,Materials and Consumables,
Wyre Council,http://opendatacommunities.org/doc/district-council/wyre,30/01/2024,People and Places,Support Services,135B,Aitch Tools & Fasteners LTD,04/01/2024,PE155671,50.00,0.00,various items purchased by the Engineer Operations Teams (seawall engineers),Materials and Consumables,
Wyre Council,http://opendatacommunities.org/doc/district-council/wyre,30/01/2024,People and Places,Environmental Services,132B,Aitch Tools & Fasteners LTD,04/01/2024,PE155671,943.96,0.00,various items purchased by the Engineer Operations Teams (seawall engineers),Materials and Consumables,
Wyre Council,http://opendatacommunities.org/doc/district-council/wyre,30/01/2024,Resources,Housing General Fund,134A,HUWS GRAY LTD,03/01/2024,RS155632,130.20,0.00,Invoice IG159316,Materials and Consumables,
Wyre Council,http://opendatacommunities.org/doc/district-council/wyre,30/01/2024,People and Places,Support Services,135B,HUWS GRAY LTD,15/01/2024,PE155967,301.34,0.00,"Knife blades  Brockholes Dalston drainage pipe couplings  R17633 King Georges, Thornton",Materials and Consumables,
Wyre Council,http://opendatacommunities.org/doc/district-council/wyre,30/01/2024,People and Places,Support Services,135B,HUWS GRAY LTD,24/01/2024,PE156237,127.88,0.00,Gravel R17633,Materials and Consumables,
Wyre Council,http://opendatacommunities.org/doc/district-council/wyre,30/01/2024,People and Places,Support Services,135B,HUWS GRAY LTD,31/01/2024,PE156347,71.09,0.00,Materials  Keith Urwin,Materials and Consumables,
Wyre Council,http://opendatacommunities.org/doc/district-council/wyre,30/01/2024,People and Places,Support Services,135B,HUWS GRAY LTD,31/01/2024,PE156348,96.19,0.00,Materials,Materials and Consumables,
Wyre Council,http://opendatacommunities.org/doc/district-council/wyre,30/01/2024,People and Places,Support Services,135B,HUWS GRAY LTD,18/01/2024,PE156056,114.65,0.00,Pressure sprayer Tape measure  plywood  Keith urwin,Materials and Consumables,
Wyre Council,http://opendatacommunities.org/doc/district-council/wyre,30/01/2024,People and Places,Support Services,135B,HUWS GRAY LTD,15/01/2024,PE155740,71.92,0.00,Road marking spray paint,Materials and Consumables,
Wyre Council,http://opendatacommunities.org/doc/district-council/wyre,30/01/2024,People and Places,Support Services,135B,HUWS GRAY LTD,10/01/2024,PE155739,26.51,0.00,Safety wellies and hand saw  Keith Urwin,Materials and Consumables,
Wyre Council,http://opendatacommunities.org/doc/district-council/wyre,30/01/2024,People and Places,Support Services,135B,HUWS GRAY LTD,10/01/2024,PE155739,19.98,0.00,Handsaw,Materials and Consumables,
Wyre Council,http://opendatacommunities.org/doc/district-council/wyre,30/01/2024,People and Places,Support Services,135B,HUWS GRAY LTD,26/01/2024,PE156268,77.91,0.00,land drainage pipe  R17633,Materials and Consumables,
Wyre Council,http://opendatacommunities.org/doc/district-council/wyre,30/01/2024,People and Places,Support Services,135B,HUWS GRAY LTD,26/01/2024,PE156271,34.41,0.00,Drain Pipe coupling  R17633,Materials and Consumables,
Wyre Council,http://opendatacommunities.org/doc/district-council/wyre,30/01/2024,People and Places,Support Services,135B,HUWS GRAY LTD,26/01/2024,PE156270,127.88,0.00,Gravel R17633,Materials and Consumables,
Wyre Council,http://opendatacommunities.org/doc/district-council/wyre,30/01/2024,People and Places,Cultural and Related Services,132A,HUWS GRAY LTD,03/01/2024,PE155631,50.80,0.00,1 x role of visqueen,Materials and Consumables,
Wyre Council,http://opendatacommunities.org/doc/district-council/wyre,30/01/2024,People and Places,Cultural and Related Services,132A,HUWS GRAY LTD,30/01/2024,PE156344,87.96,0.00,1 ton top dressing for wecp,Materials and Consumables,
Wyre Council,http://opendatacommunities.org/doc/district-council/wyre,30/01/2024,People and Places,Support Services,135B,HUWS GRAY LTD,10/01/2024,PE155477,142.50,0.00,Post crete  Hawthorne park,Materials and Consumables,
Wyre Council,http://opendatacommunities.org/doc/district-council/wyre,30/01/2024,People and Places,Support Services,135B,Amazon Business,23/01/2024,PE156210,11.24,0.00,Folders and storage bags  Grounds Maintenance,Materials and Consumables,
Wyre Council,http://opendatacommunities.org/doc/district-council/wyre,30/01/2024,Resources,Support Services,135B,Amazon Business,18/01/2024,RS156062,24.16,0.00,"suokoun 30 Packs Heave Duty Retractable Badge Holder with Carabiner Belt Clip and Key Ring, Badge Reel Clip for ID Card Name Keychain(Black, 26.5 Inch Pull Cord).",Materials and Consumables,
Wyre Council,http://opendatacommunities.org/doc/district-council/wyre,30/01/2024,Resources,Housing General Fund,134A,Mobility Care Services,19/01/2024,RS156141,540.00,0.00,REDACT,Minor Adaptations,
Wyre Council,http://opendatacommunities.org/doc/district-council/wyre,30/01/2024,Resources,Housing General Fund,134A,Mobility Care Services,19/01/2024,RS156140,840.00,0.00,REDACT,Minor Adaptations,
Wyre Council,http://opendatacommunities.org/doc/district-council/wyre,30/01/2024,Resources,Housing General Fund,134A,Mobility Care Services,19/01/2024,RS156139,300.00,0.00,REDACT,Minor Adaptations,
Wyre Council,http://opendatacommunities.org/doc/district-council/wyre,30/01/2024,Resources,Housing General Fund,134A,Mobility Care Services,19/01/2024,RS156138,480.00,0.00,REDACT,Minor Adaptations,
Wyre Council,http://opendatacommunities.org/doc/district-council/wyre,30/01/2024,Resources,Housing General Fund,134A,Mobility Care Services,19/01/2024,RS156137,150.00,0.00,REDACT,Minor Adaptations,
Wyre Council,http://opendatacommunities.org/doc/district-council/wyre,30/01/2024,Resources,Housing General Fund,134A,Mobility Care Services,19/01/2024,RS156136,75.00,0.00,REDACT,Minor Adaptations,
Wyre Council,http://opendatacommunities.org/doc/district-council/wyre,30/01/2024,Resources,Housing General Fund,134A,J A DICKENS LIMITED,19/01/2024,RS156127,390.00,0.00,REDACT,Minor Adaptations,
Wyre Council,http://opendatacommunities.org/doc/district-council/wyre,30/01/2024,Resources,Housing General Fund,134A,J A DICKENS LIMITED,05/01/2024,RS155695,380.00,0.00,REDACT,Minor Adaptations,
Wyre Council,http://opendatacommunities.org/doc/district-council/wyre,30/01/2024,Resources,Housing General Fund,134A,J A DICKENS LIMITED,05/01/2024,RS155695,380.00,0.00,REDACT,Minor Adaptations,
Wyre Council,http://opendatacommunities.org/doc/district-council/wyre,30/01/2024,Resources,Housing General Fund,134A,J A DICKENS LIMITED,05/01/2024,RS155693,320.00,0.00,REDACT,Minor Adaptations,
Wyre Council,http://opendatacommunities.org/doc/district-council/wyre,30/01/2024,Resources,Housing General Fund,134A,J A DICKENS LIMITED,05/01/2024,RS155693,300.00,0.00,REDACT,Minor Adaptations,
Wyre Council,http://opendatacommunities.org/doc/district-council/wyre,30/01/2024,Resources,Housing General Fund,134A,J A DICKENS LIMITED,05/01/2024,RS155694,380.00,0.00,REDACT,Minor Adaptations,
Wyre Council,http://opendatacommunities.org/doc/district-council/wyre,30/01/2024,Resources,Housing General Fund,134A,J A DICKENS LIMITED,05/01/2024,RS155694,300.00,0.00,REDACT,Minor Adaptations,
Wyre Council,http://opendatacommunities.org/doc/district-council/wyre,30/01/2024,Resources,Housing General Fund,134A,J A DICKENS LIMITED,05/01/2024,RS155689,280.00,0.00,REDACT,Minor Adaptations,
Wyre Council,http://opendatacommunities.org/doc/district-council/wyre,30/01/2024,Resources,Housing General Fund,134A,J A DICKENS LIMITED,05/01/2024,RS155689,200.00,0.00,REDACT,Minor Adaptations,
Wyre Council,http://opendatacommunities.org/doc/district-council/wyre,30/01/2024,Resources,Housing General Fund,134A,J A DICKENS LIMITED,05/01/2024,RS155690,300.00,0.00,REDACT,Minor Adaptations,
Wyre Council,http://opendatacommunities.org/doc/district-council/wyre,30/01/2024,Resources,Housing General Fund,134A,J A DICKENS LIMITED,05/01/2024,RS155690,280.00,0.00,REDACT,Minor Adaptations,
Wyre Council,http://opendatacommunities.org/doc/district-council/wyre,30/01/2024,Resources,Housing General Fund,134A,J A DICKENS LIMITED,05/01/2024,RS155691,300.00,0.00,REDACT,Minor Adaptations,
Wyre Council,http://opendatacommunities.org/doc/district-council/wyre,30/01/2024,Resources,Housing General Fund,134A,J A DICKENS LIMITED,05/01/2024,RS155691,280.00,0.00,REDACT,Minor Adaptations,
Wyre Council,http://opendatacommunities.org/doc/district-council/wyre,30/01/2024,Resources,Housing General Fund,134A,J A DICKENS LIMITED,05/01/2024,RS155692,300.00,0.00,REDACT,Minor Adaptations,
Wyre Council,http://opendatacommunities.org/doc/district-council/wyre,30/01/2024,Resources,Housing General Fund,134A,J A DICKENS LIMITED,05/01/2024,RS155692,300.00,0.00,REDACT,Minor Adaptations,
Wyre Council,http://opendatacommunities.org/doc/district-council/wyre,30/01/2024,Resources,Housing General Fund,134A,J A DICKENS LIMITED,05/01/2024,RS155683,70.00,0.00,REDACT,Minor Adaptations,
Wyre Council,http://opendatacommunities.org/doc/district-council/wyre,30/01/2024,Resources,Housing General Fund,134A,J A DICKENS LIMITED,05/01/2024,RS155683,70.00,0.00,REDACT,Minor Adaptations,
Wyre Council,http://opendatacommunities.org/doc/district-council/wyre,30/01/2024,Resources,Housing General Fund,134A,J A DICKENS LIMITED,05/01/2024,RS155684,70.00,0.00,REDACT,Minor Adaptations,
Wyre Council,http://opendatacommunities.org/doc/district-council/wyre,30/01/2024,Resources,Housing General Fund,134A,J A DICKENS LIMITED,05/01/2024,RS155684,70.00,0.00,REDACT,Minor Adaptations,
Wyre Council,http://opendatacommunities.org/doc/district-council/wyre,30/01/2024,Resources,Housing General Fund,134A,J A DICKENS LIMITED,05/01/2024,RS155685,80.00,0.00,REDACT,Minor Adaptations,
Wyre Council,http://opendatacommunities.org/doc/district-council/wyre,30/01/2024,Resources,Housing General Fund,134A,J A DICKENS LIMITED,05/01/2024,RS155685,80.00,0.00,REDACT,Minor Adaptations,
Wyre Council,http://opendatacommunities.org/doc/district-council/wyre,30/01/2024,Resources,Housing General Fund,134A,J A DICKENS LIMITED,05/01/2024,RS155686,80.00,0.00,REDACT,Minor Adaptations,
Wyre Council,http://opendatacommunities.org/doc/district-council/wyre,30/01/2024,Resources,Housing General Fund,134A,J A DICKENS LIMITED,05/01/2024,RS155686,80.00,0.00,REDACT,Minor Adaptations,
Wyre Council,http://opendatacommunities.org/doc/district-council/wyre,30/01/2024,Resources,Housing General Fund,134A,J A DICKENS LIMITED,05/01/2024,RS155687,170.00,0.00,REDACT,Minor Adaptations,
Wyre Council,http://opendatacommunities.org/doc/district-council/wyre,30/01/2024,Resources,Housing General Fund,134A,J A DICKENS LIMITED,05/01/2024,RS155687,150.00,0.00,REDACT,Minor Adaptations,
Wyre Council,http://opendatacommunities.org/doc/district-council/wyre,30/01/2024,Resources,Housing General Fund,134A,J A DICKENS LIMITED,05/01/2024,RS155688,280.00,0.00,REDACT,Minor Adaptations,
Wyre Council,http://opendatacommunities.org/doc/district-council/wyre,30/01/2024,Resources,Housing General Fund,134A,J A DICKENS LIMITED,05/01/2024,RS155688,200.00,0.00,REDACT,Minor Adaptations,
Wyre Council,http://opendatacommunities.org/doc/district-council/wyre,30/01/2024,Resources,Housing General Fund,134A,J A DICKENS LIMITED,19/01/2024,RS156127,200.00,0.00,REDACT,Minor Adaptations,
Wyre Council,http://opendatacommunities.org/doc/district-council/wyre,30/01/2024,Resources,Housing General Fund,134A,J A DICKENS LIMITED,19/01/2024,RS156128,280.00,0.00,REDACT,Minor Adaptations,
Wyre Council,http://opendatacommunities.org/doc/district-council/wyre,30/01/2024,Resources,Housing General Fund,134A,J A DICKENS LIMITED,19/01/2024,RS156128,310.00,0.00,REDACT,Minor Adaptations,
Wyre Council,http://opendatacommunities.org/doc/district-council/wyre,30/01/2024,Resources,Housing General Fund,134A,J A DICKENS LIMITED,19/01/2024,RS156129,330.00,0.00,REDACT,Minor Adaptations,
Wyre Council,http://opendatacommunities.org/doc/district-council/wyre,30/01/2024,Resources,Housing General Fund,134A,J A DICKENS LIMITED,19/01/2024,RS156129,330.00,0.00,REDACT,Minor Adaptations,
Wyre Council,http://opendatacommunities.org/doc/district-council/wyre,30/01/2024,Resources,Housing General Fund,134A,J A DICKENS LIMITED,19/01/2024,RS156130,380.00,0.00,REDACT,Minor Adaptations,
Wyre Council,http://opendatacommunities.org/doc/district-council/wyre,30/01/2024,Resources,Housing General Fund,134A,J A DICKENS LIMITED,19/01/2024,RS156130,400.00,0.00,REDACT,Minor Adaptations,
Wyre Council,http://opendatacommunities.org/doc/district-council/wyre,30/01/2024,Resources,Current Liabilities,130C,Department for Levelling Up Housing and Communitie,23/01/2024,RS156227,227100.00,0.00,3700253533ctr-2023-24/Receipts/Wyre Borough Council/3922375,Miscellaneous Debits,
Wyre Council,http://opendatacommunities.org/doc/district-council/wyre,30/01/2024,Resources,Current Liabilities,130C,Department for Levelling Up Housing and Communitie,23/01/2024,RS156227,600.00,0.00,3700253533ctr-2023-24/Receipts/Wyre Borough Council/3922375,Miscellaneous Debits,
Wyre Council,http://opendatacommunities.org/doc/district-council/wyre,30/01/2024,Resources,Cultural and Related Services,132A,VODAFONE LIMITED,09/01/2024,RS155352,12.00,0.00,Phone Charges 01/12/23 to 31/12/23,Mobile Devices,
Wyre Council,http://opendatacommunities.org/doc/district-council/wyre,30/01/2024,Resources,Support Services,135B,VODAFONE LIMITED,09/01/2024,RS155352,168.00,0.00,Phone Charges 01/12/23 to 31/12/23,Mobile Devices,
Wyre Council,http://opendatacommunities.org/doc/district-council/wyre,30/01/2024,Resources,Environmental Services,132B,VODAFONE LIMITED,09/01/2024,RS155352,6.27,0.00,Phone Charges 01/12/23 to 31/12/23,Mobile Devices,
Wyre Council,http://opendatacommunities.org/doc/district-council/wyre,30/01/2024,Resources,Cultural and Related Services,132A,VODAFONE LIMITED,09/01/2024,RS155352,24.00,0.00,Phone Charges 01/12/23 to 31/12/23,Mobile Devices,
Wyre Council,http://opendatacommunities.org/doc/district-council/wyre,30/01/2024,Resources,Corporate and Democratic Core,131A,VODAFONE LIMITED,09/01/2024,RS155352,12.00,0.00,Phone Charges 01/12/23 to 31/12/23,Mobile Devices,
Wyre Council,http://opendatacommunities.org/doc/district-council/wyre,30/01/2024,Resources,Support Services,135B,VODAFONE LIMITED,09/01/2024,RS155352,52.31,0.00,Phone Charges 01/12/23 to 31/12/23,Mobile Devices,
Wyre Council,http://opendatacommunities.org/doc/district-council/wyre,30/01/2024,Resources,Support Services,135B,VODAFONE LIMITED,09/01/2024,RS155352,80.33,0.00,Phone Charges 01/12/23 to 31/12/23,Mobile Devices,
Wyre Council,http://opendatacommunities.org/doc/district-council/wyre,30/01/2024,Resources,Support Services,135B,VODAFONE LIMITED,09/01/2024,RS155352,180.10,0.00,Phone Charges 01/12/23 to 31/12/23,Mobile Devices,
Wyre Council,http://opendatacommunities.org/doc/district-council/wyre,30/01/2024,Resources,Support Services,135B,VODAFONE LIMITED,09/01/2024,RS155352,48.00,0.00,Phone Charges 01/12/23 to 31/12/23,Mobile Devices,
Wyre Council,http://opendatacommunities.org/doc/district-council/wyre,30/01/2024,Resources,Central Services to the Public,131C,VODAFONE LIMITED,09/01/2024,RS155352,24.00,0.00,Phone Charges 01/12/23 to 31/12/23,Mobile Devices,
Wyre Council,http://opendatacommunities.org/doc/district-council/wyre,30/01/2024,Resources,Support Services,135B,VODAFONE LIMITED,09/01/2024,RS155352,24.00,0.00,Phone Charges 01/12/23 to 31/12/23,Mobile Devices,
Wyre Council,http://opendatacommunities.org/doc/district-council/wyre,30/01/2024,Resources,Environmental Services,132B,VODAFONE LIMITED,09/01/2024,RS155352,84.00,0.00,Phone Charges 01/12/23 to 31/12/23,Mobile Devices,
Wyre Council,http://opendatacommunities.org/doc/district-council/wyre,30/01/2024,Resources,Central Services to the Public,131C,VODAFONE LIMITED,09/01/2024,RS155352,12.00,0.00,Phone Charges 01/12/23 to 31/12/23,Mobile Devices,
Wyre Council,http://opendatacommunities.org/doc/district-council/wyre,30/01/2024,Resources,Support Services,135B,VODAFONE LIMITED,09/01/2024,RS155352,12.00,0.00,Phone Charges 01/12/23 to 31/12/23,Mobile Devices,
Wyre Council,http://opendatacommunities.org/doc/district-council/wyre,30/01/2024,Resources,Support Services,135B,VODAFONE LIMITED,22/01/2024,RS155352,25.16,0.00,Phone Charges 01/12/23 to 31/12/23,Mobile Devices,
Wyre Council,http://opendatacommunities.org/doc/district-council/wyre,30/01/2024,Resources,Environmental Services,132B,VODAFONE LIMITED,09/01/2024,RS155352,16.00,0.00,Phone Charges 01/12/23 to 31/12/23,Mobile Devices,
Wyre Council,http://opendatacommunities.org/doc/district-council/wyre,30/01/2024,Resources,Housing General Fund,134A,VODAFONE LIMITED,09/01/2024,RS155352,36.00,0.00,Phone Charges 01/12/23 to 31/12/23,Mobile Devices,
Wyre Council,http://opendatacommunities.org/doc/district-council/wyre,30/01/2024,Resources,Support Services,135B,VODAFONE LIMITED,09/01/2024,RS155352,36.00,0.00,Phone Charges 01/12/23 to 31/12/23,Mobile Devices,
Wyre Council,http://opendatacommunities.org/doc/district-council/wyre,30/01/2024,Resources,Support Services,135B,VODAFONE LIMITED,09/01/2024,RS155352,108.27,0.00,Phone Charges 01/12/23 to 31/12/23,Mobile Devices,
Wyre Council,http://opendatacommunities.org/doc/district-council/wyre,30/01/2024,Resources,Support Services,135B,VODAFONE LIMITED,09/01/2024,RS155352,72.00,0.00,Phone Charges 01/12/23 to 31/12/23,Mobile Devices,
Wyre Council,http://opendatacommunities.org/doc/district-council/wyre,30/01/2024,Resources,Support Services,135B,VODAFONE LIMITED,09/01/2024,RS155352,156.12,0.00,Phone Charges 01/12/23 to 31/12/23,Mobile Devices,
Wyre Council,http://opendatacommunities.org/doc/district-council/wyre,30/01/2024,Resources,Cultural and Related Services,132A,VODAFONE LIMITED,09/01/2024,RS155352,24.00,0.00,Phone Charges 01/12/23 to 31/12/23,Mobile Devices,
Wyre Council,http://opendatacommunities.org/doc/district-council/wyre,30/01/2024,Resources,Housing General Fund,134A,VODAFONE LIMITED,09/01/2024,RS155352,12.00,0.00,Phone Charges 01/12/23 to 31/12/23,Mobile Devices,
Wyre Council,http://opendatacommunities.org/doc/district-council/wyre,30/01/2024,Resources,Housing General Fund,134A,VODAFONE LIMITED,09/01/2024,RS155352,72.00,0.00,Phone Charges 01/12/23 to 31/12/23,Mobile Devices,
Wyre Council,http://opendatacommunities.org/doc/district-council/wyre,30/01/2024,Resources,Housing General Fund,134A,VODAFONE LIMITED,09/01/2024,RS155352,32.00,0.00,Phone Charges 01/12/23 to 31/12/23,Mobile Devices,
Wyre Council,http://opendatacommunities.org/doc/district-council/wyre,30/01/2024,Resources,Support Services,135B,VODAFONE LIMITED,09/01/2024,RS155352,36.00,0.00,Phone Charges 01/12/23 to 31/12/23,Mobile Devices,
Wyre Council,http://opendatacommunities.org/doc/district-council/wyre,30/01/2024,Resources,Support Services,135B,VODAFONE LIMITED,09/01/2024,RS155352,292.00,0.00,Phone Charges 01/12/23 to 31/12/23,Mobile Devices,
Wyre Council,http://opendatacommunities.org/doc/district-council/wyre,30/01/2024,Resources,Support Services,135B,VODAFONE LIMITED,09/01/2024,RS155352,48.00,0.00,Phone Charges 01/12/23 to 31/12/23,Mobile Devices,
Wyre Council,http://opendatacommunities.org/doc/district-council/wyre,30/01/2024,Resources,Support Services,135B,VODAFONE LIMITED,09/01/2024,RS155352,32.00,0.00,Phone Charges 01/12/23 to 31/12/23,Mobile Devices,
Wyre Council,http://opendatacommunities.org/doc/district-council/wyre,30/01/2024,Resources,Support Services,135B,VODAFONE LIMITED,09/01/2024,RS155352,36.00,0.00,Phone Charges 01/12/23 to 31/12/23,Mobile Devices,
Wyre Council,http://opendatacommunities.org/doc/district-council/wyre,30/01/2024,Resources,Support Services,135B,VODAFONE LIMITED,09/01/2024,RS155352,212.59,0.00,Phone Charges 01/12/23 to 31/12/23,Mobile Devices,
Wyre Council,http://opendatacommunities.org/doc/district-council/wyre,30/01/2024,Resources,Support Services,135B,VODAFONE LIMITED,09/01/2024,RS155352,12.00,0.00,Phone Charges 01/12/23 to 31/12/23,Mobile Devices,
Wyre Council,http://opendatacommunities.org/doc/district-council/wyre,30/01/2024,Resources,Cultural and Related Services,132A,VODAFONE LIMITED,09/01/2024,RS155352,12.00,0.00,Phone Charges 01/12/23 to 31/12/23,Mobile Devices,
Wyre Council,http://opendatacommunities.org/doc/district-council/wyre,30/01/2024,Resources,Support Services,135B,VODAFONE LIMITED,09/01/2024,RS155352,48.00,0.00,Phone Charges 01/12/23 to 31/12/23,Mobile Devices,
Wyre Council,http://opendatacommunities.org/doc/district-council/wyre,30/01/2024,Finance,Current Assets,130B,,03/01/2024,WPST00129340,17085.21,0.00,22/12/23 NNDR Refunds,NNDR Refunds,
Wyre Council,http://opendatacommunities.org/doc/district-council/wyre,30/01/2024,Finance,Current Assets,130B,,30/01/2024,WPST00131913,24551.56,0.00,Ctax Refunds 26/01/24,NNDR Refunds,
Wyre Council,http://opendatacommunities.org/doc/district-council/wyre,30/01/2024,Finance,Current Assets,130B,,09/01/2024,WPST00129994,1508.00,0.00,NNDR DD bounced 04/01/23,NNDR Refunds,
Wyre Council,http://opendatacommunities.org/doc/district-council/wyre,30/01/2024,Finance,Current Assets,130B,,10/01/2024,WPST00130382,264956.00,0.00,NNDR DD 08/01/24,NNDR Refunds,
Wyre Council,http://opendatacommunities.org/doc/district-council/wyre,30/01/2024,Finance,Current Assets,130B,,10/01/2024,WPST00130383,2850.00,0.00,NNDR DD 08/01/24,NNDR Refunds,
Wyre Council,http://opendatacommunities.org/doc/district-council/wyre,30/01/2024,Finance,Current Assets,130B,,23/01/2024,WPST00131229,23719.52,0.00,NNDR Refunds 19/01/24,NNDR Refunds,
Wyre Council,http://opendatacommunities.org/doc/district-council/wyre,30/01/2024,Finance,Current Assets,130B,,16/01/2024,WPST00130658,13740.95,0.00,12/01/24 NNDR Refunds,NNDR Refunds,
Wyre Council,http://opendatacommunities.org/doc/district-council/wyre,30/01/2024,Finance,General Fund below the line,136A,DEPARTMENT FOR COMMUNITIES AND LOCAL GOVERNMENT,24/01/2024,WPST00131371,643840.00,0.00,22/01/2024R V B C GENERALLBRP0008,NNDR Tariff to Government,
Wyre Council,http://opendatacommunities.org/doc/district-council/wyre,30/01/2024,Finance,Collection Fund Revenue Accts,138A,DEPARTMENT FOR COMMUNITIES AND LOCAL GOVERNMENT,24/01/2024,WPST00131377,1022748.00,0.00,DLUHC - Business Rates Centl Share 22/01,NNDR Tariff to Government,
Wyre Council,http://opendatacommunities.org/doc/district-council/wyre,30/01/2024,Resources,Support Services,135B,Karen Openshaw Consultancy,03/01/2024,RS155629,520.00,0.00,Listening Services until March 22024,Occupational Health Fees,
Wyre Council,http://opendatacommunities.org/doc/district-council/wyre,30/01/2024,People and Places,Environmental Services,132B,DANFO (UK) LTD,03/01/2024,PE155592,23387.86,0.00,Public Conveniences - Maintenance and Cleaning 2023/24,Other Establishments,
Wyre Council,http://opendatacommunities.org/doc/district-council/wyre,30/01/2024,Finance,Collection Fund Revenue Accts,138A,LANCASHIRE COUNTY COUNCIL,05/01/2024,WPST00129739,230119.00,0.00,02/01/24 LCC precepts 23/24 Business Rat,Other Local Authorities,
Wyre Council,http://opendatacommunities.org/doc/district-council/wyre,30/01/2024,Finance,Collection Fund Revenue Accts,138A,LANCASHIRE FIRE AUTHORITY,30/01/2024,WPST00129743,25569.00,0.00,02/01/24 LCC Precepts 23/24 bus rate:FIRE,Other Local Authorities,
Wyre Council,http://opendatacommunities.org/doc/district-council/wyre,30/01/2024,Finance,Collection Fund Revenue Accts,138A,LANCASHIRE COUNTY COUNCIL,30/01/2024,WPST00129736,6061941.00,0.00,02/01/24 precepts 23/24 council tax:LCC,Other Local Authorities,
Wyre Council,http://opendatacommunities.org/doc/district-council/wyre,30/01/2024,Finance,Collection Fund Revenue Accts,138A,LANCASHIRE FIRE AUTHORITY,30/01/2024,WPST00129738,297674.00,0.00,02/01/24 precepts 22/23 Council tax surp:LCC,Other Local Authorities,
Wyre Council,http://opendatacommunities.org/doc/district-council/wyre,30/01/2024,Finance,Collection Fund Revenue Accts,138A,LANCASHIRE FIRE AUTHORITY,30/01/2024,WPST00129741,316703.00,0.00,02/01/24 LCC Precepts 23/24 C/Tax:FIRE,Other Local Authorities,
Wyre Council,http://opendatacommunities.org/doc/district-council/wyre,30/01/2024,Finance,Collection Fund Revenue Accts,138A,,30/01/2024,WPST00129742,15190.00,0.00,02/01/24 LCC precepts 22/23 C/Tax surplu:FIRE,Other Local Authorities,
Wyre Council,http://opendatacommunities.org/doc/district-council/wyre,30/01/2024,Finance,Collection Fund Revenue Accts,138A,,30/01/2024,WPST00129745,967972.00,0.00,02/01/24 LCC precept 23/24 C/tax:PCC,Other Local Authorities,
Wyre Council,http://opendatacommunities.org/doc/district-council/wyre,30/01/2024,Finance,Collection Fund Revenue Accts,138A,,30/01/2024,WPST00129746,46481.00,0.00,02/01/24 22/23 precept c/tax surp:PCCL,Other Local Authorities,
Wyre Council,http://opendatacommunities.org/doc/district-council/wyre,30/01/2024,People and Places,Cultural and Related Services,132A,Bannister Hall Ltd,24/01/2024,PE156242,690.00,0.00,Supply 120 Hydrangea Quercifolia Snowqueen C2 5.75 (Total  690),Other Materials,
Wyre Council,http://opendatacommunities.org/doc/district-council/wyre,30/01/2024,People and Places,Cultural and Related Services,132A,Bannister Hall Ltd,24/01/2024,PE156242,30.00,0.00,"30 delivery charge   Delivery to Wyre Council, FAO Tracy or George, Copse Road Depot, Copse Road, Fleetwood, FY7 6RP",Other Materials,
Wyre Council,http://opendatacommunities.org/doc/district-council/wyre,30/01/2024,People and Places,Cultural and Related Services,132A,Amazon Business,31/01/2024,PE156391,22.27,0.00,February EventsGeorgia Luckett,Other Materials,
Wyre Council,http://opendatacommunities.org/doc/district-council/wyre,30/01/2024,People and Places,Cultural and Related Services,132A,Amazon Business,31/01/2024,PE156367,28.32,0.00,February EventsGeorgia Luckett,Other Materials,
Wyre Council,http://opendatacommunities.org/doc/district-council/wyre,30/01/2024,People and Places,Cultural and Related Services,132A,Amazon Business,31/01/2024,PE156395,19.92,0.00,February EventsGeorgia Luckett,Other Materials,
Wyre Council,http://opendatacommunities.org/doc/district-council/wyre,30/01/2024,People and Places,Cultural and Related Services,132A,Amazon Business,31/01/2024,PE156394,4.89,0.00,February EventsGeorgia Luckett,Other Materials,
Wyre Council,http://opendatacommunities.org/doc/district-council/wyre,30/01/2024,People and Places,Cultural and Related Services,132A,Amazon Business,31/01/2024,PE156393,21.64,0.00,February EventsGeorgia Luckett,Other Materials,
Wyre Council,http://opendatacommunities.org/doc/district-council/wyre,30/01/2024,People and Places,Cultural and Related Services,132A,Amazon Business,31/01/2024,PE156392,16.32,0.00,February EventsGeorgia Luckett,Other Materials,
Wyre Council,http://opendatacommunities.org/doc/district-council/wyre,30/01/2024,People and Places,Parking Services,133F,Park Now Limited,08/01/2024,PE155292,633.68,0.00,RingGo fee 1 Nov 2023 - 31 March 2024,Other Parking Fees and Commission,
Wyre Council,http://opendatacommunities.org/doc/district-council/wyre,30/01/2024,People and Places,Parking Services,133F,Park Now Limited,08/01/2024,PE155720,637.51,0.00,RingGo fee 1 Nov 2023 - 31 March 2024,Other Parking Fees and Commission,
Wyre Council,http://opendatacommunities.org/doc/district-council/wyre,30/01/2024,Finance,Corporate and Democratic Core,131A,LANCASHIRE COUNTY COUNCIL,03/01/2024,WPST00129479,16271.44,0.00,29/12/2023LCC CO 6510103050 Pension,Pension Increase Act Payments,
Wyre Council,http://opendatacommunities.org/doc/district-council/wyre,30/01/2024,Resources,Corporate and Democratic Core,131A,LANCASHIRE COUNTY COUNCIL,02/01/2024,RS154741,522.35,0.00,Mercers Actuarial Services - Accounting Schedule for the year ending 31st March 2022 and Audit Q & A Paper,Pension Increase Act Payments,
Wyre Council,http://opendatacommunities.org/doc/district-council/wyre,30/01/2024,People and Places,Planning and Development Servs,132C,EAS Electrical Mechanical,09/01/2024,PE155733,204.00,0.00,EICR for Unit 9 Butts Close Thornton,Planned Building Maintenance,
Wyre Council,http://opendatacommunities.org/doc/district-council/wyre,30/01/2024,People and Places,Planning and Development Servs,132C,EAS Electrical Mechanical,09/01/2024,PE155736,350.00,0.00,EICR Remedials at Unit 9 Butts Close Thornton,Planned Building Maintenance,
Wyre Council,http://opendatacommunities.org/doc/district-council/wyre,30/01/2024,People and Places,Planning and Development Servs,132C,EAS Electrical Mechanical,15/01/2024,PE155936,204.00,0.00,Completed EICR at Unit 14 Butts Close Thornton,Planned Building Maintenance,
Wyre Council,http://opendatacommunities.org/doc/district-council/wyre,30/01/2024,People and Places,Cultural and Related Services,132A,M D Security,29/01/2024,PE156278,50.00,0.00,Marsh Mill: Carried out emergency light test on whole sire for Jan 24,Planned Building Maintenance,
Wyre Council,http://opendatacommunities.org/doc/district-council/wyre,30/01/2024,People and Places,Planning and Development Servs,132C,M D Security,29/01/2024,PE156280,60.00,0.00,Copse Rd Depot inc Transport Depot: Carried out emergency light test on whole site for Jan 24.  Need to replace light in GF changing room,Planned Building Maintenance,
Wyre Council,http://opendatacommunities.org/doc/district-council/wyre,30/01/2024,People and Places,Cultural and Related Services,132A,M D Security,29/01/2024,PE156277,50.00,0.00,Riverside Rangers Room Stanah: Carried out emegency light test to whole site for Jan 24,Planned Building Maintenance,
Wyre Council,http://opendatacommunities.org/doc/district-council/wyre,30/01/2024,People and Places,Environmental Services,132B,M D Security,29/01/2024,PE156279,50.00,0.00,Chatsworth Depot: carried out emergency light test on whole site for Jan 24,Planned Building Maintenance,
Wyre Council,http://opendatacommunities.org/doc/district-council/wyre,30/01/2024,People and Places,Environmental Services,132B,COWLEY FIRE,10/01/2024,PE155731,156.67,0.00,"Sea Defence workshop, Chatsworth Ave, Fleetwood: service fire equipment",Planned Building Maintenance,
Wyre Council,http://opendatacommunities.org/doc/district-council/wyre,30/01/2024,People and Places,Support Services,135B,COWLEY FIRE,15/01/2024,PE155730,1427.64,0.00,Civic Centre:service fire equipment,Planned Building Maintenance,
Wyre Council,http://opendatacommunities.org/doc/district-council/wyre,30/01/2024,People and Places,Cultural and Related Services,132A,Cumbria Clock Company Ltd,19/01/2024,PE156151,2000.00,0.00,"Please undertake  all associated works to convert  the Mount clock from original wind up to auto wind (to include all 3 sections of works quoted i.e. quotes 1,2,3) on your quotation 31 May 23.12,470 plus VATNote contacts for access to the Mount Clo",Planned Building Maintenance,
Wyre Council,http://opendatacommunities.org/doc/district-council/wyre,30/01/2024,People and Places,Cultural and Related Services,132A,GARRY CARR BUILDING SERVICES LTD,10/01/2024,PE155813,685.00,0.00,"Marsh Mill maintenance: check fluid levels, freed off the fantail and greased, greased sallower and wind shaft, checked tightness of all bolts, removed hardened grease from stone bearing and re-greased. External condition phtoto`d and sent to Keely Jones",Planned Building Maintenance,
Wyre Council,http://opendatacommunities.org/doc/district-council/wyre,30/01/2024,Finance,Central Services to the Public,131C,SANTANDER,08/01/2024,WPST00129995,634.44,0.00,04/01/2024SAN UK ACC RECEIVE,Plastic Cards Processing Fees,
Wyre Council,http://opendatacommunities.org/doc/district-council/wyre,30/01/2024,People and Places,Support Services,135B,Kompan  LTD,16/01/2024,PE155933,-1571.43,0.00,Hawthorne Park - against invoice,Playground Equipment,
Wyre Council,http://opendatacommunities.org/doc/district-council/wyre,30/01/2024,Resources,Support Services,135B,The University of Salford,19/01/2024,RS156121,3030.00,0.00,Meg-Anne Cotton MSC Real Estate and Property Management  2023/2024,Post Entry/Professional Training,
Wyre Council,http://opendatacommunities.org/doc/district-council/wyre,30/01/2024,Resources,Support Services,135B,The University of Salford,19/01/2024,RS156122,3030.00,0.00,Ash Owen MSC Real Estate and Property Management  2023/2024,Post Entry/Professional Training,
Wyre Council,http://opendatacommunities.org/doc/district-council/wyre,30/01/2024,Resources,Central Services to the Public,131C,Electoral Reform Services,10/01/2024,RS155871,3916.88,0.00,CES IER 2023 Fees responses from 01/06/2023 - 31/12/2023 Automated responses.,Postage,
Wyre Council,http://opendatacommunities.org/doc/district-council/wyre,30/01/2024,Resources,Central Services to the Public,131C,Critiqom LTD,04/01/2024,RS155665,258.49,0.00,Services Dec 23 Daily Bills,Postage,
Wyre Council,http://opendatacommunities.org/doc/district-council/wyre,30/01/2024,Resources,Housing General Fund,134A,Critiqom LTD,04/01/2024,RS155665,31.23,0.00,Services Dec 23 Benefit Notifications,Postage,
Wyre Council,http://opendatacommunities.org/doc/district-council/wyre,30/01/2024,Resources,Support Services,135B,Critiqom LTD,04/01/2024,RS155666,124.92,0.00,Postage Dec 23 Council Tax Reminders,Postage,
Wyre Council,http://opendatacommunities.org/doc/district-council/wyre,30/01/2024,Resources,Support Services,135B,Critiqom LTD,04/01/2024,RS155665,446.30,0.00,Services Dec 23 IQ post - Off Serv Admin,Postage,
Wyre Council,http://opendatacommunities.org/doc/district-council/wyre,30/01/2024,Resources,Support Services,135B,Critiqom LTD,04/01/2024,RS155665,638.10,0.00,Services Dec 23 IQ post - CC,Postage,
Wyre Council,http://opendatacommunities.org/doc/district-council/wyre,30/01/2024,Resources,Support Services,135B,Critiqom LTD,04/01/2024,RS155665,695.59,0.00,Services Dec 23 IQ Post - Planning,Postage,
Wyre Council,http://opendatacommunities.org/doc/district-council/wyre,30/01/2024,Resources,Central Services to the Public,131C,Critiqom LTD,04/01/2024,RS155665,175.14,0.00,Services Dec 23 IQ post - Electoral,Postage,
Wyre Council,http://opendatacommunities.org/doc/district-council/wyre,30/01/2024,Resources,Central Services to the Public,131C,Critiqom LTD,04/01/2024,RS155666,1163.66,0.00,Postage Dec 23 Daily Bills,Postage,
Wyre Council,http://opendatacommunities.org/doc/district-council/wyre,30/01/2024,Resources,Support Services,135B,Critiqom LTD,04/01/2024,RS155665,1.22,0.00,Services Dec 23 IQ Post - Cemeteries,Postage,
Wyre Council,http://opendatacommunities.org/doc/district-council/wyre,30/01/2024,Resources,Support Services,135B,Critiqom LTD,04/01/2024,RS155665,16.62,0.00,Services Dec 23 IQ Post - Pollution,Postage,
Wyre Council,http://opendatacommunities.org/doc/district-council/wyre,30/01/2024,Resources,Cultural and Related Services,132A,Critiqom LTD,04/01/2024,RS155665,16.69,0.00,Services Dec 23 IQ Post - Marine Hall,Postage,
Wyre Council,http://opendatacommunities.org/doc/district-council/wyre,30/01/2024,Resources,Central Services to the Public,131C,Critiqom LTD,04/01/2024,RS155665,3098.94,0.00,Services Dec 23 HSF4 DBR &amp; SMI,Postage,
Wyre Council,http://opendatacommunities.org/doc/district-council/wyre,30/01/2024,People and Places,Cultural and Related Services,132A,Bates Office Services Ltd,19/01/2024,PE156153,112.50,0.00,POF15482 - 3 x second class postage stamps pack of 50,Postage,
Wyre Council,http://opendatacommunities.org/doc/district-council/wyre,30/01/2024,Finance,Housing General Fund,134A,,09/01/2024,WPST00130136,775.00,0.00,05/01/24 HB Payments - homes for Ukraine,Private Contractors,
Wyre Council,http://opendatacommunities.org/doc/district-council/wyre,30/01/2024,Finance,Housing General Fund,134A,,08/01/2024,WPST00129996,11450.00,0.00,04/01/2024HB PAYMENTS Homes for Ukraine,Private Contractors,
Wyre Council,http://opendatacommunities.org/doc/district-council/wyre,30/01/2024,People and Places,Support Services,135B,Pipescan LTD,23/01/2024,PE156212,400.00,0.00,"Please can we arrange to meet at King Georges Field Thornton to do investigative work on the drains on the playing field to ascertain where they flow to and if blocked, all manholes accessible from Victoria Road East onto Ashdell Close, Thornton Cleveleys",Private Contractors,
Wyre Council,http://opendatacommunities.org/doc/district-council/wyre,30/01/2024,People and Places,Parking Services,133F,NSL Services Group,09/01/2024,PE155816,3155.60,0.00,Provide enforcement officer for Wyre Council car parks - 1 April 2023 - 31 March 2024,Private Contractors,
Wyre Council,http://opendatacommunities.org/doc/district-council/wyre,30/01/2024,Resources,Housing General Fund,134A,Salvation Army,29/01/2024,RS156299,25667.78,0.00,Refugee resettlement support Q3,Private Contractors,
Wyre Council,http://opendatacommunities.org/doc/district-council/wyre,30/01/2024,People and Places,Parking Services,133F,CHIPSIDE LTD,15/01/2024,PE155867,48.41,0.00,Wyre Council bank transaction fees 1 April 2023 - 31 March 2024,Private Contractors,
Wyre Council,http://opendatacommunities.org/doc/district-council/wyre,30/01/2024,People and Places,Parking Services,133F,CHIPSIDE LTD,02/01/2024,PE155612,788.16,0.00,provision of notice processing services 1 April 2023 - 31 March 2024; including postage,Private Contractors,
Wyre Council,http://opendatacommunities.org/doc/district-council/wyre,30/01/2024,People and Places,Parking Services,133F,CHIPSIDE LTD,02/01/2024,PE155596,773.37,0.00,provision of notice processing services 1 April 2023 - 31 March 2024; including postage,Private Contractors,
Wyre Council,http://opendatacommunities.org/doc/district-council/wyre,30/01/2024,People and Places,Parking Services,133F,CHIPSIDE LTD,02/01/2024,PE155595,534.99,0.00,provision of notice processing services 1 April 2023 - 31 March 2024; including postage,Private Contractors,
Wyre Council,http://opendatacommunities.org/doc/district-council/wyre,30/01/2024,People and Places,Parking Services,133F,CHIPSIDE LTD,19/01/2024,PE156162,784.29,0.00,provision of notice processing services 1 April 2023 - 31 March 2024; including postage,Private Contractors,
Wyre Council,http://opendatacommunities.org/doc/district-council/wyre,30/01/2024,People and Places,Environmental Services,132B,George Hewitt Fabrications,10/01/2024,PE155872,200.00,0.00,Welding up the metal shell sculpture of Cleveleys beach,Private Contractors,
Wyre Council,http://opendatacommunities.org/doc/district-council/wyre,30/01/2024,People and Places,Cultural and Related Services,132A,Melrose Development Services Ltd,03/01/2024,PE155593,1428.25,0.00,Marsh Mill rent and service charge 01/01/24 to 31/03/24,Private Contractors,
Wyre Council,http://opendatacommunities.org/doc/district-council/wyre,30/01/2024,People and Places,Cultural and Related Services,132A,GARRY CARR BUILDING SERVICES LTD,11/01/2024,PE155472,290.00,0.00,Marine Hall: Clear out external electrics compound and cart away,Private Contractors,
Wyre Council,http://opendatacommunities.org/doc/district-council/wyre,30/01/2024,People and Places,Environmental Services,132B,Idverde Limited,08/01/2024,PE155036,13513.65,0.00,Wyre Highway Weed Control - Urban,Private Contractors,
Wyre Council,http://opendatacommunities.org/doc/district-council/wyre,30/01/2024,People and Places,Environmental Services,132B,Idverde Limited,08/01/2024,PE155036,4504.55,0.00,Wyre Highway Weed Control - Rural,Private Contractors,
Wyre Council,http://opendatacommunities.org/doc/district-council/wyre,30/01/2024,Resources,Planning and Development Servs,132C,Lancashire County Council,23/01/2024,RS156200,-4250.00,0.00,VAT correction REPF Business Planning Day,Project Costs,
Wyre Council,http://opendatacommunities.org/doc/district-council/wyre,30/01/2024,People and Places,Cultural and Related Services,132A,Fylde Coast YMCA,25/01/2024,PE156259,1500.00,0.00,"Fleetwood YMCA Winter HAF Delivery (Staff only, club cancelled)",Project Costs,
Wyre Council,http://opendatacommunities.org/doc/district-council/wyre,30/01/2024,People and Places,Cultural and Related Services,132A,Fylde Coast YMCA,25/01/2024,PE156260,2640.00,0.00,YMCA Thornton Winter HAF Delivery 2023,Project Costs,
Wyre Council,http://opendatacommunities.org/doc/district-council/wyre,30/01/2024,People and Places,Cultural and Related Services,132A,Play Inclusion Project,16/01/2024,PE155963,4616.25,0.00, PIP Winter HAF delivery - 40 places,Project Costs,
Wyre Council,http://opendatacommunities.org/doc/district-council/wyre,30/01/2024,People and Places,Cultural and Related Services,132A,Fleetwood Town Community Trust,22/01/2024,PE156171,1107.50,0.00,FTFCCT Winter HAF Delivery,Project Costs,
Wyre Council,http://opendatacommunities.org/doc/district-council/wyre,30/01/2024,People and Places,Cultural and Related Services,132A,Lords Deli,19/01/2024,PE156149,1237.50,0.00,Winter HAF Food OrderManor Beach - 164 mealsThornton YMCA - 93 mealsLofthouse - 40 meals,Project Costs,
Wyre Council,http://opendatacommunities.org/doc/district-council/wyre,30/01/2024,People and Places,Planning and Development Servs,132C,STANTEC UK LTD,03/01/2024,PE155491,924.09,0.00,UKSPF Cleveleys Town Centre Study � attendance of Brian Laird at consultation event,Project Costs,
Wyre Council,http://opendatacommunities.org/doc/district-council/wyre,30/01/2024,People and Places,Cultural and Related Services,132A,Fylde Coast Holiday Club,15/01/2024,PE155709,3840.00,0.00,FYLDE COAST HOLIDY CLUB - Winter HAF Delivery,Project Costs,
Wyre Council,http://opendatacommunities.org/doc/district-council/wyre,30/01/2024,People and Places,Cultural and Related Services,132A,McGann Boxing and Fitness,25/01/2024,PE156263,920.00,0.00,McGann Boxing and Fitness - Winter HAF Delivery 2023,Project Costs,
Wyre Council,http://opendatacommunities.org/doc/district-council/wyre,30/01/2024,People and Places,Cultural and Related Services,132A,Absolute Futbol Ltd,16/01/2024,PE155958,6790.00,0.00,Absolute Futbol Winter HAF Delivery,Project Costs,
Wyre Council,http://opendatacommunities.org/doc/district-council/wyre,30/01/2024,People and Places,Cultural and Related Services,132A,EW SSC Limited t/a SportsCool Fylde,15/01/2024,PE155942,4576.00,0.00,SportsCool Fylde - Winter HAF Delivery,Project Costs,
Wyre Council,http://opendatacommunities.org/doc/district-council/wyre,30/01/2024,People and Places,Cultural and Related Services,132A,Play Inclusion Project,22/01/2024,PE156176,169.20,0.00,12 T shirts for Saturday SEND Club,Promotions - General,
Wyre Council,http://opendatacommunities.org/doc/district-council/wyre,30/01/2024,People and Places,Cultural and Related Services,132A,Visual Print and Design Ltd,02/01/2024,PE155597,2450.00,0.00,Production & Delivery of Wyre`s Great Outdoors Brochure - x 5000,Promotions - General,
Wyre Council,http://opendatacommunities.org/doc/district-council/wyre,30/01/2024,People and Places,Support Services,135B,Key Engineering & Hygiene Supplies LTD,16/01/2024,PE155923,202.40,0.00,Casual ranger staff wet weather gear,Protective Clothing,
Wyre Council,http://opendatacommunities.org/doc/district-council/wyre,30/01/2024,People and Places,Support Services,135B,Key Engineering & Hygiene Supplies LTD,10/01/2024,PE155894,40.26,0.00,"Supply as per quotation 20962Clothing Delivery to Wyre Council, Copse Road Depot, Copse Road, Fleetwood, FY7 6RP",Protective Clothing,
Wyre Council,http://opendatacommunities.org/doc/district-council/wyre,30/01/2024,People and Places,Support Services,135B,Key Engineering & Hygiene Supplies LTD,31/01/2024,PE156373,50.50,0.00,"Supply and deliver clothing as per quotation 21904Delivery to Wyre Council, Copse Road Depot, Copse Road, Fleetwood, FY7 6RP.",Protective Clothing,
Wyre Council,http://opendatacommunities.org/doc/district-council/wyre,30/01/2024,People and Places,Support Services,135B,Key Engineering & Hygiene Supplies LTD,31/01/2024,PE156373,829.76,0.00,"Supply and deliver clothing as per quotation 21904Delivery to Wyre Council, Copse Road Depot, Copse Road, Fleetwood, FY7 6RP.",Protective Clothing,
Wyre Council,http://opendatacommunities.org/doc/district-council/wyre,30/01/2024,People and Places,Cultural and Related Services,132A,Key Engineering & Hygiene Supplies LTD,08/01/2024,PE155717,267.00,0.00,New yellow tabards for volunteers,Protective Clothing,
Wyre Council,http://opendatacommunities.org/doc/district-council/wyre,30/01/2024,People and Places,Cultural and Related Services,132A,Key Engineering & Hygiene Supplies LTD,08/01/2024,PE155716,199.60,0.00,New Hi viz tabards for rossall point,Protective Clothing,
Wyre Council,http://opendatacommunities.org/doc/district-council/wyre,30/01/2024,People and Places,Cultural and Related Services,132A,Key Engineering & Hygiene Supplies LTD,08/01/2024,PE155715,135.68,0.00,16 x Ranger staff hi viz tabards,Protective Clothing,
Wyre Council,http://opendatacommunities.org/doc/district-council/wyre,30/01/2024,People and Places,Cultural and Related Services,132A,Key Engineering & Hygiene Supplies LTD,08/01/2024,PE155710,146.71,0.00,"New staff uniform Polo shirts, Jumpers, gilet, and hooded tops",Protective Clothing,
Wyre Council,http://opendatacommunities.org/doc/district-council/wyre,30/01/2024,People and Places,Cultural and Related Services,132A,Key Engineering & Hygiene Supplies LTD,16/01/2024,PE155922,20.75,0.00,"New staff uniform Polo shirts, Jumpers, gilet, and hooded tops",Protective Clothing,
Wyre Council,http://opendatacommunities.org/doc/district-council/wyre,30/01/2024,People and Places,Support Services,135B,Key Engineering & Hygiene Supplies LTD,10/01/2024,PE155896,213.90,0.00,"Supply clothing as your quotation 21669Delivery to Wyre Council, Civic Centre, Breck Road, Poulton-le-Fylde, FY6 7PU",Protective Clothing,
Wyre Council,http://opendatacommunities.org/doc/district-council/wyre,30/01/2024,People and Places,Support Services,135B,Key Engineering & Hygiene Supplies LTD,10/01/2024,PE155895,13.76,0.00,"Supply clothing as your quotation 21669Delivery to Wyre Council, Civic Centre, Breck Road, Poulton-le-Fylde, FY6 7PU",Protective Clothing,
Wyre Council,http://opendatacommunities.org/doc/district-council/wyre,30/01/2024,People and Places,Support Services,135B,HUWS GRAY LTD,26/01/2024,PE156269,24.10,0.00,Latex gloves,Protective Clothing,
Wyre Council,http://opendatacommunities.org/doc/district-council/wyre,30/01/2024,People and Places,Environmental Services,132B,Key Engineering & Hygiene Supplies LTD,23/01/2024,PE156233,883.00,0.00,"Supply 50 boxes of blue refuse bags, code BL09 OCI @ 17.66 per box of 200Delivery to Wyre Council, Copse Road Depot, Copse Road, Fleetwood, FY7 6RP.","Provision of Bins, Boxes and Sacks",
Wyre Council,http://opendatacommunities.org/doc/district-council/wyre,30/01/2024,People and Places,Environmental Services,132B,Veolia ES (UK) LTD,15/01/2024,PE155949,4977.81,0.00,Bin Provision,"Provision of Bins, Boxes and Sacks",
Wyre Council,http://opendatacommunities.org/doc/district-council/wyre,30/01/2024,People and Places,Cultural and Related Services,132A,Dr Tree Surgeons,09/01/2024,PE155818,550.00,0.00,Emergency Tree Felling at Brock Picnic Site - 5/1/24550.00 + VAT,Public Footpaths/Rights Of Way,
Wyre Council,http://opendatacommunities.org/doc/district-council/wyre,30/01/2024,Resources,Housing General Fund,134A,VODAFONE LIMITED,09/01/2024,RS155352,12.00,0.00,Phone Charges 01/12/23 to 31/12/23,Purchase Furniture,
Wyre Council,http://opendatacommunities.org/doc/district-council/wyre,30/01/2024,People and Places,Planning and Development Servs,132C,Key Engineering & Hygiene Supplies LTD,19/01/2024,PE155526,16.68,0.00,Hi-Vis Vest with Wyre Logo on front and VOLUNTEER on back Size L/XL,Purchase of Tools or Equipment,
Wyre Council,http://opendatacommunities.org/doc/district-council/wyre,30/01/2024,Resources,Housing General Fund,134A,NEC Software Solutions UK Limited,29/01/2024,RS156283,1500.00,0.00,SUPPLIER REFERENCE: DW / CRM 146712Supplier Software: 2024/25 Subsidy Workbook,Purchase of Tools or Equipment,
Wyre Council,http://opendatacommunities.org/doc/district-council/wyre,30/01/2024,People and Places,Support Services,135B,Wyre Memorials LTD,18/01/2024,PE156050,440.00,0.00,"1 x CMS sack Truck , delivery to R Broklbank at Copse Road",Purchase of Tools or Equipment,
Wyre Council,http://opendatacommunities.org/doc/district-council/wyre,30/01/2024,People and Places,Cultural and Related Services,132A,Fylde Coast YMCA,08/01/2024,PE155718,4375.00,0.00,Repair of the lift at Thornton YMCA - Autumn 2023,Purchase of Tools or Equipment,
Wyre Council,http://opendatacommunities.org/doc/district-council/wyre,30/01/2024,People and Places,Cultural and Related Services,132A,Fylde Coast YMCA,05/01/2024,PE155571,4375.00,0.00,Repair of the lift at Thornton YMCA - Autumn 2023,Purchase of Tools or Equipment,
Wyre Council,http://opendatacommunities.org/doc/district-council/wyre,30/01/2024,People and Places,Support Services,135B,Balmers GM LTD,26/01/2024,PE156267,1335.00,0.00,FAO Steve Pulman To SupplyQty 1 x New Husqvarna 525HE4 Net cost per unit 599 + VatQty 1 x Husqvarna 520iHE3 mid reach battery hedge cutterNet cost per unit 350 + VatQty 1 x Bli300 batteryNet cost per unit 266 + VatQty 1 x Husqva,Purchase of Tools or Equipment,
Wyre Council,http://opendatacommunities.org/doc/district-council/wyre,30/01/2024,People and Places,Cultural and Related Services,132A,HUWS GRAY LTD,23/01/2024,PE156219,44.14,0.00,2 x axes,Purchase of Tools or Equipment,
Wyre Council,http://opendatacommunities.org/doc/district-council/wyre,30/01/2024,People and Places,Cultural and Related Services,132A,HUWS GRAY LTD,23/01/2024,PE156218,23.86,0.00,1 set wellies,Purchase of Tools or Equipment,
Wyre Council,http://opendatacommunities.org/doc/district-council/wyre,30/01/2024,People and Places,Support Services,135B,HUWS GRAY LTD,31/01/2024,PE156345,57.12,0.00,Shovel and tape measure,Purchase of Tools or Equipment,
Wyre Council,http://opendatacommunities.org/doc/district-council/wyre,30/01/2024,People and Places,Support Services,135B,HUWS GRAY LTD,31/01/2024,PE156346,59.32,0.00,Shovel,Purchase of Tools or Equipment,
Wyre Council,http://opendatacommunities.org/doc/district-council/wyre,30/01/2024,People and Places,Support Services,135B,ENDURA GROUP LTD T/A LANDSCAPE SUPPLY COMPANY,23/01/2024,PE156236,99.94,0.00,Trumeter measuring wheel                         5272                       99.94                     1,Purchase of Tools or Equipment,
Wyre Council,http://opendatacommunities.org/doc/district-council/wyre,30/01/2024,People and Places,Support Services,135B,ENDURA GROUP LTD T/A LANDSCAPE SUPPLY COMPANY,23/01/2024,PE156236,31.90,0.00,Switch tip                                                            2397                       15.95                     2,Purchase of Tools or Equipment,
Wyre Council,http://opendatacommunities.org/doc/district-council/wyre,30/01/2024,People and Places,Support Services,135B,ENDURA GROUP LTD T/A LANDSCAPE SUPPLY COMPANY,23/01/2024,PE156236,77.70,0.00,Sartra brush                                                       2730                       12.95                     6,Purchase of Tools or Equipment,
Wyre Council,http://opendatacommunities.org/doc/district-council/wyre,30/01/2024,People and Places,Support Services,135B,ENDURA GROUP LTD T/A LANDSCAPE SUPPLY COMPANY,23/01/2024,PE156236,85.92,0.00,"Face shield                                                          SCAPPEVISOR    14.32                     6Delivery to Wyre Council, Copse Road Depot, Copse Road, Fleetwood, FY7 6RP.",Purchase of Tools or Equipment,
Wyre Council,http://opendatacommunities.org/doc/district-council/wyre,30/01/2024,People and Places,Support Services,135B,ENDURA GROUP LTD T/A LANDSCAPE SUPPLY COMPANY,23/01/2024,PE156236,49.22,0.00,Supply and deliver the following:-Loppers sarta                                                     2890                      24.61                     2,Purchase of Tools or Equipment,
Wyre Council,http://opendatacommunities.org/doc/district-council/wyre,30/01/2024,People and Places,Support Services,135B,ENDURA GROUP LTD T/A LANDSCAPE SUPPLY COMPANY,23/01/2024,PE156236,71.58,0.00,Loppers fiskars                                                  FSK112160           35.79                     2,Purchase of Tools or Equipment,
Wyre Council,http://opendatacommunities.org/doc/district-council/wyre,30/01/2024,People and Places,Environmental Services,132B,ENDURA GROUP LTD T/A LANDSCAPE SUPPLY COMPANY,23/01/2024,PE156236,182.50,0.00,Bulk bags                                                             5214                       3.65                        50,Purchase of Tools or Equipment,
Wyre Council,http://opendatacommunities.org/doc/district-council/wyre,30/01/2024,Resources,Housing General Fund,134A,Bates Office Services Ltd,03/01/2024,RS155637,615.69,0.00,"3 x TSK Chairs. Inflatable lumbar, adjustable arms.  Black",Purchase of Tools or Equipment,
Wyre Council,http://opendatacommunities.org/doc/district-council/wyre,30/01/2024,People and Places,Environmental Services,132B,Amazon Business,31/01/2024,PE156286,6.99,0.00,various  items for Climate change consultation boards,Purchase of Tools or Equipment,
Wyre Council,http://opendatacommunities.org/doc/district-council/wyre,30/01/2024,People and Places,Environmental Services,132B,Amazon Business,29/01/2024,PE156302,9.82,0.00,various  items for Climate change consultation boards,Purchase of Tools or Equipment,
Wyre Council,http://opendatacommunities.org/doc/district-council/wyre,30/01/2024,People and Places,Environmental Services,132B,Amazon Business,29/01/2024,PE156285,24.63,0.00,various  items for Climate change consultation boards,Purchase of Tools or Equipment,
Wyre Council,http://opendatacommunities.org/doc/district-council/wyre,30/01/2024,Resources,Support Services,135B,Amazon Business,09/01/2024,RS155746,7.49,0.00,Ram� Black Christmas Tree Storage Bag Fabric Xmas Tree Fabric Decor Holiday Store Bag Upto 9FT Trees,Purchase of Tools or Equipment,
Wyre Council,http://opendatacommunities.org/doc/district-council/wyre,30/01/2024,Resources,Support Services,135B,Amazon Business,09/01/2024,RS155729,-7.49,0.00,Ram� Black Christmas Tree Storage Bag Fabric Xmas Tree Fabric Decor Holiday Store Bag Upto 9FT Trees,Purchase of Tools or Equipment,
Wyre Council,http://opendatacommunities.org/doc/district-council/wyre,30/01/2024,People and Places,Support Services,135B,Amazon Business,04/01/2024,PE155624,76.64,0.00,Gripper Roger Brocklebank,Purchase of Tools or Equipment,
Wyre Council,http://opendatacommunities.org/doc/district-council/wyre,30/01/2024,Resources,Support Services,135B,Amazon Business,30/01/2024,RS156330,13.31,0.00,"DEWENWILS Timer Plug Socket UK, 24 Hour Programmable Energy Saving Light Timer for Home Security, Lamp, Router Christmas Light, Coffee Machine, Home Appliances, CE Listed (3 Pack) UHIMT01A.",Purchase of Tools or Equipment,
Wyre Council,http://opendatacommunities.org/doc/district-council/wyre,30/01/2024,Resources,Support Services,135B,Amazon Business,18/01/2024,RS156114,9.63,0.00,Clinell wipes refillcalculator,Purchase of Tools or Equipment,
Wyre Council,http://opendatacommunities.org/doc/district-council/wyre,30/01/2024,Resources,Support Services,135B,Amazon Business,08/01/2024,RS155729,7.49,0.00,Ram� Black Christmas Tree Storage Bag Fabric Xmas Tree Fabric Decor Holiday Store Bag Upto 9FT Trees,Purchase of Tools or Equipment,
Wyre Council,http://opendatacommunities.org/doc/district-council/wyre,30/01/2024,People and Places,Cultural and Related Services,132A,POULTON DRAMA,04/01/2024,PE155655,6720.00,0.00,Blackadder 2 26/11 to 02/12/23 ticket sales,Refund of Ticket Sales to Ext Promoters,
Wyre Council,http://opendatacommunities.org/doc/district-council/wyre,30/01/2024,People and Places,Cultural and Related Services,132A,A M Productions (North West) LTD,10/01/2024,PE155883,7381.00,0.00,We Three Kings 15/12/23 ticket sales,Refund of Ticket Sales to Ext Promoters,
Wyre Council,http://opendatacommunities.org/doc/district-council/wyre,30/01/2024,People and Places,Cultural and Related Services,132A,International Events Ltd,10/01/2024,PE155882,7173.00,0.00,The Jerseys Live 16/12/23 ticket sales,Refund of Ticket Sales to Ext Promoters,
Wyre Council,http://opendatacommunities.org/doc/district-council/wyre,30/01/2024,People and Places,Cultural and Related Services,132A,Blackpool And Fylde Dance Academy,10/01/2024,PE155893,2967.99,0.00,Ticket Sales for Christmas Sparkle 8 & 9 December 2023,Refund of Ticket Sales to Ext Promoters,
Wyre Council,http://opendatacommunities.org/doc/district-council/wyre,30/01/2024,People and Places,Planning and Development Servs,132C,Suez Recycling And Recovery UK LTD,05/01/2024,PE155664,1031.15,0.00,waste removal market suez,Refuse Collection,
Wyre Council,http://opendatacommunities.org/doc/district-council/wyre,30/01/2024,People and Places,Planning and Development Servs,132C,Trident Rentals Ltd,29/01/2024,PE156291,489.67,0.00,rental compactor October 23,Refuse Collection,
Wyre Council,http://opendatacommunities.org/doc/district-council/wyre,30/01/2024,People and Places,Planning and Development Servs,132C,Trident Rentals Ltd,16/01/2024,PE155532,489.67,0.00,rental compactor October 23,Refuse Collection,
Wyre Council,http://opendatacommunities.org/doc/district-council/wyre,30/01/2024,People and Places,Environmental Services,132B,Veolia ES (UK) LTD,15/01/2024,PE155949,194547.14,0.00,Domestic Waste Management Collection Contract 2023/24,Refuse Collection Contract,
Wyre Council,http://opendatacommunities.org/doc/district-council/wyre,30/01/2024,People and Places,Environmental Services,132B,Veolia ES (UK) LTD,15/01/2024,PE155949,415.08,0.00,Pension Pass Through,Refuse Collection Contract,
Wyre Council,http://opendatacommunities.org/doc/district-council/wyre,30/01/2024,People and Places,Cultural and Related Services,132A,EAS Electrical Mechanical,15/01/2024,PE155911,663.32,0.00,"Public clock, Victoria Rd West Shelter 11: Remove 240v string lights and replace with similar style - lv warm white; re-set clock to correct time; remove lights fixed by others and fabric bunting; check all electrics are safe and working.",Responsive Building Maintenance,
Wyre Council,http://opendatacommunities.org/doc/district-council/wyre,30/01/2024,People and Places,Cultural and Related Services,132A,EAS Electrical Mechanical,09/01/2024,PE155812,812.93,0.00,Public Clock Victoria Rd W Shelter 11: Install socket to power Christmas light.  Commando socket to be located within the chamber in the planter,Responsive Building Maintenance,
Wyre Council,http://opendatacommunities.org/doc/district-council/wyre,30/01/2024,People and Places,Cultural and Related Services,132A,EAS Electrical Mechanical,09/01/2024,PE155734,193.01,0.00,Fit new contactor using existing enclosure at Marine Hall,Responsive Building Maintenance,
Wyre Council,http://opendatacommunities.org/doc/district-council/wyre,30/01/2024,People and Places,Cultural and Related Services,132A,EAS Electrical Mechanical,15/01/2024,PE155916,551.80,0.00,Thornton Little Theatre:hire of dehumidifier and  collect and drop off at site,Responsive Building Maintenance,
Wyre Council,http://opendatacommunities.org/doc/district-council/wyre,30/01/2024,People and Places,Environmental Services,132B,EAS Electrical Mechanical,09/01/2024,PE155735,1669.62,0.00,"Investigate leak on water heater, replace heater with new and adjust pipework at break room Garstand Road Cemetery",Responsive Building Maintenance,
Wyre Council,http://opendatacommunities.org/doc/district-council/wyre,30/01/2024,People and Places,Environmental Services,132B,EAS Electrical Mechanical,30/01/2024,PE156341,108.27,0.00,"Danfo PC bus Station Rough LEa Rd, Thornton Cleveleys: isolate power and remove light above danfo toilet, replace with new and test",Responsive Building Maintenance,
Wyre Council,http://opendatacommunities.org/doc/district-council/wyre,30/01/2024,People and Places,Planning and Development Servs,132C,EAS Electrical Mechanical,30/01/2024,PE156338,89.10,0.00,"Copse Rd Depot: investigate fault and replace faulty switch, faceplat and yolk",Responsive Building Maintenance,
Wyre Council,http://opendatacommunities.org/doc/district-council/wyre,30/01/2024,People and Places,Cultural and Related Services,132A,EAS Electrical Mechanical,15/01/2024,PE155914,1038.00,0.00,Public clock Victoria Rd West: provide all required access and electrical support to Matthew of Lancashire Clockmakers to enable wone clock face,Responsive Building Maintenance,
Wyre Council,http://opendatacommunities.org/doc/district-council/wyre,30/01/2024,People and Places,Planning and Development Servs,132C,EAS Electrical Mechanical,09/01/2024,PE155737,134.82,0.00,"Isolate, replace faulty panel to light in office and replace flashing light in ladies toilet at Copse road Depot",Responsive Building Maintenance,
Wyre Council,http://opendatacommunities.org/doc/district-council/wyre,30/01/2024,People and Places,Support Services,135B,EAS Electrical Mechanical,09/01/2024,PE155738,102.37,0.00,Replace faulty trv head on radiator in room 126 and test at Civic Centre,Responsive Building Maintenance,
Wyre Council,http://opendatacommunities.org/doc/district-council/wyre,30/01/2024,People and Places,Cultural and Related Services,132A,EAS Electrical Mechanical,15/01/2024,PE155917,1557.90,0.00,Marine Hall: Replaced x5 damaged floodlights with 100w led floods; refixed x5 adaptable boxes; tiewrapped swa cables to tray; installed existing basket to original position and fixed down,Responsive Building Maintenance,
Wyre Council,http://opendatacommunities.org/doc/district-council/wyre,30/01/2024,People and Places,Cultural and Related Services,132A,EAS Electrical Mechanical,15/01/2024,PE155915,667.90,0.00,"Marine Hall: replace lamp to entrance light to gents in foyer, replce lamp to light behind bar in waterfront cafe bar plus several in cafe areas",Responsive Building Maintenance,
Wyre Council,http://opendatacommunities.org/doc/district-council/wyre,30/01/2024,People and Places,Support Services,135B,EAS Electrical Mechanical,30/01/2024,PE156340,78.00,0.00,Civic Centre: bypassed timeclock power at heater and heating up working fine,Responsive Building Maintenance,
Wyre Council,http://opendatacommunities.org/doc/district-council/wyre,30/01/2024,People and Places,Support Services,135B,EAS Electrical Mechanical,15/01/2024,PE155912,179.34,0.00,"Civic Centre: Investigate fault on various radiators, blled radiators in room 125 and test; room 142 all rads have got trv`s; room 143 bleed rads and turn on; room 166 rad head damaged, replaced with new",Responsive Building Maintenance,
Wyre Council,http://opendatacommunities.org/doc/district-council/wyre,30/01/2024,People and Places,Support Services,135B,EAS Electrical Mechanical,22/01/2024,PE156159,48.00,0.00,"Civic Centre: attended site, caretaker advised work done in December, checked pipework and turned water off",Responsive Building Maintenance,
Wyre Council,http://opendatacommunities.org/doc/district-council/wyre,30/01/2024,People and Places,Cultural and Related Services,132A,EAS Electrical Mechanical,15/01/2024,PE155918,3173.60,0.00,YMCA Fleetwood: repair and refurb pump 2,Responsive Building Maintenance,
Wyre Council,http://opendatacommunities.org/doc/district-council/wyre,30/01/2024,People and Places,Cultural and Related Services,132A,EAS Electrical Mechanical,15/01/2024,PE155934,988.50,0.00,Repairs to pumps to Marine Hall/YMCA/Danfo/kiosk drains,Responsive Building Maintenance,
Wyre Council,http://opendatacommunities.org/doc/district-council/wyre,30/01/2024,People and Places,Planning and Development Servs,132C,EAS Electrical Mechanical,30/01/2024,PE156339,84.00,0.00,Unit 11 Butts Close: EICR Remedials,Responsive Building Maintenance,
Wyre Council,http://opendatacommunities.org/doc/district-council/wyre,30/01/2024,People and Places,Planning and Development Servs,132C,EAS Electrical Mechanical,15/01/2024,PE155935,204.00,0.00,Complete EICR at Unit 5 Butts Close Thornton,Responsive Building Maintenance,
Wyre Council,http://opendatacommunities.org/doc/district-council/wyre,30/01/2024,People and Places,Cultural and Related Services,132A,Pipescan LTD,31/01/2024,PE156287,240.00,0.00,Poulton Swimming Centre: drain clearance and investigation,Responsive Building Maintenance,
Wyre Council,http://opendatacommunities.org/doc/district-council/wyre,30/01/2024,People and Places,Cultural and Related Services,132A,M D Security,03/01/2024,PE155577,50.00,0.00,"Thornton Little Theatre: Callout to repair security alarm. Cleaned PIR from cobwebs, reset system and tested, left working",Responsive Building Maintenance,
Wyre Council,http://opendatacommunities.org/doc/district-council/wyre,30/01/2024,People and Places,Cultural and Related Services,132A,Lancashire Clockmakers LTD,10/01/2024,PE155530,1020.00,0.00,"Invoice for 30% To supply 4 new movements, running on stepper motors. controlled by a master clock",Responsive Building Maintenance,
Wyre Council,http://opendatacommunities.org/doc/district-council/wyre,30/01/2024,People and Places,Cultural and Related Services,132A,Lancashire Clockmakers LTD,10/01/2024,PE155625,2380.00,0.00,"Invoice for 70% To supply 4 new movements running on stepper motors, controlled by a master clock",Responsive Building Maintenance,
Wyre Council,http://opendatacommunities.org/doc/district-council/wyre,30/01/2024,People and Places,Cultural and Related Services,132A,Lancashire Clockmakers LTD,10/01/2024,PE155529,1020.00,0.00,To supply four new movements running on stepper motors controlled by a master clock,Responsive Building Maintenance,
Wyre Council,http://opendatacommunities.org/doc/district-council/wyre,30/01/2024,People and Places,Cultural and Related Services,132A,John Carney,16/01/2024,PE155962,280.00,0.00,Mount Cottages: Slate repairs to roof; supply and fix slate and re-fixing slipped slates.  All debris cleared away on completion,Responsive Building Maintenance,
Wyre Council,http://opendatacommunities.org/doc/district-council/wyre,30/01/2024,People and Places,Cultural and Related Services,132A,John Carney,16/01/2024,PE155961,420.00,0.00,Cottam Hall: Roof repairs to different areas of roof: Supply and fixing concrete roofing tiles where needed.  All debris cleared away on completion,Responsive Building Maintenance,
Wyre Council,http://opendatacommunities.org/doc/district-council/wyre,30/01/2024,People and Places,Cultural and Related Services,132A,John Carney,22/01/2024,PE156158,240.00,0.00,Jubilee Bowling Club: carry out roof repairs to flat roof bowling club and kitchen flat roof,Responsive Building Maintenance,
Wyre Council,http://opendatacommunities.org/doc/district-council/wyre,30/01/2024,People and Places,Cultural and Related Services,132A,David Humphries and Associates Ltd,15/01/2024,PE155932,770.00,0.00,Please produce an elemental Order of Cost Estimate for the proposed Medical Centre within existing YMCA Thornton all as per your quotation,Responsive Building Maintenance,
Wyre Council,http://opendatacommunities.org/doc/district-council/wyre,30/01/2024,People and Places,Cultural and Related Services,132A,GARRY CARR BUILDING SERVICES LTD,18/01/2024,PE155992,60.00,0.00,"Poulton Baths: Investigate roof and  drains.  Flooding to plant room, organised jetting",Responsive Building Maintenance,
Wyre Council,http://opendatacommunities.org/doc/district-council/wyre,30/01/2024,People and Places,Cultural and Related Services,132A,GARRY CARR BUILDING SERVICES LTD,08/01/2024,PE155474,228.00,0.00,Thornton Little Theatre: carry out further repairs following roof leaks,Responsive Building Maintenance,
Wyre Council,http://opendatacommunities.org/doc/district-council/wyre,30/01/2024,People and Places,Cultural and Related Services,132A,GARRY CARR BUILDING SERVICES LTD,08/01/2024,PE155020,388.00,0.00,Thornton Little Theatre: carry out roof repairs over foyer and technician`s desk,Responsive Building Maintenance,
Wyre Council,http://opendatacommunities.org/doc/district-council/wyre,30/01/2024,People and Places,Environmental Services,132B,GARRY CARR BUILDING SERVICES LTD,11/01/2024,PE154876,5480.00,0.00,Preesall Cemetery: Repairs to wal to rear or C116,Responsive Building Maintenance,
Wyre Council,http://opendatacommunities.org/doc/district-council/wyre,30/01/2024,People and Places,Environmental Services,132B,GARRY CARR BUILDING SERVICES LTD,10/01/2024,PE154877,3990.00,0.00,Preesall Cemetery: take down and rebuild front entrance wall,Responsive Building Maintenance,
Wyre Council,http://opendatacommunities.org/doc/district-council/wyre,30/01/2024,People and Places,Cultural and Related Services,132A,EVOLUTION CONSTRUCTION GROUP LTD,18/01/2024,PE155590,1787.03,0.00,"Thornton Sports Centre, b;ock up existing ventilation opening to external wall to reduce further water ingress over the fire escape stairs.  Clean down internal walls of all funghi and replace damaged plaster board wall to the gym",Responsive Building Maintenance,
Wyre Council,http://opendatacommunities.org/doc/district-council/wyre,30/01/2024,People and Places,Cultural and Related Services,132A,EVOLUTION CONSTRUCTION GROUP LTD,03/01/2024,PE155586,58.76,0.00,Mount Cottages: Replace all missing hardware to shutters and walls,Responsive Building Maintenance,
Wyre Council,http://opendatacommunities.org/doc/district-council/wyre,30/01/2024,People and Places,Cultural and Related Services,132A,EVOLUTION CONSTRUCTION GROUP LTD,11/01/2024,PE155587,984.77,0.00,Mount Pavilion: External pre painting repairs including rot to window frames and replacing plywood panels using marine ply,Responsive Building Maintenance,
Wyre Council,http://opendatacommunities.org/doc/district-council/wyre,30/01/2024,People and Places,Cultural and Related Services,132A,EVOLUTION CONSTRUCTION GROUP LTD,03/01/2024,PE155591,172.88,0.00,Wyreside estuary country park: Replace damaged fascia to end of office building,Responsive Building Maintenance,
Wyre Council,http://opendatacommunities.org/doc/district-council/wyre,30/01/2024,People and Places,Cultural and Related Services,132A,EVOLUTION CONSTRUCTION GROUP LTD,15/01/2024,PE154754,24.55,0.00,Marine Hall: Investigate and rectify fault to door leading from foyer into theatre,Responsive Building Maintenance,
Wyre Council,http://opendatacommunities.org/doc/district-council/wyre,30/01/2024,People and Places,Support Services,135B,EVOLUTION CONSTRUCTION GROUP LTD,15/01/2024,PE154753,191.38,0.00,Lockwood Surgery: re-fix one small diamond panes in leaded windows in consulting room 4,Responsive Building Maintenance,
Wyre Council,http://opendatacommunities.org/doc/district-council/wyre,30/01/2024,People and Places,Support Services,135B,EVOLUTION CONSTRUCTION GROUP LTD,15/01/2024,PE154752,141.63,0.00,Fix mayoral pictures to corridor walls running towards planning offices,Responsive Building Maintenance,
Wyre Council,http://opendatacommunities.org/doc/district-council/wyre,30/01/2024,People and Places,Support Services,135B,EVOLUTION CONSTRUCTION GROUP LTD,11/01/2024,PE155588,2265.22,0.00,Civic Centre: as per agreed quoted price,Responsive Building Maintenance,
Wyre Council,http://opendatacommunities.org/doc/district-council/wyre,30/01/2024,People and Places,Cultural and Related Services,132A,EVOLUTION CONSTRUCTION GROUP LTD,18/01/2024,PE155589,1390.76,0.00,"Marine Hall: repairs to stage, some areas are sinking and screws are standing proud",Responsive Building Maintenance,
Wyre Council,http://opendatacommunities.org/doc/district-council/wyre,30/01/2024,People and Places,Cultural and Related Services,132A,EVOLUTION CONSTRUCTION GROUP LTD,18/01/2024,PE155585,202.89,0.00,Marine Hall: Assess kickboards to doors and repair/replace damaged ones as required,Responsive Building Maintenance,
Wyre Council,http://opendatacommunities.org/doc/district-council/wyre,30/01/2024,People and Places,Cultural and Related Services,132A,EVOLUTION CONSTRUCTION GROUP LTD,11/01/2024,PE155583,466.45,0.00,Marine Hall: Replace ceiling tiles to disabled toilet after Abercarn have fixed roof,Responsive Building Maintenance,
Wyre Council,http://opendatacommunities.org/doc/district-council/wyre,30/01/2024,People and Places,Cultural and Related Services,132A,EVOLUTION CONSTRUCTION GROUP LTD,15/01/2024,PE154751,24.55,0.00,Fleetwwood Leisure and Swimming Centre: refix metal grate to window seward side of pool,Responsive Building Maintenance,
Wyre Council,http://opendatacommunities.org/doc/district-council/wyre,30/01/2024,People and Places,Cultural and Related Services,132A,EVOLUTION CONSTRUCTION GROUP LTD,18/01/2024,PE155582,507.53,0.00,"Cottm Hall Pavillion, YMCA, Rutland Ave, Poulton: Repairs to damaged soffits, external timber and internal roof timbers following vandalism",Responsive Building Maintenance,
Wyre Council,http://opendatacommunities.org/doc/district-council/wyre,30/01/2024,People and Places,Support Services,135B,Broxap,25/01/2024,PE156265,1236.00,0.00,2x BX 2020-AV  Eastgate Anti-Vandal Seat1800mm lengthSurface mountedFrames coated black RAL 9005Slats galvanised and coated black RAL 9005,Routine Maintenance,
Wyre Council,http://opendatacommunities.org/doc/district-council/wyre,30/01/2024,People and Places,Support Services,135B,Broxap,25/01/2024,PE156265,34.00,0.00,2x BX14 S-2092Set of fixing bolts,Routine Maintenance,
Wyre Council,http://opendatacommunities.org/doc/district-council/wyre,30/01/2024,People and Places,Support Services,135B,Broxap,25/01/2024,PE156265,1008.00,0.00,1x BX17 4016-1-BPGarthdee Steel Picnic Unit1800mm lengthBase platedGalvanised and coated black RAL 9005Supplied flat packed,Routine Maintenance,
Wyre Council,http://opendatacommunities.org/doc/district-council/wyre,30/01/2024,People and Places,Support Services,135B,Broxap,25/01/2024,PE156265,36.00,0.00,16x BOLFSA-1060S-BZPFixing bolts,Routine Maintenance,
Wyre Council,http://opendatacommunities.org/doc/district-council/wyre,30/01/2024,People and Places,Support Services,135B,Broxap,25/01/2024,PE156265,320.00,0.00,Delivery,Routine Maintenance,
Wyre Council,http://opendatacommunities.org/doc/district-council/wyre,30/01/2024,People and Places,Support Services,135B,HUWS GRAY LTD,30/01/2024,PE156343,288.60,0.00,Our Ref:Your Ref:Q8800307/1 ANDREW DICKINSON (88)30M ROLL GALV W/MESH 1200 X 25 X 25MM X 16G Each12/5/6 30M137.63 x2 rolls = 275.26SPECIAL ORDER PRODUCTPREPACKED GALV WIRE STAPLES 20mm x 1kg N9WSG40206.67 x2 = 13.34To be coll,Routine Maintenance,
Wyre Council,http://opendatacommunities.org/doc/district-council/wyre,30/01/2024,People and Places,Environmental Services,132B,WATER PLUS LTD,29/01/2024,PE155569,28.77,0.00,"3002252271 - Fleetwood Corporation Toilets, Beach Road, FLEETWOOD, FY7  8PH Sewerage Charge",Sewerage,
Wyre Council,http://opendatacommunities.org/doc/district-council/wyre,30/01/2024,People and Places,Environmental Services,132B,WATER PLUS LTD,29/01/2024,PE155569,13.92,0.00,"3002319333 - Toilet Block, Lawson Road, Little Thornton, THORNTON  CLEVELEYS, FY5 5DX Sewerage Charge",Sewerage,
Wyre Council,http://opendatacommunities.org/doc/district-council/wyre,30/01/2024,People and Places,Environmental Services,132B,WATER PLUS LTD,29/01/2024,PE155569,8.53,0.00,"300213855X - Toilets, Smallwood Hey, Pilling, PRESTON, PR3 6HB Sewerage  Charge",Sewerage,
Wyre Council,http://opendatacommunities.org/doc/district-council/wyre,30/01/2024,People and Places,Environmental Services,132B,WATER PLUS LTD,29/01/2024,PE155569,4.48,0.00,"3000658513 - Toilet Block, Park Hill Road, Garstang, PRESTON, PR3 1EL  Sewerage Charge",Sewerage,
Wyre Council,http://opendatacommunities.org/doc/district-council/wyre,30/01/2024,People and Places,Environmental Services,132B,WATER PLUS LTD,29/01/2024,PE155569,23.38,0.00,"3000101640 - Public Toilets, Off Quail Holme Road, Knott End-On-Sea,  POULTON-LE-FYLDE, FY6 0BT Sewerage Charge",Sewerage,
Wyre Council,http://opendatacommunities.org/doc/district-council/wyre,30/01/2024,People and Places,Environmental Services,132B,WATER PLUS LTD,29/01/2024,PE155569,51.70,0.00,"3001923946 - Conveniences, Bold Street, FLEETWOOD, FY7 6HL Sewerage  Charge",Sewerage,
Wyre Council,http://opendatacommunities.org/doc/district-council/wyre,30/01/2024,People and Places,Support Services,135B,WATER PLUS LTD,29/01/2024,PE155569,3334.75,0.00,"3002029939 - Wyre Civic Centre, Breck Road, POULTON-LE-FYLDE, FY6 7PU  Sewerage Charge",Sewerage,
Wyre Council,http://opendatacommunities.org/doc/district-council/wyre,30/01/2024,People and Places,Environmental Services,132B,WATER PLUS LTD,29/01/2024,PE155569,16.62,0.00,"3002415766 - Cemetery, Garstang Road East, POULTON LE FYLDE, FY6 8JH  Sewerage Charge",Sewerage,
Wyre Council,http://opendatacommunities.org/doc/district-council/wyre,30/01/2024,People and Places,Environmental Services,132B,WATER PLUS LTD,29/01/2024,PE155569,71.95,0.00,"3002655775 - Public Conveniences, Rough Lea Road, THORNTON CLEVELEYS, FY5  1DA Sewerage Charge",Sewerage,
Wyre Council,http://opendatacommunities.org/doc/district-council/wyre,30/01/2024,People and Places,Environmental Services,132B,WATER PLUS LTD,29/01/2024,PE155569,290.54,0.00,"300294677X - Public Toilet, Rough Lea Road, THORNTON CLEVELEYS, FY5 1BW  Sewerage Charge",Sewerage,
Wyre Council,http://opendatacommunities.org/doc/district-council/wyre,30/01/2024,People and Places,Environmental Services,132B,WATER PLUS LTD,29/01/2024,PE155569,31.47,0.00,"3002656135 - Toilets, Preston Street, FLEETWOOD, FY7 6JA Sewerage Charge",Sewerage,
Wyre Council,http://opendatacommunities.org/doc/district-council/wyre,30/01/2024,People and Places,Environmental Services,132B,WATER PLUS LTD,29/01/2024,PE155569,111.08,0.00,"3002445207 - Toilets, Car Park, High Street, Garstang, PRESTON, PR3 1FA  Sewerage Charge",Sewerage,
Wyre Council,http://opendatacommunities.org/doc/district-council/wyre,30/01/2024,People and Places,Environmental Services,132B,WATER PLUS LTD,29/01/2024,PE155569,36.87,0.00,"3002564869 - Toilets, Teanlowe Centre, POULTON-LE-FYLDE, FY6 7DF Sewerage  Charge",Sewerage,
Wyre Council,http://opendatacommunities.org/doc/district-council/wyre,30/01/2024,People and Places,Environmental Services,132B,WATER PLUS LTD,29/01/2024,PE155569,16.62,0.00,"3002496634 - Toilets, Higher Lane, Scorton, PRESTON, PR3 1BE Sewerage  Charge",Sewerage,
Wyre Council,http://opendatacommunities.org/doc/district-council/wyre,30/01/2024,People and Places,Environmental Services,132B,WATER PLUS LTD,29/01/2024,PE155569,11.22,0.00,"3002444677 - Toilets Rear, White Bull Hotel, The Square, High Street,  Great Eccleston, PRESTON, PR3 0ZB Sewerage Charge",Sewerage,
Wyre Council,http://opendatacommunities.org/doc/district-council/wyre,30/01/2024,People and Places,Environmental Services,132B,WATER PLUS LTD,29/01/2024,PE155569,7.18,0.00,"3002443476 - Public Convenience, View Lune, Bourne May Road, Knott  End-On-Sea, POULTON-LE-FYLDE, FY6 0AB Sewerage Charge",Sewerage,
Wyre Council,http://opendatacommunities.org/doc/district-council/wyre,30/01/2024,People and Places,Cultural and Related Services,132A,WATER PLUS LTD,29/01/2024,PE155569,260.86,0.00,"3002656321 - Marine Hall, The Esplanade, FLEETWOOD, FY7 6HF Sewerage  Charge",Sewerage,
Wyre Council,http://opendatacommunities.org/doc/district-council/wyre,30/01/2024,People and Places,Cultural and Related Services,132A,WATER PLUS LTD,29/01/2024,PE155569,49.01,0.00,"3003028006 - Playing Fields, Cottam Hall, POULTON LE FYLDE, FY6 7RG  Sewerage Charge",Sewerage,
Wyre Council,http://opendatacommunities.org/doc/district-council/wyre,30/01/2024,People and Places,Cultural and Related Services,132A,WATER PLUS LTD,29/01/2024,PE155569,93.54,0.00,"300265633X - Marine Lake, Laidleys Walk, FLEETWOOD, FY7 7HS Sewerage  Charge",Sewerage,
Wyre Council,http://opendatacommunities.org/doc/district-council/wyre,30/01/2024,People and Places,Cultural and Related Services,132A,WATER PLUS LTD,29/01/2024,PE155569,13.92,0.00,"3000427023 - Park, North Drive, THORNTON CLEVELEYS, FY5 3AR Sewerage  Charge",Sewerage,
Wyre Council,http://opendatacommunities.org/doc/district-council/wyre,30/01/2024,People and Places,Cultural and Related Services,132A,WATER PLUS LTD,29/01/2024,PE155569,12.57,0.00,"300244278X - Wyreside Ecology Centre, River Road, THORNTON-CLEVELEYS, FY5  5LR Sewerage Charge",Sewerage,
Wyre Council,http://opendatacommunities.org/doc/district-council/wyre,30/01/2024,People and Places,Cultural and Related Services,132A,WATER PLUS LTD,29/01/2024,PE155569,8.53,0.00,"3002268488 - Club House, River Road, THORNTON-CLEVELEYS, FY5 5LR Sewerage  Charge",Sewerage,
Wyre Council,http://opendatacommunities.org/doc/district-council/wyre,30/01/2024,People and Places,Central Services to the Public,131C,WATER PLUS LTD,29/01/2024,PE155569,61.16,0.00,"3002564850 - Day Centre, Queensway, POULTON LE FYLDE, FY6 7ST Sewerage  Charge",Sewerage,
Wyre Council,http://opendatacommunities.org/doc/district-council/wyre,30/01/2024,People and Places,Cultural and Related Services,132A,WATER PLUS LTD,29/01/2024,PE155569,4.48,0.00,"3002110760 - Changing Room King George V Pl, Fleetwood Road, FLEETWOOD,  FY7 8AS Sewerage Charge",Sewerage,
Wyre Council,http://opendatacommunities.org/doc/district-council/wyre,30/01/2024,People and Places,Cultural and Related Services,132A,WATER PLUS LTD,29/01/2024,PE155569,83.32,0.00,"3001212063 - Ashdell Nursery Bowling Green &amp; Pc`S, Victoria Road  East, THORNTON CLEVELEYS, FY5 3SZ Sewerage Charge",Sewerage,
Wyre Council,http://opendatacommunities.org/doc/district-council/wyre,30/01/2024,People and Places,Cultural and Related Services,132A,WATER PLUS LTD,29/01/2024,PE155569,491.60,0.00,"3002656356 - Marine Gardens, The Esplanade, FLEETWOOD, FY7 6HE Sewerage  Charge",Sewerage,
Wyre Council,http://opendatacommunities.org/doc/district-council/wyre,30/01/2024,People and Places,Cultural and Related Services,132A,WATER PLUS LTD,29/01/2024,PE155569,-269.88,0.00,"3002656321 - Marine Gardens, The Esplanade, FLEETWOOD, FY7 6HE Sewerage  Charge",Sewerage,
Wyre Council,http://opendatacommunities.org/doc/district-council/wyre,30/01/2024,People and Places,Cultural and Related Services,132A,WATER PLUS LTD,29/01/2024,PE155569,258.17,0.00,"3002656348 - Paddling Pool, Marine Gardens, FLEETWOOD, FY7 6HE Sewerage  Charge",Sewerage,
Wyre Council,http://opendatacommunities.org/doc/district-council/wyre,30/01/2024,People and Places,Cultural and Related Services,132A,WATER PLUS LTD,29/01/2024,PE155569,301.22,0.00,"3002656038 - Toilets, Warrenhurst Park, FLEETWOOD, FY7 6SH Sewerage  Charge",Sewerage,
Wyre Council,http://opendatacommunities.org/doc/district-council/wyre,30/01/2024,People and Places,Cultural and Related Services,132A,WATER PLUS LTD,29/01/2024,PE155569,9.88,0.00,"3001061367 - Mount Pavilion, The Esplanade, FLEETWOOD, FY7 6HF Sewerage  Charge",Sewerage,
Wyre Council,http://opendatacommunities.org/doc/district-council/wyre,30/01/2024,People and Places,Environmental Services,132B,WATER PLUS LTD,29/01/2024,PE155569,16.62,0.00,"3002252263 - Cemetery &amp; Offices, Beach Road, FLEETWOOD, FY7 8PN  Sewerage Charge",Sewerage,
Wyre Council,http://opendatacommunities.org/doc/district-council/wyre,30/01/2024,People and Places,Environmental Services,132B,WATER PLUS LTD,29/01/2024,PE155569,11.22,0.00,"3002252255 - Fleetwood Corporation Cemetery, Beach Road, FLEETWOOD, FY7  8PH Sewerage Charge",Sewerage,
Wyre Council,http://opendatacommunities.org/doc/district-council/wyre,30/01/2024,People and Places,Planning and Development Servs,132C,WATER PLUS LTD,29/01/2024,PE155569,4.48,0.00,"3002655988 - Fleetwood Traditional Market, Adelaide Street, FLEETWOOD,  FY7 6AB Sewerage Charge",Sewerage,
Wyre Council,http://opendatacommunities.org/doc/district-council/wyre,30/01/2024,People and Places,Planning and Development Servs,132C,WATER PLUS LTD,29/01/2024,PE155569,4.48,0.00,"3002656569 - Swilling Bay, Copse Road, FLEETWOOD, FY7 7HB Sewerage Charge",Sewerage,
Wyre Council,http://opendatacommunities.org/doc/district-council/wyre,30/01/2024,People and Places,Planning and Development Servs,132C,WATER PLUS LTD,29/01/2024,PE155569,39.56,0.00,"3002110981 - Highway Dept, Copse Road, FLEETWOOD, FY7 7HB Sewerage Charge",Sewerage,
Wyre Council,http://opendatacommunities.org/doc/district-council/wyre,30/01/2024,People and Places,Cultural and Related Services,132A,WATER PLUS LTD,29/01/2024,PE155569,1005.72,0.00,"3003011863 - The New Wave, North Promenade, THORNTON-CLEVELEYS, FY5 1LW  Sewerage Charge",Sewerage,
Wyre Council,http://opendatacommunities.org/doc/district-council/wyre,30/01/2024,People and Places,Cultural and Related Services,132A,WATER PLUS LTD,29/01/2024,PE155569,4.48,0.00,"3000110372 - Tourist Information Centre, Unit 1 Cherestanc Square,  Garstang, PRESTON, PR3 1EF Sewerage Charge",Sewerage,
Wyre Council,http://opendatacommunities.org/doc/district-council/wyre,30/01/2024,People and Places,Environmental Services,132B,WATER PLUS LTD,29/01/2024,PE155569,8.53,0.00,"3002656259 - Wyre Sea Defences Depot, Chatsworth Avenue, Fleetwood, FY7  8EJ Sewerage Charge",Sewerage,
Wyre Council,http://opendatacommunities.org/doc/district-council/wyre,30/01/2024,People and Places,Planning and Development Servs,132C,WATER PLUS LTD,31/01/2024,PE155189,28.69,0.00,"3201359858 Unit 7b Dock Ave, Fleetwood, FY7 6PS 04/11/23 to 04/12/23",Sewerage,
Wyre Council,http://opendatacommunities.org/doc/district-council/wyre,30/01/2024,People and Places,Planning and Development Servs,132C,WATER PLUS LTD,31/01/2024,PE155190,4.31,0.00,"3201359866 Unit 8 Dock Ave, Fleetwood, FY7 6PS 04/11/23 to 04/12/2",Sewerage,
Wyre Council,http://opendatacommunities.org/doc/district-council/wyre,30/01/2024,People and Places,Planning and Development Servs,132C,WATER PLUS LTD,31/01/2024,PE155960,4.31,0.00,"3201359866 Unit 8 Dock Ave, Fleetwood, FY7 6PS 04/12/23 to 03/01/24",Sewerage,
Wyre Council,http://opendatacommunities.org/doc/district-council/wyre,30/01/2024,People and Places,Planning and Development Servs,132C,WATER PLUS LTD,31/01/2024,PE156272,28.69,0.00,"3201359858 Unit 7b Dock Ave, Fleetwood, FY7 6PS 04/12/23 to 03/01/24",Sewerage,
Wyre Council,http://opendatacommunities.org/doc/district-council/wyre,30/01/2024,People and Places,Planning and Development Servs,132C,WATER PLUS LTD,31/01/2024,PE156334,3.13,0.00,"3201359858 Unit 7b Dock Ave, Fleetwood, FY7 6PS 04/08/23 to 08/08/23",Sewerage,
Wyre Council,http://opendatacommunities.org/doc/district-council/wyre,30/01/2024,People and Places,Planning and Development Servs,132C,WATER PLUS LTD,31/01/2024,PE153479,4.45,0.00,"3201359866 - Unit 8 Dock Ave, Fleetwood, FY7 6PS, 04/08/23 to 04/09/23",Sewerage,
Wyre Council,http://opendatacommunities.org/doc/district-council/wyre,30/01/2024,People and Places,Planning and Development Servs,132C,WATER PLUS LTD,31/01/2024,PE153482,30.11,0.00,"3201359858 - Unit 7b Dock Ave, Fleetwood, FY7 6PS, 04/08/23 to 04/09/23",Sewerage,
Wyre Council,http://opendatacommunities.org/doc/district-council/wyre,30/01/2024,People and Places,Planning and Development Servs,132C,WATER PLUS LTD,31/01/2024,PE153518,28.69,0.00,"3201359858 Unit 7b Dock Ave, Fleetwood, FY7 6PS 04/09/23 to 04/10/23",Sewerage,
Wyre Council,http://opendatacommunities.org/doc/district-council/wyre,30/01/2024,People and Places,Planning and Development Servs,132C,WATER PLUS LTD,31/01/2024,PE153519,4.31,0.00,"3201359866 Unit 8 Dock Ave, Fleetwood, FY7 6PS 04/09/23 to 04/10/23",Sewerage,
Wyre Council,http://opendatacommunities.org/doc/district-council/wyre,30/01/2024,People and Places,Planning and Development Servs,132C,WATER PLUS LTD,31/01/2024,PE154431,4.45,0.00,"3201359866 Unit 8 Dock Ave, Fleetwood, FY7 6PS 04/10/23 to 04/11/23",Sewerage,
Wyre Council,http://opendatacommunities.org/doc/district-council/wyre,30/01/2024,People and Places,Planning and Development Servs,132C,WATER PLUS LTD,31/01/2024,PE154434,30.11,0.00,"3201359858 Unit 7b Dock Ave, fleetwood, FY7 6PS 04/10/23 to 04/11/23",Sewerage,
Wyre Council,http://opendatacommunities.org/doc/district-council/wyre,30/01/2024,People and Places,Planning and Development Servs,132C,WATER PLUS LTD,31/01/2024,PE156335,0.57,0.00,"3201359866 Unnit 8 Dock Ave Fleetwood, FY7 6PS 04/08/23 to 08/08/23",Sewerage,
Wyre Council,http://opendatacommunities.org/doc/district-council/wyre,30/01/2024,People and Places,Cultural and Related Services,132A,WATER PLUS LTD,29/01/2024,PE155569,11.22,0.00,"3002029947 - Jean Stansfield Memorial Park, Vicarage Road, Knott  End-On-Sea, POULTON-LE-FYLDE, FY6 0BH Sewerage Charge",Sewerage,
Wyre Council,http://opendatacommunities.org/doc/district-council/wyre,30/01/2024,Resources,Support Services,135B,Phoenix Software LTD,23/01/2024,RS155424,1062.01,0.00,Azure overage for period November 2023 to March 2024 @ assumed average of 1000 pcm.,Software Maintenance,
Wyre Council,http://opendatacommunities.org/doc/district-council/wyre,30/01/2024,Resources,Support Services,135B,Phoenix Software LTD,23/01/2024,RS156120,1247.59,0.00,Azure overage for period November 2023 to March 2024 @ assumed average of 1000 pcm.,Software Maintenance,
Wyre Council,http://opendatacommunities.org/doc/district-council/wyre,30/01/2024,Resources,Support Services,135B,NEC Software Solutions UK Limited,18/01/2024,RS156061,5000.00,0.00,CRM LT / CRM 145420Citizen Access � Campaigns (CA-CAM)  - 23.02.24  22.02.25,Software Maintenance,
Wyre Council,http://opendatacommunities.org/doc/district-council/wyre,30/01/2024,Resources,Support Services,135B,NEC Software Solutions UK Limited,24/01/2024,RS156241,1050.00,0.00,SUPPLIER REFERENCE:MB / 146420Supplier Software:  English NDR Legislation Changes 2024,Software Maintenance,
Wyre Council,http://opendatacommunities.org/doc/district-council/wyre,30/01/2024,Resources,Support Services,135B,NEC Software Solutions UK Limited,04/01/2024,RS155674,5355.00,0.00,LT / CRM 145136 - Citizen Access � Landlords (CA-LL) 01.01.24  31.12.24,Software Maintenance,
Wyre Council,http://opendatacommunities.org/doc/district-council/wyre,30/01/2024,Resources,Support Services,135B,ESRI UK LTD,15/01/2024,RS155954,1135.00,0.00,ArcGIS Data Interoperability for Desktop (Concurrent Use) Primary Maintenance 01-02-2024  - 31-01-2025,Software Maintenance,
Wyre Council,http://opendatacommunities.org/doc/district-council/wyre,30/01/2024,Resources,Support Services,135B,ESRI UK LTD,15/01/2024,RS155954,721.00,0.00,UK Data Loader Annual Subscription  01-02-2024 - 31-01-2025,Software Maintenance,
Wyre Council,http://opendatacommunities.org/doc/district-council/wyre,30/01/2024,Resources,Support Services,135B,ESRI UK LTD,15/01/2024,RS155954,1135.00,0.00,ArcGIS Desktop Basic (Concurrent Use) Primary Maintenance 01-02-2024 - 31-01-2025,Software Maintenance,
Wyre Council,http://opendatacommunities.org/doc/district-council/wyre,30/01/2024,Resources,Support Services,135B,ESRI UK LTD,15/01/2024,RS155954,4255.00,0.00,ArcGIS Desktop Basic (Concurrent Use) Secondary Maintenance 01-02-2024 - 31-01-2025,Software Maintenance,
Wyre Council,http://opendatacommunities.org/doc/district-council/wyre,30/01/2024,Resources,Support Services,135B,Coolspirit LTD,23/01/2024,RS155968,528.75,0.00,Commvault Metallic O365 licences x 45 users - 5 months,Software Maintenance,
Wyre Council,http://opendatacommunities.org/doc/district-council/wyre,30/01/2024,Resources,Support Services,135B,Quadra Solutions Ltd,24/01/2024,RS156252,13500.00,0.00,3 x AutoCAD - including specialized toolsets Commercial Single-user 3-Year Subscription Renewal.,Software Maintenance,
Wyre Council,http://opendatacommunities.org/doc/district-council/wyre,30/01/2024,Resources,Support Services,135B,Quadra Solutions Ltd,24/01/2024,RS156252,2220.00,0.00,2 x AutoCAD LT Commercial Single-user 3-Year Subscription Renewal.,Software Maintenance,
Wyre Council,http://opendatacommunities.org/doc/district-council/wyre,30/01/2024,Resources,Support Services,135B,Altair Engineering Ltd,23/01/2024,RS156125,7800.00,0.00,Altair Units - Data Analyst - Lease.Product code: AU-DA-STD-AN.Term start date: 09/11/2023.Term end date: 08/11/2024.,Software Maintenance,
Wyre Council,http://opendatacommunities.org/doc/district-council/wyre,30/01/2024,Resources,Support Services,135B,8x8 UK Limited,23/01/2024,RS155702,251.00,0.00,Additional local number * 502,Software Maintenance,
Wyre Council,http://opendatacommunities.org/doc/district-council/wyre,30/01/2024,Resources,Support Services,135B,8x8 UK Limited,23/01/2024,RS155702,1117.20,0.00,Service X Series X1 UK Gov * 280,Software Maintenance,
Wyre Council,http://opendatacommunities.org/doc/district-council/wyre,30/01/2024,Resources,Support Services,135B,8x8 UK Limited,23/01/2024,RS155702,218.40,0.00,X Series X2 * 12,Software Maintenance,
Wyre Council,http://opendatacommunities.org/doc/district-council/wyre,30/01/2024,Resources,Support Services,135B,8x8 UK Limited,23/01/2024,RS155702,928.00,0.00,X Series X4 * 32,Software Maintenance,
Wyre Council,http://opendatacommunities.org/doc/district-council/wyre,30/01/2024,Resources,Support Services,135B,8x8 UK Limited,23/01/2024,RS155702,5.57,0.00,SVC Usage INTL,Software Maintenance,
Wyre Council,http://opendatacommunities.org/doc/district-council/wyre,30/01/2024,Resources,Support Services,135B,Phoenix Software LTD,02/01/2024,RS155604,20000.00,0.00,Semperis - DSP Essential + Advanced - Intelligence with ADFR x 400 @ 50 ea,Software Mtce Reserves Funded,
Wyre Council,http://opendatacommunities.org/doc/district-council/wyre,30/01/2024,People and Places,Support Services,135B,T-Fer Tree Surgeons,30/01/2024,PE156342,420.00,0.00,"Quote 0049  Date: 23/01/2024     Location/AddressJob DescriptionPricePoulton Cemetery, Garstang road eastRemoval of ivy clad willow420Total net amount 420Vat 0Quote total 420",Special Maintenance - Trees,
Wyre Council,http://opendatacommunities.org/doc/district-council/wyre,30/01/2024,People and Places,Support Services,135B,T-Fer Tree Surgeons,23/01/2024,PE156204,660.00,0.00,"Quote 0046 08/12/23 Mariners Close Mariners close, FleetwoodG2 - Alder - coppice180G3 - Oak full reduction 160G3 � sycamore full reduction140Chip left on site around T1/T2/T3/T4T5 � cherry � reduce for property          90",Special Maintenance - Trees,
Wyre Council,http://opendatacommunities.org/doc/district-council/wyre,30/01/2024,People and Places,Support Services,135B,T-Fer Tree Surgeons,23/01/2024,PE156205,420.00,0.00,Quote 0048 11/01/2024     Hedgerow section opposite 185 Blackpool Old RoadReduce hedgerow height to approx 6ft and reduce sides away from Path and Road.420Total net amount $420VAT @ 20% 0Quote total   420,Special Maintenance - Trees,
Wyre Council,http://opendatacommunities.org/doc/district-council/wyre,30/01/2024,People and Places,Support Services,135B,T-Fer Tree Surgeons,23/01/2024,PE156203,2760.00,0.00,"Quote 0036 06/11/23 Tower woodsT8- white poplar- remove, ECO plug520T11- sycamore- remove major dead wood240T9- mature Ash- heavy reduction480Group 1- x2 mature chestnut fell remove1040T10- dying topped chestnut fell200T12-",Special Maintenance - Trees,
Wyre Council,http://opendatacommunities.org/doc/district-council/wyre,30/01/2024,People and Places,Support Services,135B,T-Fer Tree Surgeons,31/01/2024,PE156364,250.00,0.00,"Quote 0050 23/01/24

Riversgate, Fleetwood	Ash � crown raise and clear column and lamp head	         90
	Ash � crown raise all round, reduce back from BT building and 38 riversgate, correct stubs.	160


Total net value 250
VAT 0
Quote total 2",Special Maintenance - Trees,
Wyre Council,http://opendatacommunities.org/doc/district-council/wyre,30/01/2024,People and Places,Environmental Services,132B,Wyre Memorials LTD,22/01/2024,PE156182,145.00,0.00,To move and refix Ellison F/111 @ Preesall Cem,Special Works,
Wyre Council,http://opendatacommunities.org/doc/district-council/wyre,30/01/2024,People and Places,Environmental Services,132B,Wyre Memorials LTD,22/01/2024,PE156181,145.00,0.00,To remove and refix Preesall E27 Fielding ( re E26),Special Works,
Wyre Council,http://opendatacommunities.org/doc/district-council/wyre,30/01/2024,People and Places,Environmental Services,132B,Wyre Memorials LTD,15/01/2024,PE155929,45.00,0.00,Replacement base ORMROD Preesall cemetery CR2/28,Special Works,
Wyre Council,http://opendatacommunities.org/doc/district-council/wyre,30/01/2024,People and Places,Environmental Services,132B,Wyre Memorials LTD,22/01/2024,PE156180,145.00,0.00,To Remove and refix Poulton New A 55 Hogarth,Special Works,
Wyre Council,http://opendatacommunities.org/doc/district-council/wyre,30/01/2024,People and Places,Environmental Services,132B,Wyre Memorials LTD,19/01/2024,PE155897,95.00,0.00, to refix Tucker . Poulton Cem F24,Special Works,
Wyre Council,http://opendatacommunities.org/doc/district-council/wyre,30/01/2024,People and Places,Environmental Services,132B,Wyre Memorials LTD,19/01/2024,PE155897,95.00,0.00,Refix Clarkson Poulton new T/13,Special Works,
Wyre Council,http://opendatacommunities.org/doc/district-council/wyre,30/01/2024,People and Places,Environmental Services,132B,Wyre Memorials LTD,08/01/2024,PE155017,145.00,0.00,to move and re-fix @ Fleetwood Cemetery R 291 - WILKS,Special Works,
Wyre Council,http://opendatacommunities.org/doc/district-council/wyre,30/01/2024,People and Places,Environmental Services,132B,Wyre Memorials LTD,08/01/2024,PE155017,145.00,0.00,TO Fix and remove Snowden T376,Special Works,
Wyre Council,http://opendatacommunities.org/doc/district-council/wyre,30/01/2024,People and Places,Environmental Services,132B,Wyre Memorials LTD,08/01/2024,PE155017,145.00,0.00,to move and re-fix @ Fleetwood Cemetery S265- Jackson,Special Works,
Wyre Council,http://opendatacommunities.org/doc/district-council/wyre,30/01/2024,Resources,Support Services,135B,Bates Office Services Ltd,16/01/2024,RS156011,10.84,0.00,2023 Diary A4 Day Per Page Black,Stationery,
Wyre Council,http://opendatacommunities.org/doc/district-council/wyre,30/01/2024,Resources,Support Services,135B,Bates Office Services Ltd,16/01/2024,RS156011,1.47,0.00,INITIATIVE CLEAR SHATTERPROOF RULER 12IN,Stationery,
Wyre Council,http://opendatacommunities.org/doc/district-council/wyre,30/01/2024,People and Places,Support Services,135B,Bates Office Services Ltd,04/01/2024,PE155667,7.04,0.00,Initiative Film Index Tabs 45x12mm 5x20 of Assorted Colours,Stationery,
Wyre Council,http://opendatacommunities.org/doc/district-council/wyre,30/01/2024,People and Places,Support Services,135B,Bates Office Services Ltd,04/01/2024,PE155667,6.26,0.00,Pack 20 AAA batteries,Stationery,
Wyre Council,http://opendatacommunities.org/doc/district-council/wyre,30/01/2024,People and Places,Support Services,135B,Bates Office Services Ltd,04/01/2024,PE155667,1.78,0.00,5 Star Eco Drywipe Marker Blk Chisel Tip PK10,Stationery,
Wyre Council,http://opendatacommunities.org/doc/district-council/wyre,30/01/2024,People and Places,Support Services,135B,Bates Office Services Ltd,04/01/2024,PE155667,1.83,0.00,BLACK GEL INK PENS - (PACK OF 10),Stationery,
Wyre Council,http://opendatacommunities.org/doc/district-council/wyre,30/01/2024,People and Places,Support Services,135B,Bates Office Services Ltd,04/01/2024,PE155667,2.99,0.00,Clear popper wallett pack 12,Stationery,
Wyre Council,http://opendatacommunities.org/doc/district-council/wyre,30/01/2024,People and Places,Support Services,135B,Bates Office Services Ltd,04/01/2024,PE155667,4.39,0.00,HIGLO BLUE HIGHLIGHTER PENS PK10,Stationery,
Wyre Council,http://opendatacommunities.org/doc/district-council/wyre,30/01/2024,People and Places,Support Services,135B,Bates Office Services Ltd,04/01/2024,PE155667,8.44,0.00,INITIATIVE C5 WHT WDW 100GSM S/S PK500,Stationery,
Wyre Council,http://opendatacommunities.org/doc/district-council/wyre,30/01/2024,People and Places,Support Services,135B,Bates Office Services Ltd,04/01/2024,PE155667,1.20,0.00,Initiative Correction Roller 4.2mmx7m,Stationery,
Wyre Council,http://opendatacommunities.org/doc/district-council/wyre,30/01/2024,People and Places,Support Services,135B,Bates Office Services Ltd,04/01/2024,PE155667,3.56,0.00,Initiative Divider A4 Man 12 Pt Multi-Col 150gsm 100% Recyc,Stationery,
Wyre Council,http://opendatacommunities.org/doc/district-council/wyre,30/01/2024,People and Places,Support Services,135B,Bates Office Services Ltd,04/01/2024,PE155667,3.24,0.00,Initiative Divider A4 Man 20 Pt Multi-Col 150gsm 100% Recyc,Stationery,
Wyre Council,http://opendatacommunities.org/doc/district-council/wyre,30/01/2024,People and Places,Support Services,135B,Bates Office Services Ltd,04/01/2024,PE155667,4.90,0.00,Initiative Divider A4 Manilla 10 Part Multi-Col 150gsm,Stationery,
Wyre Council,http://opendatacommunities.org/doc/district-council/wyre,30/01/2024,People and Places,Support Services,135B,Bates Office Services Ltd,04/01/2024,PE155667,2.30,0.00,Initiative Divider A4 Manilla 5 Part Multi-Coloured 150gsm,Stationery,
Wyre Council,http://opendatacommunities.org/doc/district-council/wyre,30/01/2024,People and Places,Support Services,135B,Bates Office Services Ltd,04/01/2024,PE155667,22.05,0.00,Initiative Envelope DL Sseal Wdw 90gsm White Pack 1000,Stationery,
Wyre Council,http://opendatacommunities.org/doc/district-council/wyre,30/01/2024,People and Places,Support Services,135B,Bates Office Services Ltd,04/01/2024,PE155667,14.41,0.00,Initiative Envelope Pocket C4 90g White Pack 250,Stationery,
Wyre Council,http://opendatacommunities.org/doc/district-council/wyre,30/01/2024,People and Places,Support Services,135B,Bates Office Services Ltd,04/01/2024,PE155667,28.98,0.00,Initiative Envelope Pocket C5 90g White Pack 500,Stationery,
Wyre Council,http://opendatacommunities.org/doc/district-council/wyre,30/01/2024,People and Places,Support Services,135B,Bates Office Services Ltd,04/01/2024,PE155667,11.37,0.00,Initiative Multipurpose Labels 63.5 x 38.1mm 21tv Pk 100,Stationery,
Wyre Council,http://opendatacommunities.org/doc/district-council/wyre,30/01/2024,People and Places,Support Services,135B,Bates Office Services Ltd,04/01/2024,PE155667,1.67,0.00,Initiative Water Based Highlighter Wedge Tip Blue PK10,Stationery,
Wyre Council,http://opendatacommunities.org/doc/district-council/wyre,30/01/2024,People and Places,Support Services,135B,Bates Office Services Ltd,04/01/2024,PE155667,1.81,0.00,Initiative Water Based Highlighter Wedge Tip Yellow PK10,Stationery,
Wyre Council,http://opendatacommunities.org/doc/district-council/wyre,30/01/2024,People and Places,Support Services,135B,Bates Office Services Ltd,04/01/2024,PE155667,6.95,0.00,Initiative White Board A4 160gsm Dvdr Jan-Dec Col Mylar Tab,Stationery,
Wyre Council,http://opendatacommunities.org/doc/district-council/wyre,30/01/2024,People and Places,Support Services,135B,Bates Office Services Ltd,04/01/2024,PE155667,5.90,0.00,MEMO PAD A4 FEINT 80LF PK10,Stationery,
Wyre Council,http://opendatacommunities.org/doc/district-council/wyre,30/01/2024,People and Places,Support Services,135B,Bates Office Services Ltd,04/01/2024,PE155667,4.32,0.00,PACK 10 SHORTHAND NOTEBOOK 8X5 160 PAGES,Stationery,
Wyre Council,http://opendatacommunities.org/doc/district-council/wyre,30/01/2024,People and Places,Support Services,135B,Bates Office Services Ltd,04/01/2024,PE155667,1.53,0.00,Initiative Drywipe + Flipchart Marker Red PK10,Stationery,
